Workbook

Sheet פרטים

Sheet חברות
A1: מספר תאגיד | B1: שם החברה | C1: ענף | D1: עיר | E1: תאריך הקמת החברה | F1: מספר מניות מונפקות | G1: שווי שוק בש"ח | H1: אזור | I1: ותק החברה | J1: מחיר למניה | K1: יום מסחר ב-1/1/12 | L1: סכום המענק | M1: מס עבור מענק | N1: מס פרוגרסיבי עבור מענק
A2: 510119068 | B2: אברסייל | C2: נדל"ן | D2: רמת השרון | E2: 1999-09-29 | F2: 3,600,000 | G2: 30,000,000 | H2: =IF(OR(D2=$G$41,D2=$G$42,D2=$G$43,D2=$G$44),$G$40,IF(OR(D2=$H$41,D2=$H$42,D2=$H$43,D2=$H$44),$H$40,$I$40)) -> מרכז | I2: =IF(E2<=$J$40,$K$40,IF(E2<=$J$41,$K$41,$K$42)) -> ותיקה | J2: =G2/F2 -> 8.333333333 | K2: =IF(C2=$L$40,(J2*$M$40)+J2,IF(C2=$L$41,(J2*$M$41)+J2,IF(OR(C2=$L$42,C2=$L$43),(J2*$M$42)+J2,(J2*$M$44)+J2))) -> 8.583333333 | L2: =IF(AND(F2<$N$40,J2<$N$41),G2*$N$42,IF(J2>$N$43,$N$47,IF(AND(D2=$N$48,OR(C2=$N$44,C2=$N$45)),G2*$N$46,$N$49))) -> 180000 | M2: =IF(L2<=$P$40,L2*$Q$40,IF(L2<=$P$41,L2*$Q$41,IF(L2<=$P$42,L2*$Q$42,L2*$Q$43))) -> 27000 | N2: =IF(L2<=$P$40,L2*$Q$40,IF(L2<=$P$41,(L2-$P$40)*$Q$41+$R$40,IF(L2<=$P$42,(L2-$P$41)*$Q$42+$R$41,(L2-$P$42)*$Q$43+$R$42))) -> 1500
A3: 511661373 | B3: אזימון | C3: תעשיה | D3: כפר סבא | E3: 2007-11-22 | F3: 1,500,000 | G3: 30,000,000 | H3: =IF(OR(D3=$G$41,D3=$G$42,D3=$G$43,D3=$G$44),$G$40,IF(OR(D3=$H$41,D3=$H$42,D3=$H$43,D3=$H$44),$H$40,$I$40)) -> מרכז | I3: =IF(E3<=$J$40,$K$40,IF(E3<=$J$41,$K$41,$K$42)) -> חדשה | J3: =G3/F3 -> 20 | K3: =IF(C3=$L$40,(J3*$M$40)+J3,IF(C3=$L$41,(J3*$M$41)+J3,IF(OR(C3=$L$42,C3=$L$43),(J3*$M$42)+J3,(J3*$M$44)+J3))) -> 20.3 | L3: =IF(AND(F3<$N$40,J3<$N$41),G3*$N$42,IF(J3>$N$43,$N$47,IF(AND(D3=$N$48,OR(C3=$N$44,C3=$N$45)),G3*$N$46,$N$49))) -> 270000 | M3: =IF(L3<=$P$40,L3*$Q$40,IF(L3<=$P$41,L3*$Q$41,IF(L3<=$P$42,L3*$Q$42,L3*$Q$43))) -> 67500 | N3: =IF(L3<=$P$40,L3*$Q$40,IF(L3<=$P$41,(L3-$P$40)*$Q$41+$R$40,IF(L3<=$P$42,(L3-$P$41)*$Q$42+$R$41,(L3-$P$42)*$Q$43+$R$42))) -> 19000
A4: 520041773 | B4: איזיטק | C4: מסחר ושרותים | D4: רמת גן | E4: 1998-08-21 | F4: 5,000,000 | G4: 20,000,000 | H4: מרכז | I4: ותיקה | J4: 4 | K4: 4 | L4: 0 | M4: 0 | N4: 0
A5: 520043928 | B5: אינורון | C5: השקעה ואחזקות | D5: רמת השרון | E5: 2008-01-26 | F5: 3,400,000 | G5: 40,000,000 | H5: מרכז | I5: חדשה | J5: 11.76470588 | K5: 11.94117647 | L5: 240000 | M5: 60000 | N5: 11500
A6: 512434218 | B6: מדיק | C6: תעשיה | D6: חיפה | E6: 1996-08-13 | F6: 2,300,000 | G6: 18,000,000 | H6: צפון | I6: ותיקה | J6: 7.826086957 | K6: 7.943478261 | L6: 0 | M6: 0 | N6: 0
A7: 520043035 | B7: אלביר הדמיה | C7: השקעה ואחזקות | D7: רמת השרון | E7: 2008-03-10 | F7: 3,600,000 | G7: 45,000,000 | H7: מרכז | I7: חדשה | J7: 12.5 | K7: 12.6875 | L7: 270000 | M7: 67500 | N7: 19000
A8: 511722316 | B8: אלווריוט | C8: תעשיה | D8: רמת השרון | E8: 2005-05-21 | F8: 4,600,000 | G8: 34,000,000 | H8: מרכז | I8: בינונית | J8: 7.391304348 | K8: 7.502173913 | L8: 0 | M8: 0 | N8: 0
A9: 520041963 | B9: אנלין | C9: מסחר ושרותים | D9: רמת השרון | E9: 2010-07-16 | F9: 5,000,000 | G9: 28,000,000 | H9: מרכז | I9: חדשה | J9: 5.6 | K9: 5.6 | L9: 0 | M9: 0 | N9: 0
A10: 510007800 | B10: ארם | C10: תעשיה | D10: רמת השרון | E10: 1993-04-02 | F10: 5,000,000 | G10: 24,000,000 | H10: מרכז | I10: ותיקה | J10: 4.8 | K10: 4.872 | L10: 0 | M10: 0 | N10: 0
A11: 512623950 | B11: כסיל אחזקות | C11: השקעה ואחזקות | D11: רמת השרון | E11: 1997-02-08 | F11: 1,000,000 | G11: 50,000,000 | H11: מרכז | I11: ותיקה | J11: 50 | K11: 50.75 | L11: 270000 | M11: 67500 | N11: 19000
A12: 512578022 | B12: גינון | C12: תעשיה | D12: עכו | E12: 2001-08-13 | F12: 1,200,000 | G12: 32,000,000 | H12: צפון | I12: ותיקה | J12: 26.66666667 | K12: 27.06666667 | L12: 270000 | M12: 67500 | N12: 19000
A13: 512623869 | B13: גלובוס ברנר | C13: השקעה ואחזקות | D13: רמת השרון | E13: 2003-10-20 | F13: 3,400,000 | G13: 45,000,000 | H13: מרכז | I13: בינונית | J13: 13.23529412 | K13: 13.43382353 | L13: 270000 | M13: 67500 | N13: 19000
A14: 512112806 | B14: דורסלט | C14: נדל"ן | D14: עכו | E14: 2006-04-13 | F14: 2,400,000 | G14: 22,000,000 | H14: צפון | I14: בינונית | J14: 9.166666667 | K14: 9.441666667 | L14: 0 | M14: 0 | N14: 0
A15: 520041740 | B15: וואיינסט | C15: מסחר ושרותים | D15: רמת השרון | E15: 1998-06-12 | F15: 3,800,000 | G15: 32,000,000 | H15: מרכז | I15: ותיקה | J15: 8.421052632 | K15: 8.421052632 | L15: 0 | M15: 0 | N15: 0
A16: 512096793 | B16: ויתן | C16: נדל"ן | D16: רמת השרון | E16: 2006-03-02 | F16: 1,000,000 | G16: 32,000,000 | H16: מרכז | I16: בינונית | J16: 32 | K16: 32.96 | L16: 270000 | M16: 67500 | N16: 19000
A17: 512557596 | B17: טסנת | C17: השקעה ואחזקות | D17: רמת השרון | E17: 1992-10-21 | F17: 3,200,000 | G17: 42,000,000 | H17: מרכז | I17: ותיקה | J17: 13.125 | K17: 13.321875 | L17: 252000 | M17: 63000 | N17: 14500
A18: 520042466 | B18: יורו פאונד | C18: השקעה ואחזקות | D18: נהריה | E18: 2001-01-20 | F18: 3,800,000 | G18: 20,000,000 | H18: צפון | I18: ותיקה | J18: 5.263157895 | K18: 5.342105263 | L18: 0 | M18: 0 | N18: 0
A19: 511316903 | B19: אולפיניטים | C19: תעשיה | D19: נהריה | E19: 2006-04-13 | F19: 3,600,000 | G19: 36,000,000 | H19: צפון | I19: בינונית | J19: 10 | K19: 10.15 | L19: 0 | M19: 0 | N19: 0
A20: 512073453 | B20: פרידום | C20: נדל"ן | D20: רמת גן | E20: 1993-12-25 | F20: 3,200,000 | G20: 26,000,000 | H20: מרכז | I20: ותיקה | J20: 8.125 | K20: 8.36875 | L20: 0 | M20: 0 | N20: 0
A21: 512420647 | B21: ונצוסט | C21: השקעה ואחזקות | D21: באר שבע | E21: 2005-01-16 | F21: 3,800,000 | G21: 22,000,000 | H21: דרום | I21: בינונית | J21: 5.789473684 | K21: 5.876315789 | L21: 0 | M21: 0 | N21: 0
A22: 511812463 | B22: אנובה | C22: תעשיה | D22: שדרות | E22: 2007-01-10 | F22: 5,000,000 | G22: 36,000,000 | H22: דרום | I22: חדשה | J22: 7.2 | K22: 7.308 | L22: 0 | M22: 0 | N22: 0
A23: 512758350 | B23: נקסט | C23: מסחר ושרותים | D23: הרצליה | E23: 1998-08-06 | F23: 2,200,000 | G23: 46,000,000 | H23: מרכז | I23: ותיקה | J23: 20.90909091 | K23: 20.90909091 | L23: 270000 | M23: 67500 | N23: 19000
A24: 550011373 | B24: מפטא | C24: חיפושי נפט וגז | D24: הרצליה | E24: 1993-01-12 | F24: 1,000,000 | G24: 22,000,000 | H24: מרכז | I24: ותיקה | J24: 22 | K24: 22.44 | L24: 270000 | M24: 67500 | N24: 19000
A25: 520043159 | B25: נצבא | C25: נדל"ן | D25: הרצליה | E25: 1993-08-06 | F25: 4,400,000 | G25: 20,000,000 | H25: מרכז | I25: ותיקה | J25: 4.545454545 | K25: 4.681818182 | L25: 0 | M25: 0 | N25: 0
A26: 520041674 | B26: סיסטקום | C26: מסחר ושרותים | D26: הרצליה | E26: 2000-09-11 | F26: 3,600,000 | G26: 40,000,000 | H26: מרכז | I26: ותיקה | J26: 11.11111111 | K26: 11.11111111 | L26: 0 | M26: 0 | N26: 0
A27: 511416612 | B27: סינטאל | C27: תעשיה | D27: עכו | E27: 2004-06-12 | F27: 4,600,000 | G27: 42,000,000 | H27: צפון | I27: בינונית | J27: 9.130434783 | K27: 9.267391304 | L27: 0 | M27: 0 | N27: 0
A28: 520041641 | B28: ססניקום | C28: מסחר ושרותים | D28: קריית שמונה | E28: 2003-08-11 | F28: 2,400,000 | G28: 40,000,000 | H28: צפון | I28: בינונית | J28: 16.66666667 | K28: 16.66666667 | L28: 270000 | M28: 67500 | N28: 19000
A29: 512352444 | B29: סרגום | C29: נדל"ן | D29: רמת השרון | E29: 2004-07-05 | F29: 3,000,000 | G29: 28,000,000 | H29: מרכז | I29: בינונית | J29: 9.333333333 | K29: 9.613333333 | L29: 168000 | M29: 0 | N29: 0
A30: 512483629 | B30: פולאן | C30: נדל"ן | D30: רמת השרון | E30: 1999-03-03 | F30: 1,000,000 | G30: 44,000,000 | H30: מרכז | I30: ותיקה | J30: 44 | K30: 45.32 | L30: 270000 | M30: 67500 | N30: 19000
A31: 512367525 | B31: פברולם | C31: תעשיה | D31: עכו | E31: 2001-01-20 | F31: 3,800,000 | G31: 12,000,000 | H31: צפון | I31: ותיקה | J31: 3.157894737 | K31: 3.205263158 | L31: 0 | M31: 0 | N31: 0
A32: 520041666 | B32: פיננסי | C32: השקעה ואחזקות | D32: רמת השרון | E32: 1999-12-19 | F32: 4,400,000 | G32: 22,000,000 | H32: מרכז | I32: ותיקה | J32: 5 | K32: 5.075 | L32: 132000 | M32: 0 | N32: 0
A33: 511779639 | B33: קומפיוגר | C33: נדל"ן | D33: רמת השרון | E33: 2001-08-13 | F33: 3,600,000 | G33: 18,000,000 | H33: מרכז | I33: ותיקה | J33: 5 | K33: 5.15 | L33: 108000 | M33: 0 | N33: 0
A34: 511972374 | B34: קרדם | C34: השקעה ואחזקות | D34: רמת השרון | E34: 2006-11-29 | F34: 4,600,000 | G34: 34,000,000 | H34: מרכז | I34: בינונית | J34: 7.391304348 | K34: 7.502173913 | L34: 204000 | M34: 30600 | N34: 5100
A35: 511651812 | B35: רדויזמם | C35: נדל"ן | D35: רמת השרון | E35: 2005-03-05 | F35: 1,800,000 | G35: 38,000,000 | H35: מרכז | I35: בינונית | J35: 21.11111111 | K35: 21.74444444 | L35: 270000 | M35: 67500 | N35: 19000
A36: 550012777 | B36: רציו | C36: חיפושי נפט וגז | D36: רמת השרון | E36: 1993-04-02 | F36: 2,800,000 | G36: 22,000,000 | H36: מרכז | I36: ותיקה | J36: 7.857142857 | K36: 8.014285714 | L36: 0 | M36: 0 | N36: 0
A37: 512101460 | B37: תמירים | C37: השקעה ואחזקות | D37: רמת השרון | E37: 1997-03-11 | F37: 1,200,000 | G37: 42,000,000 | H37: מרכז | I37: ותיקה | J37: 35 | K37: 35.525 | L37: 270000 | M37: 67500 | N37: 19000
A38: 520041948 | B38: תשואות 2000 | C38: נדל"ן | D38: רמת גן | E38: 2010-05-01 | F38: 1,200,000 | G38: 30,000,000 | H38: מרכז | I38: חדשה | J38: 25 | K38: 25.75 | L38: 270000 | M38: 67500 | N38: 19000
G40: צפון | H40: מרכז | I40: דרום | J40: 2003-01-01 | K40: ותיקה | L40: נדל"ן | M40: 3% | N40: 3000000 | P40: 170000 | Q40: 0% | R40: =P40*Q40 -> 0
G41: חיפה | H41: רמת השרון | I41: באר שבע | J41: 2007-01-01 | K41: בינונית | L41: חיפושי נפט וגז | M41: 2% | N41: 6.5 | P41: 230000 | Q41: 15% | R41: =(P41-P40)*Q41+R40 -> 9000
G42: עכו | H42: הרצליה | I42: שדרות | K42: חדשה | L42: תעשיה | M42: 1.5% | N42: 0.25% | P42: 290000 | Q42: 25% | R42: =(P42-P41)*Q42+R41 -> 24000
G43: נהריה | H43: כפר סבא | L43: השקעה ואחזקות | M43: 1.5% | N43: =AVERAGE($J$2:$J$38) -> 14.01138612 | Q43: 35%
G44: קריית שמונה | H44: רמת גן | M44: 0% | N44: נדל"ן
N45: השקעה ואחזקות
N46: 0.60%
N47: 270000
N48: רמת השרון
N49: 0

Sheet בדיקה (hidden)
B1: מספר תאגיד | C1: שם החברה | D1: ענף | E1: עיר | F1: תאריך רישום לבורסה | G1: מספר מנפיק | H1: מספר מניות מונפקות | I1: שווי שוק בש"ח | J1: שווי שוק (ממוצע מחיר למניה) | K1: שם החברה | L1: עיר | M1: עמודה ריקה | N1: סכום המענק | O1: שאלה 3 | P1: רבעון רישום לבורסה
A2: 1 | B2: 510007800 | C2: ארד | D2: תעשיה | E2: תל אביב | F2: 2003-05-21 | G2: 1219 | H2: 5,000,000 | I2: 26,000,000 | J2: =I2/H2 -> ₪ 5.20 | K2: ארד | L2: תל אביב | N2: =IF(OR(E2=$N$70,E2=$N$71,E2=$N$72,E2=$N$73),IF(J2<$O$75,$O$70,$O$71),H2*VLOOKUP(J2,$N$78:$O$82,2)) -> ₪ 1,000,000 | P2: =VLOOKUP(MONTH(F2),$P$60:$Q$63,2) -> 2 | Q2: סכום של שווי שוק בש"ח
A3: 2 | B3: 510119068 | C3: אבגול | D3: תעשיה | E3: תל אביב | F3: 2002-11-25 | G3: 1390 | H3: 2,200,000 | I3: 32,000,000 | J3: =I3/H3 -> ₪ 14.55 | K3: אבגול | L3: תל אביב | N3: 0 | P3: =VLOOKUP(MONTH(F3),$P$60:$Q$63,2) -> 4 | Q3: רבעון רישום לבורסה | R3: סה"כ
A4: 3 | B4: 510291750 | C4: בי ג'י איי | D4: תעשיה | E4: תל אביב | F4: 2007-11-05 | G4: 1238 | H4: 4,400,000 | I4: 16,000,000 | J4: ₪ 3.64 | K4: בי ג'י איי | L4: תל אביב | N4: ₪ 1,000,000 | P4: 4 | Q4: 1 | R4: 550000000
A5: 4 | B5: 510637614 | C5: ויסוניק | D5: תעשיה | E5: תל אביב | F5: 1991-12-25 | G5: 2208 | H5: 1,000,000 | I5: 24,000,000 | J5: ₪ 24.00 | K5: ויסוניק | L5: תל אביב | N5: 0 | P5: 4 | Q5: 2 | R5: 298000000
A6: 5 | B6: 510844913 | C6: רוטקס | D6: תעשיה | E6: כפר סבא | F6: 1998-04-13 | G6: 1440 | H6: 2,400,000 | I6: 38,000,000 | J6: ₪ 15.83 | K6: רוטקס | L6: כפר סבא | N6: ₪ 1,200,000 | P6: 2 | Q6: 3 | R6: 542000000
A7: 6 | B7: 511235434 | C7: קמטק | D7: תעשיה | E7: מגדל העמק | F7: 1998-07-02 | G7: 2174 | H7: 1,600,000 | I7: 18,000,000 | J7: ₪ 11.25 | K7: קמטק | L7: מגדל העמק | N7: ₪ 1,200,000 | P7: 3 | Q7: 4 | R7: 400000000
A8: 7 | B8: 511297541 | C8: אלספק | D8: תעשיה | E8: קיסריה | F8: 2008-03-25 | G8: 1194 | H8: 5,000,000 | I8: 34,000,000 | J8: ₪ 6.80 | K8: אלספק | L8: קיסריה | N8: ₪ 5,000,000 | P8: 1 | Q8: סכום כולל | R8: 1790000000
A9: 8 | B9: 511316903 | C9: כרמל אולפינים | D9: תעשיה | E9: חיפה | F9: 1996-08-06 | G9: 1472 | H9: 3,800,000 | I9: 40,000,000 | J9: ₪ 10.53 | K9: כרמל אולפינים | L9: חיפה | N9: ₪ 2,850,000 | P9: 3
A10: 9 | B10: 511416612 | C10: סינאל תעשיות | D10: תעשיה | E10: יוקנעם | F10: 2005-01-10 | G10: 1115 | H10: 4,600,000 | I10: 44,000,000 | J10: ₪ 9.57 | K10: סינאל תעשיות | L10: יוקנעם | N10: ₪ 4,600,000 | P10: 1
A11: 10 | B11: 511524605 | C11: קמהדע | D11: תעשיה | E11: נס ציונה | F11: 2005-07-18 | G11: 1267 | H11: 4,800,000 | I11: 42,000,000 | J11: ₪ 8.75 | K11: קמהדע | L11: נס ציונה | N11: ₪ 4,800,000 | P11: 3
A12: 11 | B12: 511527202 | C12: מיטרוניקס | D12: תעשיה | E12: קיבוץ יזרעאל | F12: 1997-03-03 | G12: 1212 | H12: 4,600,000 | I12: 40,000,000 | J12: ₪ 8.70 | K12: מיטרוניקס | L12: קיבוץ יזרעאל | N12: ₪ 4,600,000 | P12: 1
A13: 12 | B13: 511651812 | C13: רדויז'ן | D13: תעשיה | E13: תל אביב | F13: 1999-01-20 | G13: 2172 | H13: 2,200,000 | I13: 44,000,000 | J13: ₪ 20.00 | K13: רדויז'ן | L13: תל אביב | N13: 0 | P13: 1
A14: 13 | B14: 511661373 | C14: אזימוט טכנו | D14: תעשיה | E14: רעננה | F14: 1991-08-06 | G14: 1118 | H14: 2,200,000 | I14: 28,000,000 | J14: ₪ 12.73 | K14: אזימוט טכנו | L14: רעננה | N14: ₪ 1,650,000 | P14: 3
A15: 14 | B15: 511722316 | C15: אלווריון | D15: תעשיה | E15: תל אביב | F15: 2004-04-13 | G15: 2173 | H15: 4,800,000 | I15: 32,000,000 | J15: ₪ 6.67 | K15: אלווריון | L15: תל אביב | N15: ₪ 1,000,000 | P15: 2
A16: 15 | B16: 511779639 | C16: קומפיוגן | D16: תעשיה | E16: תל אביב | F16: 1997-09-29 | G16: 2188 | H16: 3,800,000 | I16: 12,000,000 | J16: ₪ 3.16 | K16: קומפיוגן | L16: תל אביב | N16: ₪ 1,000,000 | P16: 3
A17: 16 | B17: 511799835 | C17: די פארם | D17: תעשיה | E17: נס ציונה | F17: 2005-02-19 | G17: 2230 | H17: 1,600,000 | I17: 38,000,000 | J17: ₪ 23.75 | K17: די פארם | L17: נס ציונה | N17: ₪ 400,000 | P17: 1
A18: 17 | B18: 511799983 | C18: טלכור טלקום | D18: תעשיה | E18: נתניה | F18: 2003-10-22 | G18: 1098 | H18: 3,800,000 | I18: 48,000,000 | J18: ₪ 12.63 | K18: טלכור טלקום | L18: נתניה | N18: ₪ 2,850,000 | P18: 4
A19: 18 | B19: 511812463 | C19: נובה | D19: תעשיה | E19: רחובות | F19: 2001-10-20 | G19: 2177 | H19: 5,000,000 | I19: 32,000,000 | J19: ₪ 6.40 | K19: נובה | L19: רחובות | N19: ₪ 5,000,000 | P19: 4
A20: 19 | B20: 511870891 | C20: תדיר גן | D20: תעשיה | E20: עפולה | F20: 2001-06-03 | G20: 1185 | H20: 2,800,000 | I20: 20,000,000 | J20: ₪ 7.14 | K20: תדיר גן | L20: עפולה | N20: ₪ 2,800,000 | P20: 2
A21: 20 | B21: 511888356 | C21: פיסיבי טכנ | D21: תעשיה | E21: מגדל העמק | F21: 1992-02-19 | G21: 1221 | H21: 2,600,000 | I21: 10,000,000 | J21: ₪ 3.85 | K21: פיסיבי טכנ | L21: מגדל העמק | N21: ₪ 2,600,000 | P21: 1
A22: 21 | B22: 511896540 | C22: קווליטאו | D22: תעשיה | E22: נס ציונה | F22: 1994-07-29 | G22: 1093 | H22: 3,200,000 | I22: 22,000,000 | J22: ₪ 6.88 | K22: קווליטאו | L22: נס ציונה | N22: ₪ 3,200,000 | P22: 3
A23: 22 | B23: 511898835 | C23: כלל ביוטכנו | D23: תעשיה | E23: תל אביב | F23: 1999-05-18 | G23: 1447 | H23: 5,000,000 | I23: 50,000,000 | J23: ₪ 10.00 | K23: כלל ביוטכנו | L23: תל אביב | N23: ₪ 1,000,000 | P23: 2
A24: 23 | B24: 511957870 | C24: אי.אם.אס. | D24: תעשיה | E24: ערד | F24: 1997-02-27 | G24: 1120 | H24: 4,600,000 | I24: 24,000,000 | J24: ₪ 5.22 | K24: אי.אם.אס. | L24: ערד | N24: ₪ 4,600,000 | P24: 1
A25: 24 | B25: 512022153 | C25: כן פייט ביופרמה | D25: תעשיה | E25: פתח תקוה | F25: 2005-06-04 | G25: 1272 | H25: 2,600,000 | I25: 50,000,000 | J25: ₪ 19.23 | K25: כן פייט ביופרמה | L25: פתח תקוה | N25: 0 | P25: 2
A26: 25 | B26: 512051699 | C26: אינטרקיור | D26: תעשיה | E26: לוד | F26: 2004-11-09 | G26: 1480 | H26: 2,800,000 | I26: 48,000,000 | J26: ₪ 17.14 | K26: אינטרקיור | L26: לוד | N26: ₪ 1,400,000 | P26: 4
A27: 26 | B27: 512157603 | C27: פוקס | D27: תעשיה | E27: לוד | F27: 1996-03-11 | G27: 1140 | H27: 1,600,000 | I27: 26,000,000 | J27: ₪ 16.25 | K27: פוקס | L27: לוד | N27: ₪ 800,000 | P27: 1
A28: 27 | B28: 512288713 | C28: ספאנטק | D28: תעשיה | E28: טבריה | F28: 1998-09-16 | G28: 1182 | H28: 1,600,000 | I28: 20,000,000 | J28: ₪ 12.50 | K28: ספאנטק | L28: טבריה | N28: ₪ 1,200,000 | P28: 3
A29: 28 | B29: 512352444 | C29: סרגון | D29: תעשיה | E29: תל אביב | F29: 2003-01-16 | G29: 2185 | H29: 3,200,000 | I29: 30,000,000 | J29: ₪ 9.38 | K29: סרגון | L29: תל אביב | N29: ₪ 1,000,000 | P29: 1
A30: 29 | B30: 512367525 | C30: פיברולן | D30: תעשיה | E30: יוקנעם | F30: 2006-03-10 | G30: 1309 | H30: 3,600,000 | I30: 18,000,000 | J30: ₪ 5.00 | K30: פיברולן | L30: יוקנעם | N30: ₪ 3,600,000 | P30: 1
A31: 30 | B31: 512434218 | C31: איתמר מדיקל | D31: תעשיה | E31: קיסריה | F31: 2008-07-16 | G31: 1411 | H31: 2,200,000 | I31: 12,000,000 | J31: ₪ 5.45 | K31: איתמר מדיקל | L31: קיסריה | N31: ₪ 2,200,000 | P31: 3
A32: 31 | B32: 512565730 | C32: מדיקל קומפרישין | D32: תעשיה | E32: אור עקיבא | F32: 1993-07-13 | G32: 1318 | H32: 5,000,000 | I32: 12,000,000 | J32: ₪ 2.40 | K32: מדיקל קומפרישין | L32: אור עקיבא | N32: ₪ 5,000,000 | P32: 3
A33: 32 | B33: 512578022 | C33: גיוון אימג'ינג | D33: תעשיה | E33: יוקנעם | F33: 2003-03-05 | G33: 2200 | H33: 1,000,000 | I33: 34,000,000 | J33: ₪ 34.00 | K33: גיוון אימג'ינג | L33: יוקנעם | N33: 0 | P33: 1
A34: 33 | B34: 512641580 | C34: טי.אר.די | D34: תעשיה | E34: כפר סבא | F34: 1994-11-12 | G34: 1314 | H34: 2,600,000 | I34: 50,000,000 | J34: ₪ 19.23 | K34: טי.אר.די | L34: כפר סבא | N34: ₪ 1,300,000 | P34: 4
A35: 34 | B35: 512665373 | C35: שנפ | D35: תעשיה | E35: נתניה | F35: 2000-11-08 | G35: 1427 | H35: 2,800,000 | I35: 10,000,000 | J35: ₪ 3.57 | K35: שנפ | L35: נתניה | N35: ₪ 2,800,000 | P35: 4
A36: 35 | B36: 512671371 | C36: ביו ויו | D36: תעשיה | E36: רחובות | F36: 1997-08-16 | G36: 1305 | H36: 3,600,000 | I36: 18,000,000 | J36: ₪ 5.00 | K36: ביו ויו | L36: רחובות | N36: ₪ 3,600,000 | P36: 3
A37: 36 | B37: 520041575 | C37: המלט | D37: תעשיה | E37: נצרת עילית | F37: 2007-11-05 | G37: 68 | H37: 4,800,000 | I37: 46,000,000 | J37: ₪ 9.58 | K37: המלט | L37: נצרת עילית | N37: ₪ 4,800,000 | P37: 4
A38: 37 | B38: 520041682 | C38: ברקן | D38: תעשיה | E38: קיבוץ חולדה | F38: 1992-04-04 | G38: 1003 | H38: 4,000,000 | I38: 12,000,000 | J38: ₪ 3.00 | K38: ברקן | L38: קיבוץ חולדה | N38: ₪ 4,000,000 | P38: 2
A39: 38 | B39: 520041732 | C39: שניב | D39: תעשיה | E39: פתח תקוה | F39: 1998-07-07 | G39: 1025 | H39: 1,600,000 | I39: 26,000,000 | J39: ₪ 16.25 | K39: שניב | L39: פתח תקוה | N39: 0 | P39: 3
A40: 39 | B40: 520041823 | C40: רימוני | D40: תעשיה | E40: פתח תקוה | F40: 1998-04-13 | G40: 76 | H40: 2,400,000 | I40: 50,000,000 | J40: ₪ 20.83 | K40: רימוני | L40: פתח תקוה | N40: 0 | P40: 2
A41: 40 | B41: 520041872 | C41: גמאטרוניק | D41: תעשיה | E41: ירושלים | F41: 2006-03-10 | G41: 1001 | H41: 2,800,000 | I41: 32,000,000 | J41: ₪ 11.43 | K41: גמאטרוניק | L41: ירושלים | N41: ₪ 2,100,000 | P41: 1
A42: 41 | B42: 520041955 | C42: די מדיקל | D42: תעשיה | E42: רמת גן | F42: 2008-07-16 | G42: 1010 | H42: 3,200,000 | I42: 16,000,000 | J42: ₪ 5.00 | K42: די מדיקל | L42: רמת גן | N42: ₪ 1,000,000 | P42: 3
A43: 42 | B43: 520041997 | C43: טאואר | D43: תעשיה | E43: מגדל העמק | F43: 2002-04-13 | G43: 2028 | H43: 2,400,000 | I43: 20,000,000 | J43: ₪ 8.33 | K43: טאואר | L43: מגדל העמק | N43: ₪ 2,400,000 | P43: 2
A44: 43 | B44: 520042003 | C44: רקח | D44: תעשיה | E44: חולון | F44: 2005-07-06 | G44: 1033 | H44: 1,600,000 | I44: 34,000,000 | J44: ₪ 21.25 | K44: רקח | L44: חולון | N44: 0 | P44: 3
A45: 44 | B45: 520042375 | C45: דור כימיקלים | D45: תעשיה | E45: חיפה | F45: 1996-08-21 | G45: 1027 | H45: 3,200,000 | I45: 38,000,000 | J45: ₪ 11.88 | K45: דור כימיקלים | L45: חיפה | N45: ₪ 2,400,000 | P45: 3
A46: 45 | B46: 520042441 | C46: אפסק | D46: תעשיה | E46: קרית אתא | F46: 2004-09-24 | G46: 1035 | H46: 3,600,000 | I46: 44,000,000 | J46: ₪ 12.22 | K46: אפסק | L46: קרית אתא | N46: ₪ 2,700,000 | P46: 3
A47: 46 | B47: 520042458 | C47: מלתא | D47: תעשיה | E47: נצרת עילית | F47: 2005-01-10 | G47: 1028 | H47: 5,000,000 | I47: 50,000,000 | J47: ₪ 10.00 | K47: מלתא | L47: נצרת עילית | N47: ₪ 5,000,000 | P47: 1
A48: 47 | B48: 520042805 | C48: פרוטרום | D48: תעשיה | E48: חיפה | F48: 2006-12-28 | G48: 1037 | H48: 2,400,000 | I48: 24,000,000 | J48: ₪ 10.00 | K48: פרוטרום | L48: חיפה | N48: ₪ 2,400,000 | P48: 4
A49: 48 | B49: 520042870 | C49: אורכית | D49: תעשיה | E49: תל אביב | F49: 2003-08-09 | G49: 2093 | H49: 5,000,000 | I49: 48,000,000 | J49: ₪ 9.60 | K49: אורכית | L49: תל אביב | N49: ₪ 1,000,000 | P49: 3
A50: 49 | B50: 520042912 | C50: פלסאון תעשיות | D50: תעשיה | E50: מנשה | F50: 1999-01-20 | G50: 1057 | H50: 4,000,000 | I50: 38,000,000 | J50: ₪ 9.50 | K50: פלסאון תעשיות | L50: מנשה | N50: ₪ 4,000,000 | P50: 1
A51: 50 | B51: 520043027 | C51: אלביט מערכות | D51: תעשיה | E51: חיפה | F51: 2003-12-09 | G51: 1040 | H51: 1,600,000 | I51: 22,000,000 | J51: ₪ 13.75 | K51: אלביט מערכות | L51: חיפה | N51: ₪ 1,200,000 | P51: 4
A52: 51 | B52: 520043407 | C52: תפרון | D52: תעשיה | E52: פתח תקוה | F52: 1991-08-06 | G52: 2076 | H52: 2,600,000 | I52: 36,000,000 | J52: ₪ 13.85 | K52: תפרון | L52: פתח תקוה | N52: 0 | P52: 3
A53: 52 | B53: 520043480 | C53: בית שמש | D53: תעשיה | E53: בית שמש | F53: 2003-12-09 | G53: 1054 | H53: 1,000,000 | I53: 48,000,000 | J53: ₪ 48.00 | K53: בית שמש | L53: בית שמש | N53: 0 | P53: 4
A54: 53 | B54: 520043605 | C54: מ.א. תעשיות | D54: תעשיה | E54: לוד | F54: 1993-08-14 | G54: 1063 | H54: 5,000,000 | I54: 34,000,000 | J54: ₪ 6.80 | K54: מ.א. תעשיות | L54: לוד | N54: ₪ 5,000,000 | P54: 3
A55: 54 | B55: 520043803 | C55: אפקון אלקטרו | D55: תעשיה | E55: פתח תקוה | F55: 2005-02-19 | G55: 1067 | H55: 4,800,000 | I55: 26,000,000 | J55: ₪ 5.42 | K55: אפקון אלקטרו | L55: פתח תקוה | N55: ₪ 1,000,000 | P55: 1
A56: 55 | B56: 520044132 | C56: אודיוקודס | D56: תעשיה | E56: לוד | F56: 1992-02-19 | G56: 2134 | H56: 2,400,000 | I56: 18,000,000 | J56: ₪ 7.50 | K56: אודיוקודס | L56: לוד | N56: ₪ 2,400,000 | P56: 1
A57: 56 | B57: 520044199 | C57: יוניטרוניקס | D57: תעשיה | E57: לוד | F57: 1999-07-15 | G57: 2170 | H57: 3,800,000 | I57: 42,000,000 | J57: ₪ 11.05 | K57: יוניטרוניקס | L57: לוד | N57: ₪ 2,850,000 | P57: 3
A58: 57 | B58: 520044488 | C58: מטאלינק | D58: תעשיה | E58: קיבוץ יקום | F58: 2005-01-10 | G58: 2161 | H58: 1,600,000 | I58: 44,000,000 | J58: ₪ 27.50 | K58: מטאלינק | L58: קיבוץ יקום | N58: =IF(OR(E58=$N$70,E58=$N$71,E58=$N$72,E58=$N$73),IF(J58<$O$75,$O$70,$O$71),H58*VLOOKUP(J58,$N$78:$O$82,2)) -> 0 | P58: 1
P59: חודש רישום | Q59: שיוך לרבעון
P60: 0 | Q60: 1
P61: 4 | Q61: 2
P62: 7 | Q62: 3
P63: 10 | Q63: 4
B69: שאלה 5 | N69: שאלה 2
A70: 510999999 | B70: =FREQUENCY(#REF!,A70:A73) ->  | I70: שאלה 1 | N70: רמת גן | O70: ₪ 1,000,000.00
A71: 511999999 | I71: =MAX(I2:I58) -> 50,000,000 | J71: =AVERAGEIF(E2:E69,#REF!,J2:J69) ->  | K71: =VLOOKUP(I71,$I$2:$L$58,3,0) -> כלל ביוטכנו | L71: =VLOOKUP(I71,$I$2:$L$58,4,0) -> תל אביב | N71: חולון | O71: 0
A72: 512999999 | N72: תל אביב
A73: 520999999 | N73: פתח תקוה
N75: =OR(E2=$N$70,E2=$N$71,E2=$N$72,E2=$N$73) -> TRUE | O75: =DAVERAGE(E1:J58,J1,N74:N75) -> ₪ 12.24
N77: שווי שוק למניה | O77: מענק למניה מונפקת
N78: 0 | O78: ₪ 1.00
N79: 10.01 | O79: ₪ 0.75
N80: 15.01 | O80: ₪ 0.50
N81: 20.01 | O81: ₪ 0.25
N82: 25.01 | O82: 0
A90: עיר | B90: שווי שוק בש"ח | C90: שווי שוק בש"ח
B91: >=20,000,000 | C91: <=40,000,000
A92: כפר סבא
A93: מגדל העמק
A94: קיסריה
A95: חיפה
A96: יוקנעם
A97: נס ציונה
A98: קיבוץ יזרעאל
A99: רעננה | O99: =SUM(N2:N58) -> ₪ 119,500,000
A100: נתניה | M100: שאלה 8 | N100: 0 | O100: ₪ 119,500,000
A101: רחובות | N101: ₪ 0.01 | O101: ₪ 119,536,000
A102: עפולה | N102: ₪ 0.02 | O102: ₪ 119,572,000
A103: ערד | N103: ₪ 0.03 | O103: ₪ 119,608,000
A104: לוד | N104: ₪ 0.04 | O104: ₪ 119,644,000
A105: טבריה | N105: ₪ 0.05 | O105: ₪ 119,680,000
A106: אור עקיבא | N106: ₪ 0.06 | O106: ₪ 119,716,000
A107: נצרת עילית | N107: ₪ 0.07 | O107: ₪ 119,752,000
A108: קיבוץ חולדה | N108: ₪ 0.08 | O108: ₪ 119,788,000
A109: ירושלים | N109: ₪ 0.09 | O109: ₪ 119,824,000
A110: קרית אתא | N110: ₪ 0.10 | O110: ₪ 119,860,000
A111: מנשה | N111: ₪ 0.11 | O111: ₪ 119,896,000
A112: בית שמש | N112: ₪ 0.12 | O112: ₪ 119,932,000
A113: קיבוץ יקום | N113: ₪ 0.13 | O113: ₪ 119,968,000
N114: ₪ 0.14 | O114: ₪ 120,004,000
N115: ₪ 0.15 | O115: ₪ 120,040,000
N116: ₪ 0.16 | O116: ₪ 120,076,000
N117: ₪ 0.17 | O117: ₪ 120,112,000
N118: ₪ 0.18 | O118: ₪ 120,148,000
N119: ₪ 0.19 | O119: ₪ 120,184,000
A120: שם החברה | B120: תאריך רישום לבורסה | C120: שווי שוק בש"ח | N120: ₪ 0.20 | O120: ₪ 120,220,000
A121: ארד | B121: 2003-05-21 | C121: 26,000,000 | N121: ₪ 0.21 | O121: ₪ 120,256,000
A122: אבגול | B122: 2002-11-25 | C122: 32,000,000 | N122: ₪ 0.22 | O122: ₪ 120,292,000
A123: ויסוניק | B123: 1991-12-25 | C123: 24,000,000 | N123: ₪ 0.23 | O123: ₪ 120,328,000
A124: רוטקס | B124: 1998-04-13 | C124: 38,000,000 | N124: ₪ 0.24 | O124: ₪ 120,364,000
A125: קמטק | B125: 1998-07-02 | C125: 18,000,000 | N125: ₪ 0.25 | O125: ₪ 120,400,000
A126: אלספק | B126: 2008-03-25 | C126: 34,000,000
A127: כרמל אולפינים | B127: 1996-08-06 | C127: 40,000,000
A128: סינאל תעשיות | B128: 2005-01-10 | C128: 44,000,000
A129: קמהדע | B129: 2005-07-18 | C129: 42,000,000
A130: מיטרוניקס | B130: 1997-03-03 | C130: 40,000,000
A131: אזימוט טכנו | B131: 1991-08-06 | C131: 28,000,000
A132: אלווריון | B132: 2004-04-13 | C132: 32,000,000
A133: די פארם | B133: 2005-02-19 | C133: 38,000,000
A134: טלכור טלקום | B134: 2003-10-22 | C134: 48,000,000
A135: נובה | B135: 2001-10-20 | C135: 32,000,000
A136: תדיר גן | B136: 2001-06-03 | C136: 20,000,000
A137: פיסיבי טכנ | B137: 1992-02-19 | C137: 10,000,000
A138: קווליטאו | B138: 1994-07-29 | C138: 22,000,000
A139: אי.אם.אס. | B139: 1997-02-27 | C139: 24,000,000
A140: אינטרקיור | B140: 2004-11-09 | C140: 48,000,000
A141: פוקס | B141: 1996-03-11 | C141: 26,000,000
A142: ספאנטק | B142: 1998-09-16 | C142: 20,000,000
A143: סרגון | B143: 2003-01-16 | C143: 30,000,000
A144: פיברולן | B144: 2006-03-10 | C144: 18,000,000
A145: איתמר מדיקל | B145: 2008-07-16 | C145: 12,000,000
A146: מדיקל קומפרישין | B146: 1993-07-13 | C146: 12,000,000
A147: גיוון אימג'ינג | B147: 2003-03-05 | C147: 34,000,000
A148: טי.אר.די | B148: 1994-11-12 | C148: 50,000,000
A149: שנפ | B149: 2000-11-08 | C149: 10,000,000
A150: ביו ויו | B150: 1997-08-16 | C150: 18,000,000
A151: המלט | B151: 2007-11-05 | C151: 46,000,000
A152: ברקן | B152: 1992-04-04 | C152: 12,000,000
A153: שניב | B153: 1998-07-07 | C153: 26,000,000
A154: גמאטרוניק | B154: 2006-03-10 | C154: 32,000,000
A155: טאואר | B155: 2002-04-13 | C155: 20,000,000
A156: רקח | B156: 2005-07-06 | C156: 34,000,000
A157: דור כימיקלים | B157: 1996-08-21 | C157: 38,000,000
A158: אפסק | B158: 2004-09-24 | C158: 44,000,000
A159: מלתא | B159: 2005-01-10 | C159: 50,000,000
A160: פרוטרום | B160: 2006-12-28 | C160: 24,000,000
A161: פלסאון תעשיות | B161: 1999-01-20 | C161: 38,000,000
A162: אלביט מערכות | B162: 2003-12-09 | C162: 22,000,000
A163: תפרון | B163: 1991-08-06 | C163: 36,000,000
A164: בית שמש | B164: 2003-12-09 | C164: 48,000,000
A165: מ.א. תעשיות | B165: 1993-08-14 | C165: 34,000,000
A166: אפקון אלקטרו | B166: 2005-02-19 | C166: 26,000,000
A167: אודיוקודס | B167: 1992-02-19 | C167: 18,000,000
A168: יוניטרוניקס | B168: 1999-07-15 | C168: 42,000,000
A169: מטאלינק | B169: 2005-01-10 | C169: 44,000,000

Sheet פתרון תרגיל 1
A1: ספריית השאלה - בלוק מאסטר
A2: קוד מוצר | B2: שם מוצר | C2: ז'אנר | D2: עלות | E2: כמות במלאי | F2: ערך המלאי | G2: מחיר ליממה ללא מע"מ | H2: מחיר ליממה לאחר הנחה | I2: מחיר ליממה לאחר הנחה כולל מע"מ
A3: 51-361 | B3: טרון | C3: מתח/פעולה | D3: ₪ 7.00 | E3: 2 | F3: ₪ 14.00 | G3: ₪ 15.00 | H3: ₪ 13.50 | I3: ₪ 15.66
A4: 51-362 | B4: כלבת | C4: אימה | D4: ₪ 7.90 | E4: 4 | F4: ₪ 31.60 | G4: ₪ 16.00 | H4: ₪ 14.40 | I4: ₪ 16.70
A5: 51-363 | B5: הארי פוטר | C5: מתח/פעולה | D5: ₪ 8.80 | E5: 6 | F5: ₪ 52.80 | G5: ₪ 17.00 | H5: ₪ 15.30 | I5: ₪ 17.75
A6: 51-364 | B6: משחק הוגן | C6: דרמה | D6: ₪ 9.70 | E6: 8 | F6: ₪ 77.60 | G6: ₪ 18.00 | H6: ₪ 16.20 | I6: ₪ 18.79
A7: 51-365 | B7: הדקדוק הפנימי | C7: דרמה | D7: ₪ 10.60 | E7: 10 | F7: ₪ 106.00 | G7: ₪ 19.00 | H7: ₪ 17.10 | I7: ₪ 19.84
A8: 51-366 | B8: הסיפור עפ"י בארני | C8: דרמה | D8: ₪ 11.50 | E8: 8 | F8: ₪ 92.00 | G8: ₪ 20.00 | H8: ₪ 18.00 | I8: ₪ 20.88
A9: 51-367 | B9: תמרה דרו | C9: קומדיה/רומנטי | D9: ₪ 12.40 | E9: 6 | F9: ₪ 74.40 | G9: ₪ 21.00 | H9: ₪ 18.90 | I9: ₪ 21.92
A10: 51-368 | B10: זוהי סדום | C10: קומדיה/רומנטי | D10: ₪ 13.30 | E10: 4 | F10: ₪ 53.20 | G10: ₪ 22.00 | H10: ₪ 19.80 | I10: ₪ 22.97
A11: 51-369 | B11: ארתור | C11: ילדים | D11: ₪ 14.20 | E11: 2 | F11: ₪ 28.40 | G11: ₪ 23.00 | H11: ₪ 20.70 | I11: ₪ 24.01
A12: 51-370 | B12: מגה מוח | C12: ילדים | D12: ₪ 15.10 | E12: 10 | F12: ₪ 151.00 | G12: ₪ 24.00 | H12: ₪ 21.60 | I12: ₪ 25.06
A14: תאי עזר:
A15: שעור ההנחה | B15: 10.00%
A16: שיעור המע"מ | B16: 16.00%
A18: ז'אנרים: | B18: מתח/פעולה
B19: דרמה
B20: קומדיה/רומנטי
B21: אימה
B22: ילדים
B24: 0
B25: 25

Sheet קובץ נתונים תרגיל 3
A1: מספר תאגיד | B1: שם החברה | C1: ענף | D1: עיר | E1: תאריך הקמת החברה | F1: מספר מניות מונפקות | G1: שווי שוק בש"ח
A2: 510119068 | B2: אברסייל | C2: נדל"ן | D2: רמת השרון | E2: 1999-09-29 | F2: 3,600,000 | G2: 30,000,000
A3: 511661373 | B3: אזימון | C3: תעשיה | D3: כפר סבא | E3: 2007-11-22 | F3: 1,500,000 | G3: 30,000,000
A4: 520041773 | B4: איזיטק | C4: מסחר ושרותים | D4: רמת גן | E4: 1998-08-21 | F4: 5,000,000 | G4: 20,000,000
A5: 520043928 | B5: אינורון | C5: השקעה ואחזקות | D5: רמת השרון | E5: 2008-01-26 | F5: 3,400,000 | G5: 40,000,000
A6: 512434218 | B6: מדיק | C6: תעשיה | D6: חיפה | E6: 1996-08-13 | F6: 2,300,000 | G6: 18,000,000
A7: 520043035 | B7: אלביר הדמיה | C7: השקעה ואחזקות | D7: רמת השרון | E7: 2008-03-10 | F7: 3,600,000 | G7: 45,000,000
A8: 511722316 | B8: אלווריוט | C8: תעשיה | D8: רמת השרון | E8: 2005-05-21 | F8: 4,600,000 | G8: 34,000,000
A9: 520041963 | B9: אנלין | C9: מסחר ושרותים | D9: רמת השרון | E9: 2010-07-16 | F9: 5,000,000 | G9: 28,000,000
A10: 510007800 | B10: ארם | C10: תעשיה | D10: רמת השרון | E10: 1993-04-02 | F10: 5,000,000 | G10: 24,000,000
A11: 512623950 | B11: כסיל אחזקות | C11: השקעה ואחזקות | D11: רמת השרון | E11: 1997-02-08 | F11: 1,000,000 | G11: 50,000,000
A12: 512578022 | B12: גינון | C12: תעשיה | D12: עכו | E12: 2001-08-13 | F12: 1,200,000 | G12: 32,000,000
A13: 512623869 | B13: גלובוס ברנר | C13: השקעה ואחזקות | D13: רמת השרון | E13: 2003-10-20 | F13: 3,400,000 | G13: 45,000,000
A14: 512112806 | B14: דורסלט | C14: נדל"ן | D14: עכו | E14: 2006-04-13 | F14: 2,400,000 | G14: 22,000,000
A15: 520041740 | B15: וואיינסט | C15: מסחר ושרותים | D15: רמת השרון | E15: 1998-06-12 | F15: 3,800,000 | G15: 32,000,000
A16: 512096793 | B16: ויתן | C16: נדל"ן | D16: רמת השרון | E16: 2006-03-02 | F16: 1,000,000 | G16: 32,000,000
A17: 512557596 | B17: טסנת | C17: השקעה ואחזקות | D17: רמת השרון | E17: 1992-10-21 | F17: 3,200,000 | G17: 42,000,000
A18: 520042466 | B18: יורו פאונד | C18: השקעה ואחזקות | D18: נהריה | E18: 2001-01-20 | F18: 3,800,000 | G18: 20,000,000
A19: 511316903 | B19: אולפיניטים | C19: תעשיה | D19: נהריה | E19: 2006-04-13 | F19: 3,600,000 | G19: 36,000,000
A20: 512073453 | B20: פרידום | C20: נדל"ן | D20: רמת גן | E20: 1993-12-25 | F20: 3,200,000 | G20: 26,000,000
A21: 512420647 | B21: ונצוסט | C21: השקעה ואחזקות | D21: באר שבע | E21: 2005-01-16 | F21: 3,800,000 | G21: 22,000,000
A22: 511812463 | B22: אנובה | C22: תעשיה | D22: שדרות | E22: 2007-01-10 | F22: 5,000,000 | G22: 36,000,000
A23: 512758350 | B23: נקסט | C23: מסחר ושרותים | D23: הרצליה | E23: 1998-08-06 | F23: 2,200,000 | G23: 46,000,000
A24: 550011373 | B24: מפטא | C24: חיפושי נפט וגז | D24: הרצליה | E24: 1993-01-12 | F24: 1,000,000 | G24: 22,000,000
A25: 520043159 | B25: נצבא | C25: נדל"ן | D25: הרצליה | E25: 1993-08-06 | F25: 4,400,000 | G25: 20,000,000
A26: 520041674 | B26: סיסטקום | C26: מסחר ושרותים | D26: הרצליה | E26: 2000-09-11 | F26: 3,600,000 | G26: 40,000,000
A27: 511416612 | B27: סינטאל | C27: תעשיה | D27: עכו | E27: 2004-06-12 | F27: 4,600,000 | G27: 42,000,000
A28: 520041641 | B28: ססניקום | C28: מסחר ושרותים | D28: קריית שמונה | E28: 2003-08-11 | F28: 2,400,000 | G28: 40,000,000
A29: 512352444 | B29: סרגום | C29: נדל"ן | D29: רמת השרון | E29: 2004-07-05 | F29: 3,000,000 | G29: 28,000,000
A30: 512483629 | B30: פולאן | C30: נדל"ן | D30: רמת השרון | E30: 1999-03-03 | F30: 1,000,000 | G30: 44,000,000
A31: 512367525 | B31: פברולם | C31: תעשיה | D31: עכו | E31: 2001-01-20 | F31: 3,800,000 | G31: 12,000,000
A32: 520041666 | B32: פיננסי | C32: השקעה ואחזקות | D32: רמת השרון | E32: 1999-12-19 | F32: 4,400,000 | G32: 22,000,000
A33: 511779639 | B33: קומפיוגר | C33: נדל"ן | D33: רמת השרון | E33: 2001-08-13 | F33: 3,600,000 | G33: 18,000,000
A34: 511972374 | B34: קרדם | C34: השקעה ואחזקות | D34: רמת השרון | E34: 2006-11-29 | F34: 4,600,000 | G34: 34,000,000
A35: 511651812 | B35: רדויזמם | C35: נדל"ן | D35: רמת השרון | E35: 2005-03-05 | F35: 1,800,000 | G35: 38,000,000
A36: 550012777 | B36: רציו | C36: חיפושי נפט וגז | D36: רמת השרון | E36: 1993-04-02 | F36: 2,800,000 | G36: 22,000,000
A37: 512101460 | B37: תמירים | C37: השקעה ואחזקות | D37: רמת השרון | E37: 1997-03-11 | F37: 1,200,000 | G37: 42,000,000
A38: 520041948 | B38: תשואות 2000 | C38: נדל"ן | D38: רמת גן | E38: 2010-05-01 | F38: 1,200,000 | G38: 30,000,000

Sheet קובץ נתונים תרגיל 4
A1: Order ID | B1: Customer | C1: Employee | D1: Order Date | E1: Required Date | F1: Shipped Date | G1: Ship Via | H1: Freight | I1: Ship Country | Q1: תאריך | R1: שעת ציאה | S1: שעת כניסה
A2: 10643 | B2: Alfreds Futterkiste | C2: Suyama, Michael | D2: 2010-08-25 | E2: 2010-09-22 | F2: 2010-09-02 | G2: Speedy Express | H2: ₪ 61.02 | I2: Germany | Q2: 2012-03-06 | R2: 17:00:00 | S2: 09:00:00
A3: 10952 | B3: Alfreds Futterkiste | C3: Davolio, Nancy | D3: 2010-03-16 | E3: 2011-04-27 | F3: 2011-03-24 | G3: Speedy Express | H3: ₪ 40.42 | I3: Germany | Q3: 2012-03-07 | R3: 16:45:00 | S3: 09:15:00
A4: 10692 | B4: Alfreds Futterkiste | C4: Peacock, Margaret | D4: 2010-10-03 | E4: 2010-10-31 | F4: 2010-10-13 | G4: United Package | H4: ₪ 61.02 | I4: Germany | Q4: 2012-03-08 | R4: 17:10:00 | S4: 08:50:00
A5: 10625 | B5: Ana Trujillo Emparedados y helados | C5: Leverling, Janet | D5: 2010-08-08 | E5: 2010-09-05 | F5: 2010-08-14 | G5: Speedy Express | H5: ₪ 43.90 | I5: Mexico | Q5: 2012-03-09 | R5: 16:40:00 | S5: 09:05:00
A6: 10759 | B6: Ana Trujillo Emparedados y helados | C6: Leverling, Janet | D6: 2010-11-28 | E6: 2010-12-26 | F6: 2010-12-12 | G6: Federal Shipping | H6: ₪ 11.99 | I6: Mexico
A7: 10856 | B7: Antonio Moreno Taquería | C7: Leverling, Janet | D7: 2010-01-28 | E7: 2011-02-25 | F7: 2011-02-10 | G7: United Package | H7: ₪ 58.43 | I7: Mexico
A8: 10573 | B8: Antonio Moreno Taquería | C8: King, Robert | D8: 2010-06-19 | E8: 2010-07-17 | F8: 2010-06-20 | G8: Federal Shipping | H8: ₪ 84.84 | I8: Mexico
A9: 10535 | B9: Antonio Moreno Taquería | C9: Peacock, Margaret | D9: 2010-05-13 | E9: 2010-06-10 | F9: 2010-05-21 | G9: Speedy Express | H9: ₪ 15.64 | I9: Mexico
A10: 10365 | B10: Antonio Moreno Taquería | C10: Leverling, Janet | D10: 2009-11-27 | E10: 2009-12-25 | F10: 2009-12-02 | G10: United Package | H10: ₪ 22.00 | I10: Mexico
A11: 10677 | B11: Antonio Moreno Taquería | C11: Davolio, Nancy | D11: 2010-09-22 | E11: 2010-10-20 | F11: 2010-09-26 | G11: Federal Shipping | H11: ₪ 4.03 | I11: Mexico
A12: 11016 | B12: Around the Horn | C12: Dodsworth, Anne | D12: 2010-04-10 | E12: 2011-05-08 | F12: 2011-04-13 | G12: United Package | H12: ₪ 33.80 | I12: UK
A13: 10864 | B13: Around the Horn | C13: Peacock, Margaret | D13: 2010-02-02 | E13: 2011-03-02 | F13: 2011-02-09 | G13: United Package | H13: ₪ 3.04 | I13: UK
A14: 10743 | B14: Around the Horn | C14: Davolio, Nancy | D14: 2010-11-17 | E14: 2010-12-15 | F14: 2010-11-21 | G14: United Package | H14: ₪ 23.72 | I14: UK
A15: 10953 | B15: Around the Horn | C15: Dodsworth, Anne | D15: 2010-03-16 | E15: 2011-03-30 | F15: 2011-03-25 | G15: United Package | H15: ₪ 23.72 | I15: UK
A16: 10741 | B16: Around the Horn | C16: Peacock, Margaret | D16: 2010-11-14 | E16: 2010-11-28 | F16: 2010-11-18 | G16: Federal Shipping | H16: ₪ 10.96 | I16: UK
A17: 10707 | B17: Around the Horn | C17: Peacock, Margaret | D17: 2010-10-16 | E17: 2010-10-30 | F17: 2010-10-23 | G17: Federal Shipping | H17: ₪ 21.74 | I17: UK
A18: 10453 | B18: Around the Horn | C18: Davolio, Nancy | D18: 2010-02-21 | E18: 2010-03-21 | F18: 2010-02-26 | G18: United Package | H18: ₪ 25.36 | I18: UK
A19: 10524 | B19: Berglunds snabbköp | C19: Davolio, Nancy | D19: 2010-05-01 | E19: 2010-05-29 | F19: 2010-05-07 | G19: United Package | H19: ₪ 244.79 | I19: Sweden
A20: 10924 | B20: Berglunds snabbköp | C20: Leverling, Janet | D20: 2010-03-04 | E20: 2011-04-01 | F20: 2011-04-08 | G20: United Package | H20: ₪ 151.52 | I20: Sweden
A21: 10672 | B21: Berglunds snabbköp | C21: Dodsworth, Anne | D21: 2010-09-17 | E21: 2010-10-01 | F21: 2010-09-26 | G21: United Package | H21: ₪ 95.75 | I21: Sweden
A22: 10866 | B22: Berglunds snabbköp | C22: Buchanan, Steven | D22: 2010-02-03 | E22: 2011-03-03 | F22: 2011-02-12 | G22: Speedy Express | H22: ₪ 109.11 | I22: Sweden
A23: 10278 | B23: Berglunds snabbköp | C23: Callahan, Laura | D23: 2009-08-12 | E23: 2009-09-09 | F23: 2009-08-16 | G23: United Package | H23: ₪ 92.69 | I23: Sweden
A24: 10875 | B24: Berglunds snabbköp | C24: Peacock, Margaret | D24: 2010-02-06 | E24: 2011-03-06 | F24: 2011-03-03 | G24: United Package | H24: ₪ 32.37 | I24: Sweden
A25: 10582 | B25: Blauer See Delikatessen | C25: Leverling, Janet | D25: 2010-06-27 | E25: 2010-07-25 | F25: 2010-07-14 | G25: United Package | H25: ₪ 27.71 | I25: Germany
A26: 10614 | B26: Blauer See Delikatessen | C26: Callahan, Laura | D26: 2010-07-29 | E26: 2010-08-26 | F26: 2010-08-01 | G26: Federal Shipping | H26: ₪ 1.93 | I26: Germany
A27: 10628 | B27: Blondel père et fils | C27: Peacock, Margaret | D27: 2010-08-12 | E27: 2010-09-09 | F27: 2010-08-20 | G27: Federal Shipping | H27: ₪ 30.36 | I27: France
A28: 10679 | B28: Blondel père et fils | C28: Callahan, Laura | D28: 2010-09-23 | E28: 2010-10-21 | F28: 2010-09-30 | G28: Federal Shipping | H28: ₪ 27.94 | I28: France
A29: 10297 | B29: Blondel père et fils | C29: Buchanan, Steven | D29: 2009-09-04 | E29: 2009-10-16 | F29: 2009-09-10 | G29: United Package | H29: ₪ 5.74 | I29: France
A30: 10584 | B30: Blondel père et fils | C30: Peacock, Margaret | D30: 2010-06-30 | E30: 2010-07-28 | F30: 2010-07-04 | G30: Speedy Express | H30: ₪ 59.14 | I30: France
A31: 10436 | B31: Blondel père et fils | C31: Leverling, Janet | D31: 2010-02-05 | E31: 2010-03-05 | F31: 2010-02-11 | G31: United Package | H31: ₪ 156.66 | I31: France
A32: 10326 | B32: Bólido Comidas preparadas | C32: Peacock, Margaret | D32: 2009-10-10 | E32: 2009-11-07 | F32: 2009-10-14 | G32: United Package | H32: ₪ 77.92 | I32: Spain
A33: 10970 | B33: Bólido Comidas preparadas | C33: Dodsworth, Anne | D33: 2010-03-24 | E33: 2011-04-07 | F33: 2011-04-24 | G33: Speedy Express | H33: ₪ 16.16 | I33: Spain
A34: 10876 | B34: Bon app' | C34: King, Robert | D34: 2010-02-09 | E34: 2011-03-09 | F34: 2011-02-12 | G34: Federal Shipping | H34: ₪ 60.42 | I34: France
A35: 10470 | B35: Bon app' | C35: Peacock, Margaret | D35: 2010-03-11 | E35: 2010-04-08 | F35: 2010-03-14 | G35: United Package | H35: ₪ 64.56 | I35: France
A36: 10663 | B36: Bon app' | C36: Fuller, Andrew | D36: 2010-09-10 | E36: 2010-09-24 | F36: 2010-10-03 | G36: United Package | H36: ₪ 113.15 | I36: France
A37: 10827 | B37: Bon app' | C37: Davolio, Nancy | D37: 2010-01-12 | E37: 2011-01-26 | F37: 2011-02-06 | G37: United Package | H37: ₪ 63.54 | I37: France
A38: 10340 | B38: Bon app' | C38: Davolio, Nancy | D38: 2009-10-29 | E38: 2009-11-26 | F38: 2009-11-08 | G38: Federal Shipping | H38: ₪ 166.31 | I38: France
A39: 10331 | B39: Bon app' | C39: Dodsworth, Anne | D39: 2009-10-16 | E39: 2009-11-27 | F39: 2009-10-21 | G39: Speedy Express | H39: ₪ 10.19 | I39: France
A40: 10871 | B40: Bon app' | C40: Dodsworth, Anne | D40: 2010-02-05 | E40: 2011-03-05 | F40: 2011-02-10 | G40: United Package | H40: ₪ 112.27 | I40: France
A41: 10362 | B41: Bon app' | C41: Leverling, Janet | D41: 2009-11-25 | E41: 2009-12-23 | F41: 2009-11-28 | G41: Speedy Express | H41: ₪ 96.04 | I41: France
A42: 10944 | B42: Bottom-Dollar Markets | C42: Suyama, Michael | D42: 2010-03-12 | E42: 2011-03-26 | F42: 2011-03-13 | G42: Federal Shipping | H42: ₪ 52.92 | I42: Canada
A43: 10431 | B43: Bottom-Dollar Markets | C43: Peacock, Margaret | D43: 2010-01-30 | E43: 2010-02-13 | F43: 2010-02-07 | G43: United Package | H43: ₪ 44.17 | I43: Canada
A44: 10411 | B44: Bottom-Dollar Markets | C44: Dodsworth, Anne | D44: 2010-01-10 | E44: 2010-02-07 | F44: 2010-01-21 | G44: Federal Shipping | H44: ₪ 23.65 | I44: Canada
A45: 10410 | B45: Bottom-Dollar Markets | C45: Leverling, Janet | D45: 2010-01-10 | E45: 2010-02-07 | F45: 2010-01-15 | G45: Federal Shipping | H45: ₪ 2.40 | I45: Canada
A46: 11027 | B46: Bottom-Dollar Markets | C46: Davolio, Nancy | D46: 2010-04-16 | E46: 2011-05-14 | F46: 2011-04-20 | G46: Speedy Express | H46: ₪ 52.52 | I46: Canada
A47: 10492 | B47: Bottom-Dollar Markets | C47: Leverling, Janet | D47: 2010-04-01 | E47: 2010-04-29 | F47: 2010-04-11 | G47: Speedy Express | H47: ₪ 62.89 | I47: Canada
A48: 10742 | B48: Bottom-Dollar Markets | C48: Leverling, Janet | D48: 2010-11-14 | E48: 2010-12-12 | F48: 2010-11-18 | G48: Federal Shipping | H48: ₪ 243.73 | I48: Canada
A49: 10918 | B49: Bottom-Dollar Markets | C49: Leverling, Janet | D49: 2010-03-02 | E49: 2011-03-30 | F49: 2011-03-11 | G49: Federal Shipping | H49: ₪ 48.83 | I49: Canada
A50: 10975 | B50: Bottom-Dollar Markets | C50: Davolio, Nancy | D50: 2010-03-25 | E50: 2011-04-22 | F50: 2011-03-27 | G50: Federal Shipping | H50: ₪ 32.27 | I50: Canada
A51: 10578 | B51: B's Beverages | C51: Peacock, Margaret | D51: 2010-06-24 | E51: 2010-07-22 | F51: 2010-07-25 | G51: Federal Shipping | H51: ₪ 29.60 | I51: UK
A52: 10484 | B52: B's Beverages | C52: Leverling, Janet | D52: 2010-03-24 | E52: 2010-04-21 | F52: 2010-04-01 | G52: Federal Shipping | H52: ₪ 6.88 | I52: UK
A53: 10943 | B53: B's Beverages | C53: Peacock, Margaret | D53: 2010-03-11 | E53: 2011-04-08 | F53: 2011-03-19 | G53: United Package | H53: ₪ 2.17 | I53: UK
A54: 10539 | B54: B's Beverages | C54: Suyama, Michael | D54: 2010-05-16 | E54: 2010-06-13 | F54: 2010-05-23 | G54: Federal Shipping | H54: ₪ 12.36 | I54: UK
A55: 11029 | B55: Chop-suey Chinese | C55: Peacock, Margaret | D55: 2010-04-16 | E55: 2011-05-14 | F55: 2011-04-27 | G55: Speedy Express | H55: ₪ 47.84 | I55: Switzerland
A56: 10254 | B56: Chop-suey Chinese | C56: Buchanan, Steven | D56: 2009-07-11 | E56: 2009-08-08 | F56: 2009-07-23 | G56: United Package | H56: ₪ 22.98 | I56: Switzerland
A57: 10370 | B57: Chop-suey Chinese | C57: Suyama, Michael | D57: 2009-12-03 | E57: 2009-12-31 | F57: 2009-12-27 | G57: United Package | H57: ₪ 1.17 | I57: Switzerland
A58: 11041 | B58: Chop-suey Chinese | C58: Leverling, Janet | D58: 2010-04-22 | E58: 2011-05-20 | F58: 2011-04-28 | G58: United Package | H58: ₪ 48.22 | I58: Switzerland
A59: 10966 | B59: Chop-suey Chinese | C59: Peacock, Margaret | D59: 2010-03-20 | E59: 2011-04-17 | F59: 2011-04-08 | G59: Speedy Express | H59: ₪ 27.19 | I59: Switzerland
A60: 10494 | B60: Comércio Mineiro | C60: Peacock, Margaret | D60: 2010-04-02 | E60: 2010-04-30 | F60: 2010-04-09 | G60: United Package | H60: ₪ 65.99 | I60: Brazil
A61: 10466 | B61: Comércio Mineiro | C61: Peacock, Margaret | D61: 2010-03-06 | E61: 2010-04-03 | F61: 2010-03-13 | G61: Speedy Express | H61: ₪ 11.93 | I61: Brazil
A62: 10290 | B62: Comércio Mineiro | C62: Callahan, Laura | D62: 2009-08-27 | E62: 2009-09-24 | F62: 2009-09-03 | G62: Speedy Express | H62: ₪ 79.70 | I62: Brazil
A63: 10969 | B63: Comércio Mineiro | C63: Davolio, Nancy | D63: 2010-03-23 | E63: 2011-04-20 | F63: 2011-03-30 | G63: United Package | H63: ₪ 0.21 | I63: Brazil
A64: 11042 | B64: Comércio Mineiro | C64: Fuller, Andrew | D64: 2010-04-22 | E64: 2011-05-06 | F64: 2011-05-01 | G64: Speedy Express | H64: ₪ 29.99 | I64: Brazil
A65: 10462 | B65: Consolidated Holdings | C65: Fuller, Andrew | D65: 2010-03-03 | E65: 2010-03-31 | F65: 2010-03-18 | G65: Speedy Express | H65: ₪ 6.17 | I65: UK
A66: 10848 | B66: Consolidated Holdings | C66: King, Robert | D66: 2010-01-23 | E66: 2011-02-20 | F66: 2011-01-29 | G66: United Package | H66: ₪ 38.24 | I66: UK
A67: 10435 | B67: Consolidated Holdings | C67: Callahan, Laura | D67: 2010-02-04 | E67: 2010-03-18 | F67: 2010-02-07 | G67: United Package | H67: ₪ 9.21 | I67: UK
A68: 10640 | B68: Die Wandernde Kuh | C68: Peacock, Margaret | D68: 2010-08-21 | E68: 2010-09-18 | F68: 2010-08-28 | G68: Speedy Express | H68: ₪ 23.55 | I68: Germany
A69: 10780 | B69: LILA-Supermercado | C69: Fuller, Andrew | D69: 2010-12-16 | E69: 2010-12-30 | F69: 2010-12-25 | G69: Speedy Express | H69: ₪ 42.13 | I69: Venezuela
A70: 10330 | B70: LILA-Supermercado | C70: Leverling, Janet | D70: 2009-10-16 | E70: 2009-11-13 | F70: 2009-10-28 | G70: Speedy Express | H70: ₪ 12.75 | I70: Venezuela
A71: 10357 | B71: LILA-Supermercado | C71: Davolio, Nancy | D71: 2009-11-19 | E71: 2009-12-17 | F71: 2009-12-02 | G71: Federal Shipping | H71: ₪ 34.88 | I71: Venezuela
A72: 10461 | B72: LILA-Supermercado | C72: Davolio, Nancy | D72: 2010-02-28 | E72: 2010-03-28 | F72: 2010-03-05 | G72: Federal Shipping | H72: ₪ 148.61 | I72: Venezuela
A73: 10381 | B73: LILA-Supermercado | C73: Leverling, Janet | D73: 2009-12-12 | E73: 2010-01-09 | F73: 2009-12-13 | G73: Federal Shipping | H73: ₪ 7.99 | I73: Venezuela
A74: 11014 | B74: LINO-Delicateses | C74: Fuller, Andrew | D74: 2010-04-10 | E74: 2011-05-08 | F74: 2011-04-15 | G74: Federal Shipping | H74: ₪ 23.60 | I74: Venezuela
A75: 10811 | B75: LINO-Delicateses | C75: Callahan, Laura | D75: 2010-01-02 | E75: 2011-01-30 | F75: 2011-01-08 | G75: Speedy Express | H75: ₪ 31.22 | I75: Venezuela
A76: 10697 | B76: LINO-Delicateses | C76: Leverling, Janet | D76: 2010-10-08 | E76: 2010-11-05 | F76: 2010-10-14 | G76: Speedy Express | H76: ₪ 45.52 | I76: Venezuela
A77: 10954 | B77: LINO-Delicateses | C77: Buchanan, Steven | D77: 2010-03-17 | E77: 2011-04-28 | F77: 2011-03-20 | G77: Speedy Express | H77: ₪ 27.91 | I77: Venezuela
A78: 10485 | B78: LINO-Delicateses | C78: Peacock, Margaret | D78: 2010-03-25 | E78: 2010-04-08 | F78: 2010-03-31 | G78: United Package | H78: ₪ 64.45 | I78: Venezuela
A79: 10729 | B79: LINO-Delicateses | C79: Callahan, Laura | D79: 2010-11-04 | E79: 2010-12-16 | F79: 2010-11-14 | G79: Federal Shipping | H79: ₪ 141.06 | I79: Venezuela
A80: 10638 | B80: LINO-Delicateses | C80: Leverling, Janet | D80: 2010-08-20 | E80: 2010-09-17 | F80: 2010-09-01 | G80: Speedy Express | H80: ₪ 158.44 | I80: Venezuela
A81: 10405 | B81: LINO-Delicateses | C81: Davolio, Nancy | D81: 2010-01-06 | E81: 2010-02-03 | F81: 2010-01-22 | G81: Speedy Express | H81: ₪ 34.82 | I81: Venezuela
A82: 10919 | B82: LINO-Delicateses | C82: Fuller, Andrew | D82: 2010-03-02 | E82: 2011-03-30 | F82: 2011-03-04 | G82: United Package | H82: ₪ 19.80 | I82: Venezuela
A83: 10840 | B83: LINO-Delicateses | C83: Peacock, Margaret | D83: 2010-01-19 | E83: 2011-03-02 | F83: 2011-02-16 | G83: United Package | H83: ₪ 2.71 | I83: Venezuela
A84: 10838 | B84: LINO-Delicateses | C84: Leverling, Janet | D84: 2010-01-19 | E84: 2011-02-16 | F84: 2011-01-23 | G84: Federal Shipping | H84: ₪ 59.28 | I84: Venezuela
A85: 10544 | B85: Lonesome Pine Restaurant | C85: Peacock, Margaret | D85: 2010-05-21 | E85: 2010-06-18 | F85: 2010-05-30 | G85: Speedy Express | H85: ₪ 24.91 | I85: USA
A86: 10662 | B86: Lonesome Pine Restaurant | C86: Leverling, Janet | D86: 2010-09-09 | E86: 2010-10-07 | F86: 2010-09-18 | G86: United Package | H86: ₪ 1.28 | I86: USA
A87: 10867 | B87: Lonesome Pine Restaurant | C87: Suyama, Michael | D87: 2010-02-03 | E87: 2011-03-17 | F87: 2011-02-11 | G87: Speedy Express | H87: ₪ 1.93 | I87: USA
A88: 11018 | B88: Lonesome Pine Restaurant | C88: Peacock, Margaret | D88: 2010-04-13 | E88: 2011-05-11 | F88: 2011-04-16 | G88: United Package | H88: ₪ 11.65 | I88: USA
A89: 10883 | B89: Lonesome Pine Restaurant | C89: Callahan, Laura | D89: 2010-02-12 | E89: 2011-03-12 | F89: 2011-02-20 | G89: Federal Shipping | H89: ₪ 0.53 | I89: USA
A90: 10307 | B90: Lonesome Pine Restaurant | C90: Fuller, Andrew | D90: 2009-09-17 | E90: 2009-10-15 | F90: 2009-09-25 | G90: United Package | H90: ₪ 0.56 | I90: USA
A91: 10665 | B91: Lonesome Pine Restaurant | C91: Davolio, Nancy | D91: 2010-09-11 | E91: 2010-10-09 | F91: 2010-09-17 | G91: United Package | H91: ₪ 26.31 | I91: USA
A92: 10317 | B92: Lonesome Pine Restaurant | C92: Suyama, Michael | D92: 2009-09-30 | E92: 2009-10-28 | F92: 2009-10-10 | G92: Speedy Express | H92: ₪ 12.69 | I92: USA
A93: 10818 | B93: Magazzini Alimentari Riuniti | C93: King, Robert | D93: 2010-01-07 | E93: 2011-02-04 | F93: 2011-01-12 | G93: Federal Shipping | H93: ₪ 65.48 | I93: Italy
A94: 10300 | B94: Magazzini Alimentari Riuniti | C94: Fuller, Andrew | D94: 2009-09-09 | E94: 2009-10-07 | F94: 2009-09-18 | G94: United Package | H94: ₪ 17.68 | I94: Italy
A95: 10467 | B95: Magazzini Alimentari Riuniti | C95: Callahan, Laura | D95: 2010-03-06 | E95: 2010-04-03 | F95: 2010-03-11 | G95: United Package | H95: ₪ 4.93 | I95: Italy
A96: 10275 | B96: Magazzini Alimentari Riuniti | C96: Davolio, Nancy | D96: 2009-08-07 | E96: 2009-09-04 | F96: 2009-08-09 | G96: Speedy Express | H96: ₪ 26.93 | I96: Italy
A97: 10939 | B97: Magazzini Alimentari Riuniti | C97: Fuller, Andrew | D97: 2010-03-10 | E97: 2011-04-07 | F97: 2011-03-13 | G97: United Package | H97: ₪ 76.33 | I97: Italy
A98: 10950 | B98: Magazzini Alimentari Riuniti | C98: Davolio, Nancy | D98: 2010-03-16 | E98: 2011-04-13 | F98: 2011-03-23 | G98: United Package | H98: ₪ 2.50 | I98: Italy
A99: 10754 | B99: Magazzini Alimentari Riuniti | C99: Suyama, Michael | D99: 2010-11-25 | E99: 2010-12-23 | F99: 2010-11-27 | G99: Federal Shipping | H99: ₪ 2.38 | I99: Italy
A100: 10635 | B100: Magazzini Alimentari Riuniti | C100: Callahan, Laura | D100: 2010-08-18 | E100: 2010-09-15 | F100: 2010-08-21 | G100: Federal Shipping | H100: ₪ 47.46 | I100: Italy
A101: 10784 | B101: Magazzini Alimentari Riuniti | C101: Peacock, Margaret | D101: 2010-12-18 | E101: 2011-01-15 | F101: 2010-12-22 | G101: Federal Shipping | H101: ₪ 70.09 | I101: Italy
A102: 10404 | B102: Magazzini Alimentari Riuniti | C102: Fuller, Andrew | D102: 2010-01-03 | E102: 2010-01-31 | F102: 2010-01-08 | G102: Speedy Express | H102: ₪ 155.97 | I102: Italy
A103: 10896 | B103: Maison Dewey | C103: King, Robert | D103: 2010-02-19 | E103: 2011-03-19 | F103: 2011-02-27 | G103: Federal Shipping | H103: ₪ 32.45 | I103: Belgium
A104: 10892 | B104: Maison Dewey | C104: Peacock, Margaret | D104: 2010-02-17 | E104: 2011-03-17 | F104: 2011-02-19 | G104: United Package | H104: ₪ 120.27 | I104: Belgium
A105: 11004 | B105: Maison Dewey | C105: Leverling, Janet | D105: 2010-04-07 | E105: 2011-05-05 | F105: 2011-04-20 | G105: Speedy Express | H105: ₪ 44.84 | I105: Belgium
A106: 10978 | B106: Maison Dewey | C106: Dodsworth, Anne | D106: 2010-03-26 | E106: 2011-04-23 | F106: 2011-04-23 | G106: United Package | H106: ₪ 32.82 | I106: Belgium
A107: 10649 | B107: Maison Dewey | C107: Buchanan, Steven | D107: 2010-08-28 | E107: 2010-09-25 | F107: 2010-08-29 | G107: Federal Shipping | H107: ₪ 6.20 | I107: Belgium
A108: 10760 | B108: Maison Dewey | C108: Peacock, Margaret | D108: 2010-12-01 | E108: 2010-12-29 | F108: 2010-12-10 | G108: Speedy Express | H108: ₪ 155.64 | I108: Belgium
A109: 10529 | B109: Maison Dewey | C109: Buchanan, Steven | D109: 2010-05-07 | E109: 2010-06-04 | F109: 2010-05-09 | G109: United Package | H109: ₪ 66.69 | I109: Belgium
A110: 10439 | B110: Mère Paillarde | C110: Suyama, Michael | D110: 2010-02-07 | E110: 2010-03-07 | F110: 2010-02-10 | G110: Federal Shipping | H110: ₪ 4.07 | I110: Canada
A111: 10424 | B111: Mère Paillarde | C111: King, Robert | D111: 2010-01-23 | E111: 2010-02-20 | F111: 2010-01-27 | G111: United Package | H111: ₪ 370.61 | I111: Canada
A112: 10565 | B112: Mère Paillarde | C112: Callahan, Laura | D112: 2010-06-11 | E112: 2010-07-09 | F112: 2010-06-18 | G112: United Package | H112: ₪ 7.15 | I112: Canada
A113: 10376 | B113: Mère Paillarde | C113: Davolio, Nancy | D113: 2009-12-09 | E113: 2010-01-06 | F113: 2009-12-13 | G113: United Package | H113: ₪ 20.39 | I113: Canada
A114: 10332 | B114: Mère Paillarde | C114: Leverling, Janet | D114: 2009-10-17 | E114: 2009-11-28 | F114: 2009-10-21 | G114: United Package | H114: ₪ 52.84 | I114: Canada
A115: 10605 | B115: Mère Paillarde | C115: Davolio, Nancy | D115: 2010-07-21 | E115: 2010-08-18 | F115: 2010-07-29 | G115: United Package | H115: ₪ 379.13 | I115: Canada
A116: 10590 | B116: Mère Paillarde | C116: Peacock, Margaret | D116: 2010-07-07 | E116: 2010-08-04 | F116: 2010-07-14 | G116: Federal Shipping | H116: ₪ 44.77 | I116: Canada
A117: 10724 | B117: Mère Paillarde | C117: Callahan, Laura | D117: 2010-10-30 | E117: 2010-12-11 | F117: 2010-11-05 | G117: United Package | H117: ₪ 57.75 | I117: Canada
A118: 10570 | B118: Mère Paillarde | C118: Leverling, Janet | D118: 2010-06-17 | E118: 2010-07-15 | F118: 2010-06-19 | G118: Federal Shipping | H118: ₪ 188.99 | I118: Canada
A119: 10339 | B119: Mère Paillarde | C119: Fuller, Andrew | D119: 2009-10-28 | E119: 2009-11-25 | F119: 2009-11-04 | G119: United Package | H119: ₪ 15.66 | I119: Canada
A120: 10619 | B120: Mère Paillarde | C120: Leverling, Janet | D120: 2010-08-04 | E120: 2010-09-01 | F120: 2010-08-07 | G120: Federal Shipping | H120: ₪ 91.05 | I120: Canada
A121: 10505 | B121: Mère Paillarde | C121: Leverling, Janet | D121: 2010-04-14 | E121: 2010-05-12 | F121: 2010-04-21 | G121: Federal Shipping | H121: ₪ 7.13 | I121: Canada
A122: 10618 | B122: Mère Paillarde | C122: Davolio, Nancy | D122: 2010-08-01 | E122: 2010-09-12 | F122: 2010-08-08 | G122: Speedy Express | H122: ₪ 154.68 | I122: Canada
A123: 10779 | B123: Morgenstern Gesundkost | C123: Leverling, Janet | D123: 2010-12-16 | E123: 2011-01-13 | F123: 2011-01-14 | G123: United Package | H123: ₪ 58.13 | I123: Germany
A124: 10575 | B124: Morgenstern Gesundkost | C124: Buchanan, Steven | D124: 2010-06-20 | E124: 2010-07-04 | F124: 2010-06-30 | G124: Speedy Express | H124: ₪ 127.34 | I124: Germany
A125: 10699 | B125: Morgenstern Gesundkost | C125: Leverling, Janet | D125: 2010-10-09 | E125: 2010-11-06 | F125: 2010-10-13 | G125: Federal Shipping | H125: ₪ 0.58 | I125: Germany
A126: 10277 | B126: Morgenstern Gesundkost | C126: Fuller, Andrew | D126: 2009-08-09 | E126: 2009-09-06 | F126: 2009-08-13 | G126: Federal Shipping | H126: ₪ 125.77 | I126: Germany
A127: 10945 | B127: Morgenstern Gesundkost | C127: Peacock, Margaret | D127: 2010-03-12 | E127: 2011-04-09 | F127: 2011-03-18 | G127: Speedy Express | H127: ₪ 10.22 | I127: Germany
A128: 10752 | B128: North/South | C128: Fuller, Andrew | D128: 2010-11-24 | E128: 2010-12-22 | F128: 2010-11-28 | G128: Federal Shipping | H128: ₪ 1.39 | I128: UK
A129: 11057 | B129: North/South | C129: Leverling, Janet | D129: 2010-04-29 | E129: 2011-05-27 | F129: 2011-05-01 | G129: Federal Shipping | H129: ₪ 4.13 | I129: UK
A130: 10517 | B130: North/South | C130: Leverling, Janet | D130: 2010-04-24 | E130: 2010-05-22 | F130: 2010-04-29 | G130: Federal Shipping | H130: ₪ 32.07 | I130: UK
A131: 10409 | B131: Océano Atlántico Ltda. | C131: Leverling, Janet | D131: 2010-01-09 | E131: 2010-02-06 | F131: 2010-01-14 | G131: Speedy Express | H131: ₪ 29.83 | I131: Argentina
A132: 10898 | B132: Océano Atlántico Ltda. | C132: Peacock, Margaret | D132: 2010-02-20 | E132: 2011-03-20 | F132: 2011-03-06 | G132: United Package | H132: ₪ 1.27 | I132: Argentina
A133: 10531 | B133: Océano Atlántico Ltda. | C133: King, Robert | D133: 2010-05-08 | E133: 2010-06-05 | F133: 2010-05-19 | G133: Speedy Express | H133: ₪ 8.12 | I133: Argentina
A134: 10986 | B134: Océano Atlántico Ltda. | C134: Callahan, Laura | D134: 2010-03-30 | E134: 2011-04-27 | F134: 2011-04-21 | G134: United Package | H134: ₪ 217.86 | I134: Argentina
A135: 10958 | B135: Océano Atlántico Ltda. | C135: King, Robert | D135: 2010-03-18 | E135: 2011-04-15 | F135: 2011-03-27 | G135: United Package | H135: ₪ 49.56 | I135: Argentina
A136: 10338 | B136: Old World Delicatessen | C136: Peacock, Margaret | D136: 2009-10-25 | E136: 2009-11-22 | F136: 2009-10-29 | G136: Federal Shipping | H136: ₪ 84.21 | I136: USA
A137: 10706 | B137: Old World Delicatessen | C137: Callahan, Laura | D137: 2010-10-16 | E137: 2010-11-13 | F137: 2010-10-21 | G137: Federal Shipping | H137: ₪ 135.63 | I137: USA
A138: 10855 | B138: Old World Delicatessen | C138: Leverling, Janet | D138: 2010-01-27 | E138: 2011-02-24 | F138: 2011-02-04 | G138: Speedy Express | H138: ₪ 170.97 | I138: USA
A139: 10260 | B139: Old World Delicatessen | C139: Peacock, Margaret | D139: 2009-07-19 | E139: 2009-08-16 | F139: 2009-07-29 | G139: Speedy Express | H139: ₪ 55.09 | I139: Germany
A140: 10594 | B140: Old World Delicatessen | C140: Leverling, Janet | D140: 2010-07-09 | E140: 2010-08-06 | F140: 2010-07-16 | G140: United Package | H140: ₪ 5.24 | I140: USA
A141: 10441 | B141: Old World Delicatessen | C141: Leverling, Janet | D141: 2010-02-10 | E141: 2010-03-24 | F141: 2010-03-14 | G141: United Package | H141: ₪ 73.02 | I141: USA
A142: 10305 | B142: Old World Delicatessen | C142: Callahan, Laura | D142: 2009-09-13 | E142: 2009-10-11 | F142: 2009-10-09 | G142: Federal Shipping | H142: ₪ 257.62 | I142: USA
A143: 10680 | B143: Old World Delicatessen | C143: Davolio, Nancy | D143: 2010-09-24 | E143: 2010-10-22 | F143: 2010-09-26 | G143: Speedy Express | H143: ₪ 26.61 | I143: USA
A144: 11034 | B144: Old World Delicatessen | C144: Callahan, Laura | D144: 2010-04-20 | E144: 2011-06-01 | F144: 2011-04-27 | G144: Speedy Express | H144: ₪ 40.32 | I144: USA
A145: 10965 | B145: Old World Delicatessen | C145: Suyama, Michael | D145: 2010-03-20 | E145: 2011-04-17 | F145: 2011-03-30 | G145: Federal Shipping | H145: ₪ 144.38 | I145: USA
A146: 10554 | B146: Ottilies Käseladen | C146: Peacock, Margaret | D146: 2010-05-30 | E146: 2010-06-27 | F146: 2010-06-05 | G146: Federal Shipping | H146: ₪ 120.97 | I146: Germany
A147: 10999 | B147: Ottilies Käseladen | C147: Suyama, Michael | D147: 2010-04-03 | E147: 2011-05-01 | F147: 2011-04-10 | G147: United Package | H147: ₪ 96.35 | I147: Germany
A148: 10833 | B148: Ottilies Käseladen | C148: Suyama, Michael | D148: 2010-01-15 | E148: 2011-02-12 | F148: 2011-01-23 | G148: United Package | H148: ₪ 71.49 | I148: Germany
A149: 10766 | B149: Ottilies Käseladen | C149: Peacock, Margaret | D149: 2010-12-05 | E149: 2011-01-02 | F149: 2010-12-09 | G149: Speedy Express | H149: ₪ 157.55 | I149: Germany
A150: 11020 | B150: Ottilies Käseladen | C150: Fuller, Andrew | D150: 2010-04-14 | E150: 2011-05-12 | F150: 2011-04-16 | G150: United Package | H150: ₪ 43.30 | I150: Germany
A151: 10508 | B151: Ottilies Käseladen | C151: Davolio, Nancy | D151: 2010-04-16 | E151: 2010-05-14 | F151: 2010-05-13 | G151: United Package | H151: ₪ 4.99 | I151: Germany
A152: 10580 | B152: Ottilies Käseladen | C152: Peacock, Margaret | D152: 2010-06-26 | E152: 2010-07-24 | F152: 2010-07-01 | G152: Federal Shipping | H152: ₪ 75.89 | I152: Germany
A153: 10684 | B153: Ottilies Käseladen | C153: Leverling, Janet | D153: 2010-09-26 | E153: 2010-10-24 | F153: 2010-09-30 | G153: Speedy Express | H153: ₪ 145.63 | I153: Germany
A154: 10407 | B154: Ottilies Käseladen | C154: Fuller, Andrew | D154: 2010-01-07 | E154: 2010-02-04 | F154: 2010-01-30 | G154: United Package | H154: ₪ 91.48 | I154: Germany
A155: 10502 | B155: Pericles Comidas clásicas | C155: Fuller, Andrew | D155: 2010-04-10 | E155: 2010-05-08 | F155: 2010-04-29 | G155: Speedy Express | H155: ₪ 69.32 | I155: Mexico
A156: 10995 | B156: Pericles Comidas clásicas | C156: Davolio, Nancy | D156: 2010-04-02 | E156: 2011-04-30 | F156: 2011-04-06 | G156: Federal Shipping | H156: ₪ 46.00 | I156: Mexico
A157: 10354 | B157: Pericles Comidas clásicas | C157: Callahan, Laura | D157: 2009-11-14 | E157: 2009-12-12 | F157: 2009-11-20 | G157: Federal Shipping | H157: ₪ 53.80 | I157: Mexico
A158: 10474 | B158: Pericles Comidas clásicas | C158: Buchanan, Steven | D158: 2010-03-13 | E158: 2010-04-10 | F158: 2010-03-21 | G158: United Package | H158: ₪ 83.49 | I158: Mexico
A159: 10322 | B159: Pericles Comidas clásicas | C159: King, Robert | D159: 2009-10-04 | E159: 2009-11-01 | F159: 2009-10-23 | G159: Federal Shipping | H159: ₪ 0.40 | I159: Mexico
A160: 11053 | B160: Piccolo und mehr | C160: Fuller, Andrew | D160: 2010-04-27 | E160: 2011-05-25 | F160: 2011-04-29 | G160: United Package | H160: ₪ 53.05 | I160: Austria
A161: 10392 | B161: Piccolo und mehr | C161: Fuller, Andrew | D161: 2009-12-24 | E161: 2010-01-21 | F161: 2010-01-01 | G161: Federal Shipping | H161: ₪ 122.46 | I161: Austria
A162: 10530 | B162: Piccolo und mehr | C162: Leverling, Janet | D162: 2010-05-08 | E162: 2010-06-05 | F162: 2010-05-12 | G162: United Package | H162: ₪ 339.22 | I162: Austria
A163: 10427 | B163: Piccolo und mehr | C163: Peacock, Margaret | D163: 2010-01-27 | E163: 2010-02-24 | F163: 2010-03-03 | G163: United Package | H163: ₪ 31.29 | I163: Austria
A164: 10489 | B164: Piccolo und mehr | C164: Suyama, Michael | D164: 2010-03-28 | E164: 2010-04-25 | F164: 2010-04-09 | G164: United Package | H164: ₪ 5.29 | I164: Austria
A165: 10747 | B165: Piccolo und mehr | C165: Suyama, Michael | D165: 2010-11-19 | E165: 2010-12-17 | F165: 2010-11-26 | G165: Speedy Express | H165: ₪ 117.33 | I165: Austria
A166: 10353 | B166: Piccolo und mehr | C166: King, Robert | D166: 2009-11-13 | E166: 2009-12-11 | F166: 2009-11-25 | G166: Federal Shipping | H166: ₪ 360.63 | I166: Austria
A167: 10597 | B167: Piccolo und mehr | C167: King, Robert | D167: 2010-07-11 | E167: 2010-08-08 | F167: 2010-07-18 | G167: Federal Shipping | H167: ₪ 35.12 | I167: Austria
A168: 10844 | B168: Piccolo und mehr | C168: Callahan, Laura | D168: 2010-01-21 | E168: 2011-02-18 | F168: 2011-01-26 | G168: United Package | H168: ₪ 25.22 | I168: Austria
A169: 10686 | B169: Piccolo und mehr | C169: Fuller, Andrew | D169: 2010-09-30 | E169: 2010-10-28 | F169: 2010-10-08 | G169: Speedy Express | H169: ₪ 96.50 | I169: Austria
A170: 10433 | B170: Princesa Isabel Vinhos | C170: Leverling, Janet | D170: 2010-02-03 | E170: 2010-03-03 | F170: 2010-03-04 | G170: Federal Shipping | H170: ₪ 73.83 | I170: Portugal
A171: 10336 | B171: Princesa Isabel Vinhos | C171: King, Robert | D171: 2009-10-23 | E171: 2009-11-20 | F171: 2009-10-25 | G171: United Package | H171: ₪ 15.51 | I171: Portugal
A172: 10477 | B172: Princesa Isabel Vinhos | C172: Buchanan, Steven | D172: 2010-03-17 | E172: 2010-04-14 | F172: 2010-03-25 | G172: United Package | H172: ₪ 13.02 | I172: Portugal
A173: 10397 | B173: Princesa Isabel Vinhos | C173: Buchanan, Steven | D173: 2009-12-27 | E173: 2010-01-24 | F173: 2010-01-02 | G173: Speedy Express | H173: ₪ 60.26 | I173: Portugal
A174: 10808 | B174: Princesa Isabel Vinhos | C174: Fuller, Andrew | D174: 2010-01-01 | E174: 2011-01-29 | F174: 2011-01-09 | G174: Federal Shipping | H174: ₪ 45.53 | I174: USA
A175: 11007 | B175: Princesa Isabel Vinhos | C175: Callahan, Laura | D175: 2010-04-08 | E175: 2011-05-06 | F175: 2011-04-13 | G175: United Package | H175: ₪ 202.24 | I175: Portugal
A176: 10647 | B176: Que Delícia | C176: Peacock, Margaret | D176: 2010-08-27 | E176: 2010-09-10 | F176: 2010-09-03 | G176: United Package | H176: ₪ 45.54 | I176: Brazil
A177: 10261 | B177: Que Delícia | C177: Peacock, Margaret | D177: 2009-07-19 | E177: 2009-08-16 | F177: 2009-07-30 | G177: United Package | H177: ₪ 3.05 | I177: Brazil
A178: 10720 | B178: Que Delícia | C178: Callahan, Laura | D178: 2010-10-28 | E178: 2010-11-11 | F178: 2010-11-05 | G178: United Package | H178: ₪ 9.53 | I178: Brazil
A179: 10291 | B179: Que Delícia | C179: Suyama, Michael | D179: 2009-08-27 | E179: 2009-09-24 | F179: 2009-09-04 | G179: United Package | H179: ₪ 6.40 | I179: Brazil
A180: 10421 | B180: Que Delícia | C180: Callahan, Laura | D180: 2010-01-21 | E180: 2010-03-04 | F180: 2010-01-27 | G180: Speedy Express | H180: ₪ 99.23 | I180: Brazil
A181: 10989 | B181: Que Delícia | C181: Fuller, Andrew | D181: 2010-03-31 | E181: 2011-04-28 | F181: 2011-04-02 | G181: Speedy Express | H181: ₪ 34.76 | I181: Brazil
A182: 10794 | B182: Que Delícia | C182: Suyama, Michael | D182: 2010-12-24 | E182: 2011-01-21 | F182: 2011-01-02 | G182: Speedy Express | H182: ₪ 21.49 | I182: Brazil
A183: 10379 | B183: Que Delícia | C183: Fuller, Andrew | D183: 2009-12-11 | E183: 2010-01-08 | F183: 2009-12-13 | G183: Speedy Express | H183: ₪ 45.03 | I183: Brazil
A184: 10587 | B184: Que Delícia | C184: Davolio, Nancy | D184: 2010-07-02 | E184: 2010-07-30 | F184: 2010-07-09 | G184: Speedy Express | H184: ₪ 62.52 | I184: Brazil
A185: 10659 | B185: Queen Cozinha | C185: King, Robert | D185: 2010-09-05 | E185: 2010-10-03 | F185: 2010-09-10 | G185: United Package | H185: ₪ 105.81 | I185: Brazil
A186: 10704 | B186: Queen Cozinha | C186: Suyama, Michael | D186: 2010-10-14 | E186: 2010-11-11 | F186: 2010-11-07 | G186: Speedy Express | H186: ₪ 4.78 | I186: Brazil
A187: 10406 | B187: Queen Cozinha | C187: King, Robert | D187: 2010-01-07 | E187: 2010-02-18 | F187: 2010-01-13 | G187: Speedy Express | H187: ₪ 108.04 | I187: Brazil
A188: 10786 | B188: Queen Cozinha | C188: Callahan, Laura | D188: 2010-12-19 | E188: 2011-01-16 | F188: 2010-12-23 | G188: Speedy Express | H188: ₪ 110.87 | I188: Brazil
A189: 10728 | B189: Queen Cozinha | C189: Peacock, Margaret | D189: 2010-11-04 | E189: 2010-12-02 | F189: 2010-11-11 | G189: United Package | H189: ₪ 58.33 | I189: Brazil
A190: 10868 | B190: Queen Cozinha | C190: King, Robert | D190: 2010-02-04 | E190: 2011-03-04 | F190: 2011-02-23 | G190: United Package | H190: ₪ 191.27 | I190: Brazil
A191: 10961 | B191: Queen Cozinha | C191: Callahan, Laura | D191: 2010-03-19 | E191: 2011-04-16 | F191: 2011-03-30 | G191: Speedy Express | H191: ₪ 104.47 | I191: Brazil
A192: 10913 | B192: Queen Cozinha | C192: Peacock, Margaret | D192: 2010-02-26 | E192: 2011-03-26 | F192: 2011-03-04 | G192: Speedy Express | H192: ₪ 33.05 | I192: Brazil
A193: 10372 | B193: Queen Cozinha | C193: Buchanan, Steven | D193: 2009-12-04 | E193: 2010-01-01 | F193: 2009-12-09 | G193: United Package | H193: ₪ 890.78 | I193: Brazil
A194: 10637 | B194: Queen Cozinha | C194: Suyama, Michael | D194: 2010-08-19 | E194: 2010-09-16 | F194: 2010-08-26 | G194: Speedy Express | H194: ₪ 201.29 | I194: Brazil
A195: 10487 | B195: Queen Cozinha | C195: Fuller, Andrew | D195: 2010-03-26 | E195: 2010-04-23 | F195: 2010-03-28 | G195: United Package | H195: ₪ 71.07 | I195: Brazil
A196: 10914 | B196: Queen Cozinha | C196: Suyama, Michael | D196: 2010-02-27 | E196: 2011-03-27 | F196: 2011-03-02 | G196: Speedy Express | H196: ₪ 21.19 | I196: Brazil
A197: 10345 | B197: QUICK-Stop | C197: Fuller, Andrew | D197: 2009-11-04 | E197: 2009-12-02 | F197: 2009-11-11 | G197: United Package | H197: ₪ 249.06 | I197: Germany
A198: 10938 | B198: QUICK-Stop | C198: Leverling, Janet | D198: 2010-03-10 | E198: 2011-04-07 | F198: 2011-03-16 | G198: United Package | H198: ₪ 31.89 | I198: Germany
A199: 10721 | B199: QUICK-Stop | C199: Buchanan, Steven | D199: 2010-10-29 | E199: 2010-11-26 | F199: 2010-10-31 | G199: Federal Shipping | H199: ₪ 48.92 | I199: Germany
A200: 10996 | B200: QUICK-Stop | C200: Peacock, Margaret | D200: 2010-04-02 | E200: 2011-04-30 | F200: 2011-04-10 | G200: United Package | H200: ₪ 1.12 | I200: Germany
... 208 more rows

Sheet קובץ נתונים תרגיל 5
A1: מספר ספק | B1: שם הספק | C1: עיסוק הספק | D1: תאריך תחילת עבודה | E1: מחזור מכירות 2010 בש"ח | F1: מחזור מכירות 2011 בש"ח | G1: אמצעי תשלום
A2: 20100 | B2: מתכת מעיין | C2: אספקה טכנית | D2: 2003-09-02 | E2: 2,339,160 | F2: 2,392,892 | G2: מזומן
A3: 20101 | B3: אור הצפון | C3: מוסכים ורכב | D3: 2007-11-16 | E3: 1,426,949 | F3: 1,460,760 | G3: מס"ב
A4: 20107 | B4: אבישי תמרוקים | C4: מזון ומשקאות | D4: 2006-11-18 | E4: 1,960,957 | F4: 2,069,906 | G4: צ'קים
A5: 20107 | B5: אבישי תמרוקים | C5: קוסמטיקה וסידקית | D5: 2006-07-25 | E5: 2,680,446 | F5: 2,704,704 | G5: העברה בנקאית
A6: 20109 | B6: א.ש.ד. תרדיון | C6: אספקה טכנית | D6: 2010-02-26 | E6: 2,243,159 | F6: 2,293,579 | G6: צ'קים
A7: 20110 | B7: אפרוחי פלא | C7: אפרוחים | D7: 2007-09-05 | E7: 2,145,570 | F7: 2,254,349 | G7: מזומן
A8: 20112 | B8: און הצפון בע"מ | C8: מכולת | D8: 2007-10-21 | E8: 532,374 | F8: 616,393 | G8: העברה בנקאית
A9: 20113 | B9: אלון דלק לישראל | C9: דלק ושמנים | D9: 2007-10-02 | E9: 1,174,435 | F9: 1,229,825 | G9: צ'קים
A10: 20114 | B10: אגרידרה | C10: תשומות לחקלאות | D10: 2003-01-19 | E10: 2,403,495 | F10: 2,500,244 | G10: העברה בנקאית
A11: 20115 | B11: אמישרגז בע"מ | C11: גז | D11: 2005-03-15 | E11: 603,989 | F11: 691,393 | G11: מס"ב
A12: 20116 | B12: א.שיווק | C12: דברי מאפה | D12: 2002-06-08 | E12: 2,372,310 | F12: 2,456,003 | G12: העברה בנקאית
A13: 20117 | B13: אלון יעקב בע"מ | C13: תשומות לחקלאות | D13: 2004-10-01 | E13: 2,361,668 | F13: 2,387,508 | G13: צ'קים
A14: 20120 | B14: אופטיד בע"מ | C14: אופטומטריסט | D14: 2008-05-13 | E14: 547,463 | F14: 599,319 | G14: מס"ב
A15: 20120 | B15: אברך אלון ג'י בע"מ | C15: דלק ושמנים | D15: 2004-03-14 | E15: 1,690,356 | F15: 1,776,100 | G15: מזומן
A16: 20123 | B16: אופטיקה צפון | C16: אופטומטריסט | D16: 2009-08-20 | E16: 2,342,407 | F16: 2,448,192 | G16: מס"ב
A17: 20125 | B17: א.מ סוכנויות ושיווק | C17: מכולת | D17: 2004-12-26 | E17: 697,310 | F17: 719,995 | G17: מזומן
A18: 20128 | B18: אפרוחי נשר בע"מ | C18: אפרוחים | D18: 2008-12-08 | E18: 838,129 | F18: 857,415 | G18: העברה בנקאית
A19: 20131 | B19: אל חיים | C19: מכולת | D19: 2007-02-17 | E19: 783,825 | F19: 833,100 | G19: מס"ב
A20: 20134 | B20: אפרת-רביית פטם שו'ת מוגבלת | C20: אפרוחים | D20: 2008-03-30 | E20: 2,522,420 | F20: 2,600,626 | G20: צ'קים
A21: 20136 | B21: אורי פתרונות לול בע"מ | C21: תשומות לחקלאות | D21: 2004-09-13 | E21: 1,584,107 | F21: 1,596,415 | G21: העברה בנקאית
A22: 20140 | B22: ארגון מגדלי עופות בישראל | C22: ארגונים ארציים | D22: 2008-07-26 | E22: 1,514,742 | F22: 1,622,630 | G22: מס"ב
A23: 20143 | B23: אחים אסנין | C23: דלק ושמנים | D23: 2009-12-01 | E23: 2,252,811 | F23: 2,358,392 | G23: העברה בנקאית
A24: 20146 | B24: אופטיקה הלפרין בע"מ | C24: אופטומטריסט | D24: 2002-12-01 | E24: 1,347,800 | F24: 1,373,054 | G24: צ'קים
A25: 20147 | B25: אשל שירותים וטרינריים בע"מ | C25: תשומות לחקלאות | D25: 2009-10-25 | E25: 691,763 | F25: 766,218 | G25: צ'קים
A26: 20148 | B26: אינטרקוסמא | C26: קוסמטיקה וסידקית | D26: 2007-09-16 | E26: 709,828 | F26: 746,129 | G26: העברה בנקאית
A27: 20152 | B27: א.ג מספק הגליל | C27: אספקה טכנית | D27: 2002-08-15 | E27: 2,077,767 | F27: 2,136,881 | G27: העברה בנקאית
A28: 20153 | B28: אירגון עובדי הפלחה | C28: ארגונים ארציים | D28: 2010-01-23 | E28: 758,424 | F28: 845,499 | G28: מס"ב
A29: 20156 | B29: אלפינית | C29: חשמל ואלקטרוניקה | D29: 2008-03-09 | E29: 1,638,871 | F29: 1,718,856 | G29: העברה בנקאית
A30: 20158 | B30: אלישע את חיים | C30: מכולת | D30: 2009-01-12 | E30: 2,226,084 | F30: 2,278,563 | G30: מזומן
A31: 20160 | B31: אוריינט אקספרס | C31: מוצרי צילום | D31: 2008-10-09 | E31: 778,875 | F31: 835,536 | G31: העברה בנקאית
A32: 20179 | B32: לוריאל ישראל בע"מ-אינטרביוטי | C32: מכולת | D32: 2006-06-03 | E32: 1,734,547 | F32: 1,797,699 | G32: מזומן
A33: 20182 | B33: אירגון עובדי המים | C33: ארגונים ארציים | D33: 2004-10-06 | E33: 727,416 | F33: 784,813 | G33: העברה בנקאית
A34: 20184 | B34: אוסם והחברות השלובות | C34: מזון ומשקאות | D34: 2002-11-22 | E34: 1,859,870 | F34: 1,879,998 | G34: העברה בנקאית
A35: 20186 | B35: אלקטרו חבש | C35: אספקה טכנית | D35: 2003-08-12 | E35: 2,581,930 | F35: 2,596,216 | G35: צ'קים
A36: 20187 | B36: אקולאב-זהר דליה שו'ת מוגבלת | C36: חומרי ניקוי | D36: 2008-05-01 | E36: 1,240,779 | F36: 1,328,184 | G36: העברה בנקאית
A37: 20188 | B37: א.מ.י ( אפרוחי משואות יצחק) | C37: אפרוחים | D37: 2002-08-03 | E37: 572,751 | F37: 658,786 | G37: העברה בנקאית
A38: 20191 | B38: א.פ.י חורי הפצה בע"מ | C38: קוסמטיקה וסידקית | D38: 2008-09-10 | E38: 1,570,636 | F38: 1,613,843 | G38: צ'קים
A39: 20204 | B39: ביכורי השדה הדרום שיווק תוצרת חקלאית (2002) בע"מ | C39: מזון ומשקאות | D39: 2002-04-10 | E39: 1,773,641 | F39: 1,816,509 | G39: העברה בנקאית
A40: 20208 | B40: ברברה וולף בע"מ | C40: קוסמטיקה וסידקית | D40: 2007-06-04 | E40: 721,508 | F40: 815,978 | G40: צ'קים
A41: 20215 | B41: בלו סקאי שיווק 2004 בע"מ | C41: חומרי ניקוי | D41: 2003-05-03 | E41: 496,273 | F41: 599,973 | G41: צ'קים
A42: 20216 | B42: בראון י.ובניו אפרוחים | C42: אפרוחים | D42: 2010-04-24 | E42: 655,556 | F42: 683,884 | G42: העברה בנקאית
A43: 20219 | B43: בונן קור | C43: חשמל ואלקטרוניקה | D43: 2003-01-07 | E43: 1,581,071 | F43: 1,643,095 | G43: העברה בנקאית
A44: 20224 | B44: בני משה ביטון | C44: מוסכים ורכב | D44: 2010-03-24 | E44: 1,079,800 | F44: 1,098,319 | G44: מזומן
A45: 20230 | B45: ברזילאי-יבוא ושיווק למספרות בע"מ | C45: קוסמטיקה וסידקית | D45: 2006-04-25 | E45: 1,217,317 | F45: 1,231,635 | G45: העברה בנקאית
A46: 20236 | B46: בנדא מגנטיק בע"מ | C46: קוסמטיקה וסידקית | D46: 2007-11-01 | E46: 1,685,101 | F46: 1,709,995 | G46: העברה בנקאית
A47: 20237 | B47: בורקס הכפר בע"מ יבניאל | C47: מזון ומשקאות | D47: 2009-10-28 | E47: 1,470,098 | F47: 1,491,747 | G47: צ'קים
A48: 20301 | B48: גיאטקס בע"מ | C48: מכולת | D48: 2008-03-29 | E48: 1,800,362 | F48: 1,884,336 | G48: מס"ב
A49: 20303 | B49: אמיר גוארי | C49: מכולת | D49: 2003-11-30 | E49: 1,753,401 | F49: 1,855,051 | G49: העברה בנקאית
A50: 20306 | B50: גורי עצמון שניר | C50: מכולת | D50: 2004-01-15 | E50: 1,652,741 | F50: 1,720,387 | G50: מס"ב
A51: 20308 | B51: גיא-אוני-שרותי חקלאות בע"מ | C51: תשומות לחקלאות | D51: 2007-06-24 | E51: 1,992,813 | F51: 2,016,045 | G51: העברה בנקאית
A52: 20309 | B52: גלפלסט בע"מ | C52: מכולת | D52: 2002-11-04 | E52: 1,720,986 | F52: 1,740,797 | G52: מס"ב
A53: 20310 | B53: פלאח גבאן ובניו | C53: תשומות לחקלאות | D53: 2003-10-26 | E53: 1,739,013 | F53: 1,818,276 | G53: העברה בנקאית
A54: 20311 | B54: סלאח מחמוד גבאן | C54: תשומות לחקלאות | D54: 2008-08-26 | E54: 2,108,314 | F54: 2,186,790 | G54: מס"ב
A55: 20313 | B55: גבן דאיס ובניו-שרותי לול | C55: תשומות לחקלאות | D55: 2004-08-22 | E55: 2,329,800 | F55: 2,419,019 | G55: צ'קים
A56: 20314 | B56: גרין משה-משק חקלאי | C56: תשומות לחקלאות | D56: 2008-03-06 | E56: 1,445,727 | F56: 1,542,034 | G56: מס"ב
A57: 20316 | B57: גטר פוטו בע"מ | C57: מוצרי צילום | D57: 2009-04-10 | E57: 1,462,931 | F57: 1,565,406 | G57: העברה בנקאית
A58: 20317 | B58: גלידות שטראוס | C58: מזון ומשקאות | D58: 2008-11-12 | E58: 1,431,658 | F58: 1,497,252 | G58: מס"ב
A59: 20318 | B59: גבן סלימן בע"מ | C59: תשומות לחקלאות | D59: 2004-09-19 | E59: 598,863 | F59: 614,859 | G59: העברה בנקאית
A60: 20321 | B60: ג. ויליפוד אינטרנשונאל בע"מ | C60: מזון ומשקאות | D60: 2006-11-25 | E60: 2,506,545 | F60: 2,522,123 | G60: מס"ב
A61: 20322 | B61: גבעת עוז | C61: דברי מאפה | D61: 2005-01-23 | E61: 1,582,600 | F61: 1,619,422 | G61: העברה בנקאית
A62: 20323 | B62: גלידות החרמון | C62: מזון ומשקאות | D62: 2008-09-08 | E62: 2,530,402 | F62: 2,634,755 | G62: מס"ב
A63: 20325 | B63: גת גבעת חיים | C63: מזון ומשקאות | D63: 2009-02-19 | E63: 684,544 | F63: 738,307 | G63: צ'קים
A64: 20325 | B64: גת גבעת חיים | C64: תשומות לחקלאות | D64: 2005-01-07 | E64: 1,021,666 | F64: 1,087,571 | G64: מס"ב
A65: 20402 | B65: דור גז | C65: גז | D65: 2009-12-18 | E65: 874,686 | F65: 894,543 | G65: מס"ב

Sheet קובץ נתונים תרגיל 6
A1: מספר תאגיד | B1: שם החברה | C1: ענף | D1: עיר | E1: תאריך רישום לבורסה | F1: מספר מניות מונפקות | G1: שווי שוק בש"ח
A2: 611779639 | B2: קומפיוגן | C2: תעשיה | D2: תל אביב | E2: 2004-09-27 | F2: 3,400,000 | G2: 14,000,000
A3: 611661373 | B3: אזימוט טכנו | C3: תעשיה | D3: רעננה | E3: 1998-08-04 | F3: 1,800,000 | G3: 30,000,000
A4: 620041773 | B4: איזי אנרגיה | C4: מסחר ושרותים | D4: רמת גן | E4: 2012-11-20 | F4: 4,600,000 | G4: 24,000,000
A5: 650012777 | B5: רציו יהש | C5: חיפושי נפט וגז | D5: תל אביב | E5: 2006-01-18 | F5: 2,000,000 | G5: 22,000,000
A6: 612434218 | B6: איתמר מדיקל | C6: תעשיה | D6: קיסריה | E6: 2015-07-15 | F6: 1,800,000 | G6: 14,000,000
A7: 620041666 | B7: פיננסיטק | C7: השקעה ואחזקות | D7: תל אביב | E7: 2001-08-11 | F7: 3,600,000 | G7: 22,000,000
A8: 612623869 | B8: גלובוס מקס | C8: מסחר ושרותים | D8: תל אביב | E8: 2003-08-20 | F8: 4,200,000 | G8: 24,000,000
A9: 610007800 | B9: ארד | C9: תעשיה | D9: תל אביב | E9: 2010-05-19 | F9: 4,600,000 | G9: 28,000,000
A10: 612352444 | B10: סרגון | C10: תעשיה | D10: תל אביב | E10: 2010-01-14 | F10: 2,800,000 | G10: 32,000,000
A11: 620041963 | B11: אנליסט | C11: מסחר ושרותים | D11: תל אביב | E11: 1998-03-31 | F11: 4,600,000 | G11: 32,000,000
A12: 612578022 | B12: גיוון אימג'ינג | C12: תעשיה | D12: יוקנעם | E12: 2010-03-03 | F12: 600,000 | G12: 36,000,000
A13: 634341678 | B13: אלרד | C13: תעשיה | D13: תל אביב | E13: 2010-04-18 | F13: 4,700,000 | G13: 32,000,000
A14: 612112806 | B14: דורסל | C14: נדל"ן | D14: יוקנעם | E14: 1997-10-19 | F14: 2,000,000 | G14: 22,000,000
A15: 620041740 | B15: וואלה | C15: מסחר ושרותים | D15: קיסריה | E15: 1998-12-23 | F15: 3,400,000 | G15: 36,000,000
A16: 610119068 | B16: אבגול | C16: תעשיה | D16: תל אביב | E16: 2009-11-23 | F16: 1,800,000 | G16: 34,000,000
A17: 620043035 | B17: אלביט הדמיה | C17: השקעה ואחזקות | D17: תל אביב | E17: 2011-04-12 | F17: 3,400,000 | G17: 34,000,000
A18: 620042466 | B18: יורו אוברסיז | C18: השקעה ואחזקות | D18: חיפה | E18: 2002-02-06 | F18: 3,200,000 | G18: 24,000,000
A19: 611316903 | B19: כרמל אולפינים | C19: תעשיה | D19: חיפה | E19: 2003-08-05 | F19: 3,400,000 | G19: 42,000,000
A20: 612073453 | B20: ליברטי | C20: נדל"ן | D20: רמת גן | E20: 2011-03-01 | F20: 2,600,000 | G20: 26,000,000
A21: 612420647 | B21: מעין ונצ'ורס | C21: השקעה ואחזקות | D21: באר שבע | E21: 2006-08-11 | F21: 3,200,000 | G21: 24,000,000
A22: 611812463 | B22: נובה | C22: תעשיה | D22: רחובות | E22: 2008-10-18 | F22: 4,600,000 | G22: 34,000,000
A23: 612758350 | B23: נטקס | C23: מסחר ושרותים | D23: פתח תקוה | E23: 2004-12-17 | F23: 1,400,000 | G23: 44,000,000
A24: 650011373 | B24: נפטא חיפוש | C24: חיפושי נפט וגז | D24: באר שבע | E24: 2004-03-01 | F24: 800,000 | G24: 24,000,000
A25: 620043159 | B25: נצבא | C25: נדל"ן | D25: פתח תקוה | E25: 2013-01-24 | F25: 4,000,000 | G25: 24,000,000
A26: 620041674 | B26: סאטקום מערכות | C26: מסחר ושרותים | D26: פתח תקוה | E26: 1998-01-10 | F26: 3,400,000 | G26: 46,000,000
A27: 611416612 | B27: סינאל תעשיות | C27: תעשיה | D27: יוקנעם | E27: 2012-01-09 | F27: 4,200,000 | G27: 46,000,000
A28: 620041641 | B28: סמיקום | C28: מסחר ושרותים | D28: אבן יהודה | E28: 2005-09-09 | F28: 2,400,000 | G28: 38,000,000
A29: 611722316 | B29: אלווריון | C29: תעשיה | D29: תל אביב | E29: 2011-04-12 | F29: 4,400,000 | G29: 34,000,000
A30: 611972374 | B30: קרדן טכנולוגיות | C30: השקעה ואחזקות | D30: תל אביב | E30: 2003-06-11 | F30: 4,400,000 | G30: 34,000,000
A31: 612367525 | B31: פיברולן | C31: תעשיה | D31: יוקנעם | E31: 2013-03-08 | F31: 3,200,000 | G31: 20,000,000
A32: 612096793 | B32: ויתניה | C32: נדל"ן | D32: תל אביב | E32: 2011-11-28 | F32: 800,000 | G32: 36,000,000
A33: 612483629 | B33: פולאר בינלאומי | C33: נדל"ן | D33: תל אביב | E33: 1998-03-31 | F33: 800,000 | G33: 44,000,000
A34: 611651812 | B34: רדויז'ן | C34: תעשיה | D34: תל אביב | E34: 2006-01-18 | F34: 1,800,000 | G34: 46,000,000
A35: 612557596 | B35: טסנת | C35: מסחר ושרותים | D35: תל אביב | E35: 2008-08-09 | F35: 2,600,000 | G35: 46,000,000
A36: 612623950 | B36: גאון אחזקות | C36: השקעה ואחזקות | D36: תל אביב | E36: 2002-03-09 | F36: 800,000 | G36: 48,000,000
A37: 612101460 | B37: תמיר הון | C37: השקעה ואחזקות | D37: תל אביב | E37: 2015-04-30 | F37: 1,300,000 | G37: 48,000,000
A38: 620041948 | B38: תשואה 10 | C38: נדל"ן | D38: רמת גן | E38: 2006-08-11 | F38: 1,000,000 | G38: 30,000,000
A39: 620043928 | B39: אינוונטק (ש) | C39: השקעה ואחזקות | D39: תל אביב | E39: 2009-07-03 | F39: 2,800,000 | G39: 52,000,000

Sheet קובץ נתונים תרגיל 7
A1: שווי שוק בש"ח | B1: מחיר למניה | C1: יום מסחר ב-1/1/12 | D1: סכום המענק | E1: מס עבור מענק | F1: מס פרוגרסיבי עבור מענק
A2: 30,000,000 | B2: 8.333333333 | C2: 8.583333333 | D2: 180000 | E2: 27000 | F2: 1500
A3: 30,000,000 | B3: 20 | C3: 20.3 | D3: 270000 | E3: 67500 | F3: 19000
A4: 20,000,000 | B4: 4 | C4: 4 | D4: 0 | E4: 0 | F4: 0
A5: 40,000,000 | B5: 11.76470588 | C5: 11.94117647 | D5: 240000 | E5: 60000 | F5: 11500
A6: 18,000,000 | B6: 7.826086957 | C6: 7.943478261 | D6: 0 | E6: 0 | F6: 0
A7: 45,000,000 | B7: 12.5 | C7: 12.6875 | D7: 270000 | E7: 67500 | F7: 19000
A8: 34,000,000 | B8: 7.391304348 | C8: 7.502173913 | D8: 0 | E8: 0 | F8: 0
A9: 28,000,000 | B9: 5.6 | C9: 5.6 | D9: 0 | E9: 0 | F9: 0
A10: 24,000,000 | B10: 4.8 | C10: 4.872 | D10: 0 | E10: 0 | F10: 0
A11: 50,000,000 | B11: 50 | C11: 50.75 | D11: 270000 | E11: 67500 | F11: 19000
A12: 32,000,000 | B12: 26.66666667 | C12: 27.06666667 | D12: 270000 | E12: 67500 | F12: 19000
A13: 45,000,000 | B13: 13.23529412 | C13: 13.43382353 | D13: 270000 | E13: 67500 | F13: 19000
A14: 22,000,000 | B14: 9.166666667 | C14: 9.441666667 | D14: 0 | E14: 0 | F14: 0
A15: 32,000,000 | B15: 8.421052632 | C15: 8.421052632 | D15: 0 | E15: 0 | F15: 0
A16: 32,000,000 | B16: 32 | C16: 32.96 | D16: 270000 | E16: 67500 | F16: 19000
A17: 42,000,000 | B17: 13.125 | C17: 13.321875 | D17: 252000 | E17: 63000 | F17: 14500
A18: 20,000,000 | B18: 5.263157895 | C18: 5.342105263 | D18: 0 | E18: 0 | F18: 0
A19: 36,000,000 | B19: 10 | C19: 10.15 | D19: 0 | E19: 0 | F19: 0
A20: 26,000,000 | B20: 8.125 | C20: 8.36875 | D20: 0 | E20: 0 | F20: 0
A21: 22,000,000 | B21: 5.789473684 | C21: 5.876315789 | D21: 0 | E21: 0 | F21: 0
A22: 36,000,000 | B22: 7.2 | C22: 7.308 | D22: 0 | E22: 0 | F22: 0
A23: 46,000,000 | B23: 20.90909091 | C23: 20.90909091 | D23: 270000 | E23: 67500 | F23: 19000
A24: 22,000,000 | B24: 22 | C24: 22.44 | D24: 270000 | E24: 67500 | F24: 19000
A25: 20,000,000 | B25: 4.545454545 | C25: 4.681818182 | D25: 0 | E25: 0 | F25: 0
A26: 40,000,000 | B26: 11.11111111 | C26: 11.11111111 | D26: 0 | E26: 0 | F26: 0
A27: 42,000,000 | B27: 9.130434783 | C27: 9.267391304 | D27: 0 | E27: 0 | F27: 0
A28: 40,000,000 | B28: 16.66666667 | C28: 16.66666667 | D28: 270000 | E28: 67500 | F28: 19000
A29: 28,000,000 | B29: 9.333333333 | C29: 9.613333333 | D29: 168000 | E29: 0 | F29: 0
A30: 44,000,000 | B30: 44 | C30: 45.32 | D30: 270000 | E30: 67500 | F30: 19000
A31: 12,000,000 | B31: 3.157894737 | C31: 3.205263158 | D31: 0 | E31: 0 | F31: 0
A32: 22,000,000 | B32: 5 | C32: 5.075 | D32: 132000 | E32: 0 | F32: 0
A33: 18,000,000 | B33: 5 | C33: 5.15 | D33: 108000 | E33: 0 | F33: 0
A34: 34,000,000 | B34: 7.391304348 | C34: 7.502173913 | D34: 204000 | E34: 30600 | F34: 5100
A35: 38,000,000 | B35: 21.11111111 | C35: 21.74444444 | D35: 270000 | E35: 67500 | F35: 19000
A36: 22,000,000 | B36: 7.857142857 | C36: 8.014285714 | D36: 0 | E36: 0 | F36: 0
A37: 42,000,000 | B37: 35 | C37: 35.525 | D37: 270000 | E37: 67500 | F37: 19000
A38: 30,000,000 | B38: 25 | C38: 25.75 | D38: 270000 | E38: 67500 | F38: 19000
A40: צפון | B40: 2003-01-01 | C40: ותיקה | D40: נדל"ן | E40: 3% | F40: 3000000 | H40: 170000 | I40: 0% | J40: 0
A41: חיפה | B41: 2007-01-01 | C41: בינונית | D41: חיפושי נפט וגז | E41: 2% | F41: 6.5 | H41: 230000 | I41: 15% | J41: 9000
A42: עכו | C42: חדשה | D42: תעשיה | E42: 1.50% | F42: 0.25% | H42: 290000 | I42: 25% | J42: 24000
A43: נהריה | D43: השקעה ואחזקות | E43: 1.50% | F43: 14.01138612 | I43: 35%
A44: קריית שמונה | E44: 0% | F44: נדל"ן
F45: השקעה ואחזקות
F46: 0.60%
F47: 270000
F48: רמת השרון
F49: 0

Sheet נתוני עזר-תרגיל 8
A1: שער הדולר
A2: 3.81
A5: היקף עבודה
A6: ימי עבודה בחודש | B6: 21
A7: שעות עבודה ביום | B7: 8.5
A11: שכר ב-$ לשעת פיתוח
A12: שפת תכנות
A13: מערכת הפעלה | C13: C# | D13: Java | E13: PHP | F13: Objective C
B14: Windows | C14: $20.00 | D14: $16.00 | E14: $27.00 | F14: 0
B15: Linux | C15: 0 | D15: $21.00 | E15: $22.00 | F15: 0
B16: iOS | C16: 0 | D16: 0 | E16: $17.00 | F16: $18.00

Sheet קובץ נתונים תרגיל 8
A1: מס הפרוייקט | B1: שם הפרוייקט | C1: תאריך תחילת הפרוייקט | D1: שלב | E1: מערכת ההפעלה | F1: שפת הפיתוח | G1: בסיס נתונים | H1: מתכנת | I1: שעות פיתוח | J1: מספר הלקוח
A2: 1 | B2: ETS | C2: 2011-12-20 | D2: 1 | E2: Linux | F2: Java | G2: SQL Server | H2: שמואל מרקוביץ | I2: 120 | J2: 20001010
A3: 2 | B3: VDP | C3: 2011-12-30 | D3: 2 | E3: Windows | F3: C# | G3: MySQL | H3: יצחק לוי | I3: 150 | J3: 20001393
A4: 3 | B4: Click View | C4: 2012-01-02 | D4: 1 | E4: Linux | F4: Java | G4: Oracle | H4: אילן יפה | I4: 90 | J4: 20002222
A5: 4 | B5: Filter2Bottle | C5: 2012-01-03 | D5: 3 | E5: Windows | F5: PHP | G5: MySQL | H5: ארז להט | I5: 85 | J5: 20002844
A6: 5 | B6: Coupons | C6: 2011-10-24 | D6: 3 | E6: Windows | F6: PHP | G6: MySQL | H6: ערן ברק | I6: 60 | J6: 20003309
A7: 6 | B7: Hadilim | C7: 2011-09-06 | D7: 1 | E7: Windows | F7: C# | G7: SQL Server | H7: יוסי כהן | I7: 70 | J7: 20002222
A8: 7 | B8: CPU | C8: 2012-10-11 | D8: 2 | E8: iOS | F8: Objective C | G8: MySQL | H8: ישי הדס | I8: 89 | J8: 20003575
A9: 8 | B9: Silicon Bottle | C9: 2011-04-05 | D9: 3 | E9: Windows | F9: C# | G9: Oracle | H9: אביחי הלוי | I9: 100 | J9: 20004297
A10: 9 | B10: RFN | C10: 2012-01-01 | D10: 1 | E10: iOS | F10: Objective C | G10: Sysbase | H10: דורון גונן | I10: 125 | J10: 20001393
A11: 10 | B11: ABC | C11: 2011-12-13 | D11: 1 | E11: Windows | F11: C# | G11: MySQL | H11: אברהם יפה | I11: 135 | J11: 20002844
A12: 11 | B12: VDJ | C12: 2013-01-01 | D12: 1 | E12: Windows | F12: C# | G12: MySQL | H12: שלומית בן-ברוך | I12: 115 | J12: 20003309
A13: 12 | B13: E-Learning | C13: 2011-02-08 | D13: 2 | E13: Windows | F13: PHP | G13: MySQL | H13: גלעד רוזן | I13: 165 | J13: 20004806
A14: 13 | B14: IT Mgnt | C14: 2011-09-01 | D14: 2 | E14: Linux | F14: Java | G14: MySQL | H14: עידו שושני | I14: 190 | J14: 20003575
A15: 14 | B15: Proxy | C15: 2011-11-29 | D15: 2 | E15: iOS | F15: Objective C | G15: MySQL | H15: עדי בן-יצחק | I15: 185 | J15: 20001393
A16: 15 | B16: Optimal Test | C16: 2011-04-12 | D16: 2 | E16: Windows | F16: C# | G16: SQL Server | H16: ענת קמסלר | I16: 160 | J16: 20003309
A17: 16 | B17: RVN | C17: 2011-05-01 | D17: 2 | E17: Linux | F17: PHP | G17: Oracle | H17: עדיאל דרעי | I17: 175 | J17: 20003575
A18: 17 | B18: ECMS | C18: 2011-12-12 | D18: 2 | E18: iOS | F18: Objective C | G18: MySQL | H18: שאול אוחיון | I18: 135 | J18: 20003575
A19: 18 | B19: Lidim4u | C19: 2011-03-17 | D19: 2 | E19: Windows | F19: Java | G19: Oracle | H19: טל שמואלי | I19: 115 | J19: 20002844
A20: 19 | B20: Web Service | C20: 2011-03-08 | D20: 3 | E20: Windows | F20: Java | G20: Oracle | H20: רונית יצחקי | I20: 100 | J20: 20004297
A21: 20 | B21: Voice Recognition | C21: 2011-07-12 | D21: 1 | E21: iOS | F21: Objective C | G21: MySQL | H21: יעל רזאל | I21: 290 | J21: 20002222
A22: 21 | B22: Rebate | C22: 2011-05-11 | D22: 2 | E22: Windows | F22: Java | G22: SQL Server | H22: יעל בודניק | I22: 190 | J22: 20004297
A23: 22 | B23: Tamir | C23: 2012-02-01 | D23: 2 | E23: Linux | F23: Java | G23: MySQL | H23: יעל רום | I23: 140 | J23: 20001393
A24: 23 | B24: FTP Server | C24: 2012-01-13 | D24: 2 | E24: Windows | F24: C# | G24: SQL Server | H24: כהן שושנה | I24: 150 | J24: 20002222
A25: 24 | B25: VDJ | C25: 2012-02-04 | D25: 2 | E25: iOS | F25: Objective C | G25: Oracle | H25: לאה אפרים | I25: 100 | J25: 20001010
A26: 25 | B26: Rest | C26: 2011-10-26 | D26: 3 | E26: iOS | F26: Objective C | G26: Oracle | H26: לאה לבל | I26: 110 | J26: 20001010
A27: 26 | B27: Access | C27: 2011-03-19 | D27: 1 | E27: Linux | F27: Java | G27: SQL Server | H27: ניסים עומר | I27: 90 | J27: 50000020
A28: 27 | B28: SQL Server | C28: 2011-02-20 | D28: 2 | E28: iOS | F28: Objective C | G28: MySQL | H28: עמור לוי | I28: 65 | J28: 50001385
A29: 28 | B29: Oracle | C29: 2011-04-14 | D29: 2 | E29: Windows | F29: C# | G29: Oracle | H29: שלומי אטיאס | I29: 100 | J29: 50001385
A30: 29 | B30: Twist | C30: 2011-10-03 | D30: 2 | E30: Linux | F30: Java | G30: MySQL | H30: גד בהלול | I30: 30 | J30: 50006681
A31: 30 | B31: Allegro-Pro | C31: 2013-01-10 | D31: 1 | E31: Linux | F31: Java | G31: MySQL | H31: אריק פניני | I31: 30 | J31: 50007112
A32: 31 | B32: Mentha | C32: 2011-09-09 | D32: 3 | E32: Windows | F32: C# | G32: SQL Server | H32: יעל אריאלי | I32: 90 | J32: 50001736
A33: 32 | B33: ASIC | C33: 2010-05-11 | D33: 3 | E33: Linux | F33: Java | G33: MySQL | H33: אריה קאופמן | I33: 190 | J33: 50004373
A34: 33 | B34: Image Processing | C34: 2010-06-06 | D34: 3 | E34: Windows | F34: C# | G34: Oracle | H34: שלומית אביחי | I34: 290 | J34: 50000020
A35: 34 | B35: XFM | C35: 2012-07-18 | D35: 3 | E35: Linux | F35: Java | G35: Sysbase | H35: דורון בן-שלמה | I35: 130 | J35: 50004373
A36: 35 | B36: Phonext | C36: 2011-05-14 | D36: 1 | E36: Linux | F36: PHP | G36: MySQL | H36: עינת קלין | I36: 190 | J36: 50007256
A37: 36 | B37: Multicall | C37: 2011-06-20 | D37: 1 | E37: iOS | F37: Objective C | G37: MySQL | H37: ישראל דוידי | I37: 75 | J37: 50007112
A38: 37 | B38: Voice Logger | C38: 2011-07-01 | D38: 1 | E38: Linux | F38: Java | G38: MySQL | H38: מיכאל מרוה | I38: 250 | J38: 50004373
A39: 38 | B39: Voice Recognition | C39: 2011-10-10 | D39: 2 | E39: iOS | F39: Objective C | G39: MySQL | H39: אולגה יפתחי | I39: 260 | J39: 50007256
A40: 39 | B40: AQS | C40: 2011-06-12 | D40: 2 | E40: Windows | F40: C# | G40: MySQL | H40: עדי שלומות | I40: 180 | J40: 50000020
A41: 40 | B41: Operaring System | C41: 2011-06-10 | D41: 1 | E41: Windows | F41: C# | G41: SQL Server | H41: עינת בן-ישראל | I41: 110 | J41: 50004373
A42: 41 | B42: KOP | C42: 2011-04-12 | D42: 4 | E42: Linux | F42: Java | G42: Oracle | H42: חיים יעקובי | I42: 280 | J42: 50008741
A43: 42 | B43: Break | C43: 2011-07-17 | D43: 4 | E43: Linux | F43: Java | G43: MySQL | H43: שרי אברמוביץ | I43: 180 | J43: 50008741
A44: 43 | B44: Web Platform | C44: 2011-12-23 | D44: 4 | E44: Windows | F44: Java | G44: Oracle | H44: יצחק בן-טל | I44: 260 | J44: 50007256
A45: 44 | B45: Lidim4u | C45: 2012-02-12 | D45: 4 | E45: Windows | F45: Java | G45: Oracle | H45: סווטה רוזניסקי | I45: 180 | J45: 50006681
A46: 45 | B46: DSD | C46: 2011-09-11 | D46: 1 | E46: Windows | F46: Java | G46: MySQL | H46: אופיר לוי | I46: 30 | J46: 50007256
A47: 46 | B47: Face detection | C47: 2011-03-10 | D47: 1 | E47: Windows | F47: C# | G47: SQL Server | H47: שגיא רום | I47: 190 | J47: 50008741
A48: 47 | B48: Video analysis | C48: 2011-09-10 | D48: 1 | E48: Windows | F48: C# | G48: SQL Server | H48: שי איתמר | I48: 100 | J48: 50004373
A49: 48 | B49: Video capture | C49: 2011-08-11 | D49: 2 | E49: Linux | F49: Java | G49: MySQL | H49: שי ארגוב | I49: 170 | J49: 50008741
A50: 49 | B50: Web server | C50: 2011-12-30 | D50: 2 | E50: Linux | F50: Java | G50: MySQL | H50: שי גולן | I50: 160 | J50: 50000020
A51: 50 | B51: Websphere | C51: 2012-02-02 | D51: 1 | E51: Windows | F51: C# | G51: SQL Server | H51: שי המי | I51: 165 | J51: 50001736
A52: 51 | B52: Alcatel | C52: 2012-01-14 | D52: 3 | E52: iOS | F52: Objective C | G52: Oracle | H52: שי כספי | I52: 200 | J52: 50007256
A53: 52 | B53: ETS | C53: 2011-12-20 | D53: 1 | E53: Linux | F53: PHP | G53: SQL Server | H53: אריאלה בר | I53: 100 | J53: 800007988
A54: 53 | B54: VDP | C54: 2011-12-30 | D54: 2 | E54: iOs | F54: Objective C | G54: MySQL | H54: אריאלה שמול | I54: 120 | J54: 800003384
A55: 54 | B55: Click View | C55: 2012-01-02 | D55: 1 | E55: iOs | F55: Objective C | G55: Oracle | H55: בן סדון יצחק | I55: 90 | J55: 800004055
A56: 55 | B56: Filter2Bottle | C56: 2012-01-03 | D56: 3 | E56: Windows | F56: C# | G56: MySQL | H56: בעז אבזיז | I56: 180 | J56: 800002714
A57: 56 | B57: Coupons | C57: 2011-10-24 | D57: 3 | E57: Linux | F57: PHP | G57: MySQL | H57: בעז חסון | I57: 200 | J57: 800003803
A58: 57 | B58: Hadilim | C58: 2011-09-06 | D58: 1 | E58: Windows | F58: Java | G58: SQL Server | H58: בעז קנדלשיין | I58: 205 | J58: 800004066
A59: 58 | B59: CPU | C59: 2010-10-11 | D59: 2 | E59: Linux | F59: Java | G59: MySQL | H59: גד עצאר | I59: 125 | J59: 800004066
A60: 59 | B60: Silicon Bottle | C60: 2011-04-05 | D60: 3 | E60: iOS | F60: Objective C | G60: Oracle | H60: גיא אביב | I60: 65 | J60: 800007988
A61: 60 | B61: RFN | C61: 2012-01-01 | D61: 1 | E61: iOS | F61: Objective C | G61: Sysbase | H61: גיא בר | I61: 60 | J61: 800003803
A62: 61 | B62: ABC | C62: 2011-12-13 | D62: 1 | E62: Linux | F62: Java | G62: MySQL | H62: גל גולני | I62: 190 | J62: 800006006
A63: 62 | B63: VDJ | C63: 2011-12-15 | D63: 1 | E63: iOs | F63: Objective C | G63: MySQL | H63: גל דלטיצקי | I63: 170 | J63: 800003803
A64: 63 | B64: E-Learning | C64: 2011-02-08 | D64: 2 | E64: Linux | F64: Java | G64: MySQL | H64: גל לזר | I64: 210 | J64: 800007988
A65: 64 | B65: IT Mgnt | C65: 2011-09-01 | D65: 2 | E65: Linux | F65: Java | G65: MySQL | H65: דבי אביב | I65: 22 | J65: 800002975
A66: 65 | B66: Proxy | C66: 2011-11-29 | D66: 2 | E66: Windows | F66: Java | G66: MySQL | H66: דבי בר | I66: 250 | J66: 800004055
A67: 66 | B67: Optimal Test | C67: 2011-04-12 | D67: 2 | E67: iOS | F67: Objective C | G67: SQL Server | H67: דניאלה קליינהאוז | I67: 190 | J67: 800004915
A68: 67 | B68: RVN | C68: 2011-05-01 | D68: 2 | E68: iOs | F68: Objective C | G68: Oracle | H68: דניאלה רביב | I68: 275 | J68: 800002714
A69: 68 | B69: ECMS | C69: 2012-12-31 | D69: 2 | E69: iOs | F69: Objective C | G69: MySQL | H69: דניאלה רביב | I69: 285 | J69: 800008620
A70: 69 | B70: Lidim4u | C70: 2011-03-17 | D70: 2 | E70: Linux | F70: Java | G70: Oracle | H70: הגר איבין | I70: 100 | J70: 800008620
A71: 70 | B71: Web Service | C71: 2011-03-08 | D71: 3 | E71: Windows | F71: C# | G71: Oracle | H71: הגר אלגזי | I71: 95 | J71: 800003803
A72: 71 | B72: Voice Recognition | C72: 2011-07-12 | D72: 1 | E72: Windows | F72: C# | G72: MySQL | H72: הגר גואטה | I72: 65 | J72: 800008906
A73: 72 | B73: Face detection | C73: 2011-03-14 | D73: 2 | E73: Linux | F73: Java | G73: MySQL | H73: נגה אפרים | I73: 100 | J73: 800003803
A74: 73 | B74: ASIC | C74: 2012-06-19 | D74: 1 | E74: Windows | F74: C# | G74: MySQL | H74: נגה בר | I74: 105 | J74: 800003803
A75: 74 | B75: Simulators | C75: 2009-11-12 | D75: 1 | E75: iOs | F75: Objective C | G75: Oracle | H75: נגה רום | I75: 95 | J75: 800004066
A76: 75 | B76: Networking | C76: 2013-01-05 | D76: 3 | E76: Linux | F76: Java | G76: MySQL | H76: נוי ארגוב | I76: 90 | J76: 800003384
A77: 76 | B77: ASP.NET | C77: 2011-09-01 | D77: 1 | E77: Linux | F77: Java | G77: MySQL | H77: נוי סמל | I77: 100 | J77: 800008620
A78: 77 | B78: PHP+MySQL | C78: 2011-10-31 | D78: 1 | E78: Linux | F78: Java | G78: MySQL | H78: נוי פארן | I78: 110 | J78: 800003803

Sheet דירות-תרגיל 9
A1: מספר סידורי | B1: עיר | C1: אזור | D1: מספר חדרים | E1: קומה | F1: שטח (מ"ר) | G1: שנת בניה | H1: עלות מקורית | I1: שנת מכירה | J1: מחיר
A2: 1 | B2: ראש פינה | C2: גליל | D2: 1 | E2: 2 | F2: 40 | G2: 1951 | H2: ₪ 1,043,801 | I2: 1974 | J2: ₪ 1,243,710
A3: 2 | B3: מצפה רמון | C3: דרום | D3: 2 | E3: 4 | F3: 42 | G3: 1951 | H3: ₪ 1,311,786 | I3: 1978 | J3: ₪ 983,794
A4: 3 | B4: ירושלים | C4: מרכז | D4: 3 | E4: 4 | F4: 58 | G4: 1950 | H4: ₪ 1,805,963 | I4: 1979 | J4: ₪ 1,759,416
A5: 4 | B5: אילת | C5: דרום | D5: 1 | E5: 11 | F5: 40 | G5: 1954 | H5: ₪ 1,481,502 | I5: 1967 | J5: ₪ 1,134,782
A6: 5 | B6: תל אביב | C6: מרכז | D6: 1 | E6: 4 | F6: 40 | G6: 1954 | H6: ₪ 1,331,696 | I6: 1955 | J6: ₪ 1,381,424
A7: 6 | B7: כרמיאל | C7: גליל | D7: 7 | E7: 22 | F7: 117 | G7: 1953 | H7: ₪ 4,988,757 | I7: 1973 | J7: ₪ 3,946,156
A8: 7 | B8: צפת | C8: גליל | D8: 3 | E8: 18 | F8: 83 | G8: 1956 | H8: ₪ 3,170,596 | I8: 1969 | J8: ₪ 3,679,824
A9: 8 | B9: נהריה | C9: צפון | D9: 4 | E9: 16 | F9: 66 | G9: 1953 | H9: ₪ 2,819,785 | I9: 1965 | J9: ₪ 2,786,971
A10: 9 | B10: אילת | C10: דרום | D10: 2 | E10: 6 | F10: 53 | G10: 1955 | H10: ₪ 1,648,549 | I10: 1980 | J10: ₪ 1,007,712
A11: 10 | B11: ראשון לציון | C11: מרכז | D11: 1 | E11: 1 | F11: 40 | G11: 1958 | H11: ₪ 1,152,126 | I11: 1969 | J11: ₪ 1,435,596
A12: 11 | B12: תל אביב | C12: מרכז | D12: 2 | E12: 3 | F12: 60 | G12: 1956 | H12: ₪ 1,720,475 | I12: 1967 | J12: ₪ 2,336,156
A13: 12 | B13: חיפה | C13: צפון | D13: 3 | E13: 0 | F13: 60 | G13: 1954 | H13: ₪ 1,599,319 | I13: 1985 | J13: ₪ 2,771,826
A14: 13 | B14: נהריה | C14: צפון | D14: 3 | E14: 5 | F14: 52 | G14: 1957 | H14: ₪ 1,799,744 | I14: 1958 | J14: ₪ 1,692,349
A15: 14 | B15: אילת | C15: דרום | D15: 6 | E15: 16 | F15: 116 | G15: 1954 | H15: ₪ 4,391,916 | I15: 1963 | J15: ₪ 4,368,252
A16: 15 | B16: נהריה | C16: צפון | D16: 7 | E16: 9 | F16: 139 | G16: 1955 | H16: ₪ 4,214,243 | I16: 1958 | J16: ₪ 4,214,243
A17: 16 | B17: אילת | C17: דרום | D17: 3 | E17: 0 | F17: 60 | G17: 1957 | H17: ₪ 1,477,526 | I17: 1989 | J17: ₪ 1,938,618
A18: 17 | B18: צפת | C18: גליל | D18: 3 | E18: 12 | F18: 50 | G18: 1959 | H18: ₪ 1,897,776 | I18: 1971 | J18: ₪ 2,164,317
A19: 18 | B19: מצפה רמון | C19: דרום | D19: 1 | E19: 0 | F19: 50 | G19: 1957 | H19: ₪ 1,289,221 | I19: 1964 | J19: ₪ 1,222,325
A20: 19 | B20: תל אביב | C20: מרכז | D20: 5 | E20: 11 | F20: 91 | G20: 1957 | H20: ₪ 3,160,132 | I20: 1985 | J20: ₪ 1,431,430
A21: 20 | B21: באר שבע | C21: דרום | D21: 7 | E21: 2 | F21: 115 | G21: 1959 | H21: ₪ 2,877,729 | I21: 1974 | J21: ₪ 4,617,097
A22: 21 | B22: נהריה | C22: צפון | D22: 4 | E22: 12 | F22: 71 | G22: 1957 | H22: ₪ 2,274,757 | I22: 1989 | J22: ₪ 1,254,975
A23: 22 | B23: נהריה | C23: צפון | D23: 3 | E23: 13 | F23: 55 | G23: 1960 | H23: ₪ 1,959,715 | I23: 1981 | J23: ₪ 2,418,325
A24: 23 | B24: ירושלים | C24: מרכז | D24: 4 | E24: 22 | F24: 93 | G24: 1960 | H24: ₪ 4,104,237 | I24: 1984 | J24: ₪ 5,154,236
A25: 24 | B25: עכו | C25: צפון | D25: 5 | E25: 13 | F25: 94 | G25: 1959 | H25: ₪ 3,293,240 | I25: 1990 | J25: ₪ 7,584,926
A26: 25 | B26: נהריה | C26: צפון | D26: 7 | E26: 23 | F26: 146 | G26: 1958 | H26: ₪ 6,279,067 | I26: 1993 | J26: ₪ 11,710,360
A27: 26 | B27: צפת | C27: גליל | D27: 2 | E27: 4 | F27: 40 | G27: 1958 | H27: ₪ 1,055,170 | I27: 1970 | J27: ₪ 1,043,830
A28: 27 | B28: באר שבע | C28: דרום | D28: 1 | E28: 6 | F28: 40 | G28: 1957 | H28: ₪ 1,223,740 | I28: 1990 | J28: ₪ 2,818,494
A29: 28 | B29: באר שבע | C29: דרום | D29: 2 | E29: 19 | F29: 61 | G29: 1959 | H29: ₪ 2,836,239 | I29: 1977 | J29: ₪ 2,417,249
A30: 29 | B30: תל אביב | C30: מרכז | D30: 4 | E30: 11 | F30: 95 | G30: 1958 | H30: ₪ 3,443,242 | I30: 1974 | J30: ₪ 3,892,589
A31: 30 | B31: ראשון לציון | C31: מרכז | D31: 4 | E31: 14 | F31: 87 | G31: 1962 | H31: ₪ 3,454,957 | I31: 1981 | J31: ₪ 5,266,794
A32: 31 | B32: כרמיאל | C32: גליל | D32: 5 | E32: 4 | F32: 91 | G32: 1960 | H32: ₪ 2,306,176 | I32: 1979 | J32: ₪ 1,292,871
A33: 32 | B33: נהריה | C33: צפון | D33: 7 | E33: 23 | F33: 131 | G33: 1959 | H33: ₪ 5,840,284 | I33: 1974 | J33: ₪ 5,084,739
A34: 33 | B34: חיפה | C34: צפון | D34: 2 | E34: 11 | F34: 56 | G34: 1960 | H34: ₪ 1,864,895 | I34: 1981 | J34: ₪ 1,289,229
A35: 34 | B35: כרמיאל | C35: גליל | D35: 2 | E35: 11 | F35: 52 | G35: 1963 | H35: ₪ 1,733,156 | I35: 1980 | J35: ₪ 2,704,451
A36: 35 | B36: באר שבע | C36: דרום | D36: 6 | E36: 2 | F36: 123 | G36: 1960 | H36: ₪ 3,179,128 | I36: 1994 | J36: ₪ 3,094,402
A37: 36 | B37: באר שבע | C37: דרום | D37: 1 | E37: 16 | F37: 40 | G37: 1962 | H37: ₪ 1,922,365 | I37: 1987 | J37: ₪ 3,039,916
A38: 37 | B38: ראשון לציון | C38: מרכז | D38: 1 | E38: 13 | F38: 51 | G38: 1965 | H38: ₪ 1,769,958 | I38: 1963 | J38: ₪ 1,871,191
A39: 38 | B39: ראש פינה | C39: גליל | D39: 2 | E39: 0 | F39: 40 | G39: 1961 | H39: ₪ 1,205,588 | I39: 1990 | J39: ₪ 562,979
A40: 39 | B40: חיפה | C40: צפון | D40: 3 | E40: 17 | F40: 62 | G40: 1963 | H40: ₪ 2,478,872 | I40: 1973 | J40: ₪ 1,719,946
A41: 40 | B41: ראש פינה | C41: גליל | D41: 7 | E41: 0 | F41: 126 | G41: 1962 | H41: ₪ 2,599,237 | I41: 1978 | J41: ₪ 2,191,777
A42: 41 | B42: כרמיאל | C42: גליל | D42: 4 | E42: 0 | F42: 68 | G42: 1963 | H42: ₪ 1,845,298 | I42: 1967 | J42: ₪ 1,684,153
A43: 42 | B43: ירושלים | C43: מרכז | D43: 5 | E43: 14 | F43: 101 | G43: 1964 | H43: ₪ 3,665,450 | I43: 1988 | J43: ₪ 2,334,402
A44: 43 | B44: חיפה | C44: צפון | D44: 7 | E44: 11 | F44: 133 | G44: 1964 | H44: ₪ 4,360,037 | I44: 1994 | J44: ₪ 4,251,488
A45: 44 | B45: מצפה רמון | C45: דרום | D45: 6 | E45: 6 | F45: 119 | G45: 1966 | H45: ₪ 3,347,114 | I45: 1977 | J45: ₪ 2,394,195
A46: 45 | B46: ירושלים | C46: מרכז | D46: 2 | E46: 14 | F46: 57 | G46: 1964 | H46: ₪ 2,430,858 | I46: 1970 | J46: ₪ 2,329,416
A47: 46 | B47: ראשון לציון | C47: מרכז | D47: 5 | E47: 1 | F47: 80 | G47: 1965 | H47: ₪ 1,730,308 | I47: 1997 | J47: ₪ 3,985,211
A48: 47 | B48: חיפה | C48: צפון | D48: 2 | E48: 9 | F48: 67 | G48: 1964 | H48: ₪ 2,119,059 | I48: 1979 | J48: ₪ 1,341,896
A49: 48 | B49: חיפה | C49: צפון | D49: 4 | E49: 8 | F49: 94 | G49: 1967 | H49: ₪ 2,893,570 | I49: 1992 | J49: ₪ 3,570,719
A50: 49 | B50: באר שבע | C50: דרום | D50: 6 | E50: 14 | F50: 103 | G50: 1964 | H50: ₪ 3,786,540 | I50: 1981 | J50: ₪ 3,732,380
A51: 50 | B51: עכו | C51: צפון | D51: 1 | E51: 23 | F51: 49 | G51: 1967 | H51: ₪ 2,336,306 | I51: 1995 | J51: ₪ 2,959,829
A52: 51 | B52: ראש פינה | C52: גליל | D52: 2 | E52: 19 | F52: 40 | G52: 1967 | H52: ₪ 2,027,400 | I52: 1986 | J52: ₪ 1,991,217
A53: 52 | B53: באר שבע | C53: דרום | D53: 6 | E53: 19 | F53: 113 | G53: 1968 | H53: ₪ 4,766,233 | I53: 1992 | J53: ₪ 7,676,480
A54: 53 | B54: עכו | C54: צפון | D54: 7 | E54: 9 | F54: 129 | G54: 1967 | H54: ₪ 3,786,321 | I54: 1970 | J54: ₪ 3,634,156
A55: 54 | B55: מצפה רמון | C55: דרום | D55: 5 | E55: 13 | F55: 87 | G55: 1970 | H55: ₪ 2,880,351 | I55: 1970 | J55: ₪ 2,760,152
A56: 55 | B56: תל אביב | C56: מרכז | D56: 2 | E56: 12 | F56: 47 | G56: 1970 | H56: ₪ 1,834,479 | I56: 1969 | J56: ₪ 1,868,416
A57: 56 | B57: כרמיאל | C57: גליל | D57: 4 | E57: 9 | F57: 89 | G57: 1968 | H57: ₪ 2,988,052 | I57: 1990 | J57: ₪ 1,942,421
A58: 57 | B58: צפת | C58: גליל | D58: 4 | E58: 20 | F58: 90 | G58: 1966 | H58: ₪ 3,946,405 | I58: 1980 | J58: ₪ 3,509,882
A59: 58 | B59: מצפה רמון | C59: דרום | D59: 6 | E59: 0 | F59: 111 | G59: 1970 | H59: ₪ 2,555,135 | I59: 1981 | J59: ₪ 3,302,693
A60: 59 | B60: ראש פינה | C60: גליל | D60: 7 | E60: 21 | F60: 140 | G60: 1970 | H60: ₪ 6,102,335 | I60: 1981 | J60: ₪ 8,286,089
A61: 60 | B61: באר שבע | C61: דרום | D61: 3 | E61: 6 | F61: 49 | G61: 1968 | H61: ₪ 1,354,184 | I61: 1968 | J61: ₪ 1,354,184
A62: 61 | B62: ראש פינה | C62: גליל | D62: 3 | E62: 2 | F62: 63 | G62: 1971 | H62: ₪ 1,509,799 | I62: 1979 | J62: ₪ 1,993,862
A63: 62 | B63: צפת | C63: גליל | D63: 4 | E63: 24 | F63: 92 | G63: 1970 | H63: ₪ 4,351,486 | I63: 1979 | J63: ₪ 3,208,890
A64: 63 | B64: אילת | C64: דרום | D64: 5 | E64: 24 | F64: 106 | G64: 1970 | H64: ₪ 4,689,624 | I64: 1993 | J64: ₪ 8,890,430
A65: 64 | B65: ראשון לציון | C65: מרכז | D65: 5 | E65: 11 | F65: 107 | G65: 1968 | H65: ₪ 3,555,311 | I65: 1978 | J65: ₪ 3,264,771
A66: 65 | B66: נהריה | C66: צפון | D66: 2 | E66: 17 | F66: 41 | G66: 1970 | H66: ₪ 1,773,227 | I66: 1980 | J66: ₪ 1,230,340
A67: 66 | B67: חיפה | C67: צפון | D67: 4 | E67: 5 | F67: 85 | G67: 1970 | H67: ₪ 2,434,941 | I67: 1993 | J67: ₪ 2,926,813
A68: 67 | B68: עכו | C68: צפון | D68: 5 | E68: 0 | F68: 102 | G68: 1971 | H68: ₪ 2,222,609 | I68: 1984 | J68: ₪ 1,737,722
A69: 68 | B69: ראשון לציון | C69: מרכז | D69: 5 | E69: 1 | F69: 93 | G69: 1970 | H69: ₪ 2,000,923 | I69: 1975 | J69: ₪ 2,233,554
A70: 69 | B70: כרמיאל | C70: גליל | D70: 6 | E70: 23 | F70: 114 | G70: 1968 | H70: ₪ 4,923,320 | I70: 1988 | J70: ₪ 4,020,909
A71: 70 | B71: חיפה | C71: צפון | D71: 3 | E71: 11 | F71: 72 | G71: 1973 | H71: ₪ 2,710,807 | I71: 1980 | J71: ₪ 2,907,630
A72: 71 | B72: צפת | C72: גליל | D72: 2 | E72: 21 | F72: 51 | G72: 1969 | H72: ₪ 2,549,198 | I72: 1998 | J72: ₪ 1,911,811
A73: 72 | B73: תל אביב | C73: מרכז | D73: 7 | E73: 19 | F73: 126 | G73: 1969 | H73: ₪ 4,975,554 | I73: 1988 | J73: ₪ 3,657,952
A74: 73 | B74: כרמיאל | C74: גליל | D74: 1 | E74: 15 | F74: 40 | G74: 1974 | H74: ₪ 1,415,393 | I74: 1992 | J74: ₪ 1,387,631
A75: 74 | B75: ראשון לציון | C75: מרכז | D75: 3 | E75: 16 | F75: 82 | G75: 1973 | H75: ₪ 3,132,154 | I75: 1975 | J75: ₪ 3,215,572
A76: 75 | B76: ראשון לציון | C76: מרכז | D76: 3 | E76: 2 | F76: 82 | G76: 1973 | H76: ₪ 2,074,320 | I76: 1988 | J76: ₪ 2,407,476
A77: 76 | B77: ירושלים | C77: מרכז | D77: 4 | E77: 4 | F77: 67 | G77: 1974 | H77: ₪ 2,045,294 | I77: 2001 | J77: ₪ 1,175,627
A78: 77 | B78: מצפה רמון | C78: דרום | D78: 5 | E78: 6 | F78: 95 | G78: 1971 | H78: ₪ 2,814,575 | I78: 2007 | J78: ₪ 7,245,213
A79: 78 | B79: ראש פינה | C79: גליל | D79: 5 | E79: 19 | F79: 86 | G79: 1973 | H79: ₪ 3,516,240 | I79: 1995 | J79: ₪ 2,105,747
A80: 79 | B80: כרמיאל | C80: גליל | D80: 6 | E80: 18 | F80: 127 | G80: 1974 | H80: ₪ 5,220,333 | I80: 1990 | J80: ₪ 8,145,913
A81: 80 | B81: כרמיאל | C81: גליל | D81: 1 | E81: 23 | F81: 40 | G81: 1973 | H81: ₪ 1,953,601 | I81: 1973 | J81: ₪ 1,912,404
A82: 81 | B82: כרמיאל | C82: גליל | D82: 1 | E82: 1 | F82: 40 | G82: 1973 | H82: ₪ 930,406 | I82: 1978 | J82: ₪ 1,039,879
A83: 82 | B83: ירושלים | C83: מרכז | D83: 2 | E83: 0 | F83: 59 | G83: 1974 | H83: ₪ 1,451,601 | I83: 2007 | J83: ₪ 1,955,328
A84: 83 | B84: באר שבע | C84: דרום | D84: 5 | E84: 18 | F84: 93 | G84: 1972 | H84: ₪ 3,559,776 | I84: 1974 | J84: ₪ 3,869,505
A85: 84 | B85: תל אביב | C85: מרכז | D85: 6 | E85: 5 | F85: 126 | G85: 1971 | H85: ₪ 3,312,040 | I85: 2005 | J85: ₪ 6,064,704
A86: 85 | B86: כרמיאל | C86: גליל | D86: 6 | E86: 0 | F86: 105 | G86: 1975 | H86: ₪ 2,371,457 | I86: 1986 | J86: ₪ 3,598,978
A87: 86 | B87: עכו | C87: צפון | D87: 5 | E87: 0 | F87: 94 | G87: 1975 | H87: ₪ 2,145,796 | I87: 2007 | J87: ₪ 1,509,598
A88: 87 | B88: חיפה | C88: צפון | D88: 5 | E88: 13 | F88: 103 | G88: 1976 | H88: ₪ 3,663,675 | I88: 1993 | J88: ₪ 4,289,515
A89: 88 | B89: עכו | C89: צפון | D89: 2 | E89: 9 | F89: 67 | G89: 1974 | H89: ₪ 2,196,096 | I89: 1995 | J89: ₪ 1,755,744
A90: 89 | B90: אילת | C90: דרום | D90: 2 | E90: 24 | F90: 44 | G90: 1975 | H90: ₪ 2,058,672 | I90: 1985 | J90: ₪ 2,571,626
A91: 90 | B91: תל אביב | C91: מרכז | D91: 7 | E91: 10 | F91: 132 | G91: 1973 | H91: ₪ 4,082,764 | I91: 1988 | J91: ₪ 4,038,887
A92: 91 | B92: תל אביב | C92: מרכז | D92: 3 | E92: 13 | F92: 48 | G92: 1976 | H92: ₪ 1,659,978 | I92: 2005 | J92: ₪ 665,662
A93: 92 | B93: נהריה | C93: צפון | D93: 4 | E93: 4 | F93: 69 | G93: 1975 | H93: ₪ 2,081,774 | I93: 2001 | J93: ₪ 972,135
A94: 93 | B94: כרמיאל | C94: גליל | D94: 4 | E94: 24 | F94: 94 | G94: 1978 | H94: ₪ 4,339,508 | I94: 1998 | J94: ₪ 4,262,061
A95: 94 | B95: עכו | C95: צפון | D95: 3 | E95: 23 | F95: 54 | G95: 1976 | H95: ₪ 2,620,398 | I95: 2007 | J95: ₪ 2,545,973
A96: 95 | B96: חיפה | C96: צפון | D96: 5 | E96: 15 | F96: 106 | G96: 1977 | H96: ₪ 3,745,936 | I96: 1985 | J96: ₪ 3,026,652
A97: 96 | B97: ירושלים | C97: מרכז | D97: 5 | E97: 15 | F97: 110 | G97: 1978 | H97: ₪ 4,332,013 | I97: 2006 | J97: ₪ 7,237,668
A98: 97 | B98: ראש פינה | C98: גליל | D98: 6 | E98: 1 | F98: 130 | G98: 1976 | H98: ₪ 3,082,615 | I98: 1996 | J98: ₪ 5,376,148
A99: 98 | B99: מצפה רמון | C99: דרום | D99: 1 | E99: 1 | F99: 40 | G99: 1978 | H99: ₪ 1,102,050 | I99: 1990 | J99: ₪ 1,089,225
A100: 99 | B100: מצפה רמון | C100: דרום | D100: 3 | E100: 9 | F100: 66 | G100: 1976 | H100: ₪ 2,032,414 | I100: 2004 | J100: ₪ 1,988,965
A101: 100 | B101: ראשון לציון | C101: מרכז | D101: 2 | E101: 21 | F101: 42 | G101: 1980 | H101: ₪ 1,839,308 | I101: 2011 | J101: ₪ 2,434,539
A102: 101 | B102: אילת | C102: דרום | D102: 2 | E102: 16 | F102: 59 | G102: 1978 | H102: ₪ 2,501,968 | I102: 2002 | J102: ₪ 3,033,844
A103: 102 | B103: צפת | C103: גליל | D103: 3 | E103: 24 | F103: 70 | G103: 1981 | H103: ₪ 3,520,834 | I103: 1987 | J103: ₪ 3,164,933
A104: 103 | B104: צפת | C104: גליל | D104: 6 | E104: 24 | F104: 114 | G104: 1979 | H104: ₪ 5,443,661 | I104: 2004 | J104: ₪ 10,319,908
A105: 104 | B105: צפת | C105: גליל | D105: 6 | E105: 13 | F105: 128 | G105: 1977 | H105: ₪ 4,562,432 | I105: 1983 | J105: ₪ 5,390,909
A106: 105 | B106: באר שבע | C106: דרום | D106: 1 | E106: 4 | F106: 40 | G106: 1978 | H106: ₪ 1,392,766 | I106: 2013 | J106: ₪ 722,532
A107: 106 | B107: ראש פינה | C107: גליל | D107: 1 | E107: 8 | F107: 41 | G107: 1978 | H107: ₪ 1,341,318 | I107: 1987 | J107: ₪ 1,186,015
A108: 107 | B108: צפת | C108: גליל | D108: 1 | E108: 10 | F108: 40 | G108: 1978 | H108: ₪ 1,633,420 | I108: 2002 | J108: ₪ 1,599,940
A109: 108 | B109: עכו | C109: צפון | D109: 4 | E109: 11 | F109: 88 | G109: 1980 | H109: ₪ 3,206,616 | I109: 1982 | J109: ₪ 3,206,616
A110: 109 | B110: עכו | C110: צפון | D110: 6 | E110: 5 | F110: 116 | G110: 1981 | H110: ₪ 3,076,728 | I110: 1986 | J110: ₪ 2,948,334
A111: 110 | B111: צפת | C111: גליל | D111: 7 | E111: 13 | F111: 113 | G111: 1982 | H111: ₪ 3,806,588 | I111: 1992 | J111: ₪ 4,572,420
A112: 111 | B112: אילת | C112: דרום | D112: 1 | E112: 21 | F112: 40 | G112: 1980 | H112: ₪ 1,840,301 | I112: 1998 | J112: ₪ 1,551,812
A113: 112 | B113: תל אביב | C113: מרכז | D113: 1 | E113: 11 | F113: 40 | G113: 1983 | H113: ₪ 1,355,117 | I113: 2011 | J113: ₪ 973,880
A114: 113 | B114: חיפה | C114: צפון | D114: 3 | E114: 21 | F114: 54 | G114: 1980 | H114: ₪ 2,441,636 | I114: 1986 | J114: ₪ 2,249,330
A115: 114 | B115: ראש פינה | C115: גליל | D115: 4 | E115: 11 | F115: 83 | G115: 1982 | H115: ₪ 2,771,397 | I115: 2009 | J115: ₪ 6,207,963
A116: 115 | B116: באר שבע | C116: דרום | D116: 5 | E116: 19 | F116: 88 | G116: 1983 | H116: ₪ 3,726,653 | I116: 2010 | J116: ₪ 6,578,259
A117: 116 | B117: נהריה | C117: צפון | D117: 6 | E117: 2 | F117: 102 | G117: 1981 | H117: ₪ 2,371,202 | I117: 2008 | J117: ₪ 5,311,521
A118: 117 | B118: מצפה רמון | C118: דרום | D118: 7 | E118: 9 | F118: 124 | G118: 1982 | H118: ₪ 4,000,790 | I118: 1992 | J118: ₪ 3,192,786
A119: 118 | B119: חיפה | C119: צפון | D119: 2 | E119: 1 | F119: 43 | G119: 1984 | H119: ₪ 1,055,600 | I119: 1987 | J119: ₪ 1,213,074
A120: 119 | B120: אילת | C120: דרום | D120: 1 | E120: 1 | F120: 40 | G120: 1980 | H120: ₪ 1,020,068 | I120: 2013 | J120: ₪ 2,284,964
A121: 120 | B121: נהריה | C121: צפון | D121: 2 | E121: 22 | F121: 58 | G121: 1983 | H121: ₪ 2,465,696 | I121: 1987 | J121: ₪ 2,182,862
A122: 121 | B122: נהריה | C122: צפון | D122: 6 | E122: 24 | F122: 100 | G122: 1984 | H122: ₪ 4,634,520 | I122: 1995 | J122: ₪ 3,949,874
A123: 122 | B123: צפת | C123: גליל | D123: 1 | E123: 3 | F123: 44 | G123: 1983 | H123: ₪ 1,269,969 | I123: 1989 | J123: ₪ 1,366,586
A124: 123 | B124: צפת | C124: גליל | D124: 1 | E124: 10 | F124: 40 | G124: 1982 | H124: ₪ 1,340,373 | I124: 1985 | J124: ₪ 1,261,156
A125: 124 | B125: באר שבע | C125: דרום | D125: 1 | E125: 9 | F125: 40 | G125: 1984 | H125: ₪ 1,491,015 | I125: 2011 | J125: ₪ 1,922,335
A126: 125 | B126: כרמיאל | C126: גליל | D126: 7 | E126: 17 | F126: 132 | G126: 1983 | H126: ₪ 5,376,465 | I126: 2007 | J126: ₪ 6,519,412
A127: 126 | B127: ראש פינה | C127: גליל | D127: 4 | E127: 23 | F127: 65 | G127: 1983 | H127: ₪ 2,842,120 | I127: 2006 | J127: ₪ 5,240,220
A128: 127 | B128: אילת | C128: דרום | D128: 5 | E128: 1 | F128: 104 | G128: 1987 | H128: ₪ 2,398,981 | I128: 2010 | J128: ₪ 1,054,055
A129: 128 | B129: מצפה רמון | C129: דרום | D129: 4 | E129: 11 | F129: 80 | G129: 1985 | H129: ₪ 2,739,365 | I129: 1999 | J129: ₪ 4,157,324
A130: 129 | B130: כרמיאל | C130: גליל | D130: 1 | E130: 8 | F130: 40 | G130: 1984 | H130: ₪ 1,189,431 | I130: 1985 | J130: ₪ 1,189,431
A131: 130 | B131: ירושלים | C131: מרכז | D131: 2 | E131: 3 | F131: 65 | G131: 1985 | H131: ₪ 1,719,011 | I131: 2010 | J131: ₪ 1,679,235
A132: 131 | B132: ראשון לציון | C132: מרכז | D132: 4 | E132: 3 | F132: 82 | G132: 1987 | H132: ₪ 2,098,287 | I132: 2004 | J132: ₪ 2,060,839
A133: 132 | B133: עכו | C133: צפון | D133: 4 | E133: 7 | F133: 73 | G133: 1984 | H133: ₪ 2,454,102 | I133: 2008 | J133: ₪ 2,949,844
A134: 133 | B134: ירושלים | C134: מרכז | D134: 6 | E134: 12 | F134: 130 | G134: 1984 | H134: ₪ 4,527,809 | I134: 2008 | J134: ₪ 3,506,015
A135: 134 | B135: באר שבע | C135: דרום | D135: 6 | E135: 12 | F135: 100 | G135: 1984 | H135: ₪ 3,589,832 | I135: 2010 | J135: ₪ 2,286,243
A136: 135 | B136: באר שבע | C136: דרום | D136: 7 | E136: 0 | F136: 117 | G136: 1986 | H136: ₪ 2,666,447 | I136: 2013 | J136: ₪ 2,021,168
A137: 136 | B137: נהריה | C137: צפון | D137: 1 | E137: 19 | F137: 40 | G137: 1988 | H137: ₪ 1,715,108 | I137: 1993 | J137: ₪ 2,026,548
A138: 137 | B138: חיפה | C138: צפון | D138: 2 | E138: 3 | F138: 40 | G138: 1987 | H138: ₪ 1,213,287 | I138: 2000 | J138: ₪ 1,056,326
A139: 138 | B139: צפת | C139: גליל | D139: 6 | E139: 24 | F139: 98 | G139: 1987 | H139: ₪ 4,552,039 | I139: 2012 | J139: ₪ 8,629,601
A140: 139 | B140: עכו | C140: צפון | D140: 2 | E140: 16 | F140: 43 | G140: 1986 | H140: ₪ 1,586,939 | I140: 1994 | J140: ₪ 1,658,004
A141: 140 | B141: חיפה | C141: צפון | D141: 2 | E141: 24 | F141: 56 | G141: 1988 | H141: ₪ 2,591,629 | I141: 1995 | J141: ₪ 2,158,754
A142: 141 | B142: כרמיאל | C142: גליל | D142: 3 | E142: 0 | F142: 52 | G142: 1987 | H142: ₪ 1,414,910 | I142: 2010 | J142: ₪ 1,384,662
A143: 142 | B143: באר שבע | C143: דרום | D143: 4 | E143: 0 | F143: 83 | G143: 1990 | H143: ₪ 2,043,166 | I143: 2013 | J143: ₪ 1,274,809
A144: 143 | B144: ירושלים | C144: מרכז | D144: 5 | E144: 6 | F144: 81 | G144: 1988 | H144: ₪ 2,374,377 | I144: 2005 | J144: ₪ 1,641,442
A145: 144 | B145: תל אביב | C145: מרכז | D145: 6 | E145: 21 | F145: 105 | G145: 1988 | H145: ₪ 4,630,871 | I145: 1992 | J145: ₪ 5,471,775
A146: 145 | B146: באר שבע | C146: דרום | D146: 6 | E146: 6 | F146: 103 | G146: 1990 | H146: ₪ 2,866,997 | I146: 2012 | J146: ₪ 1,752,515
A147: 146 | B147: ראשון לציון | C147: מרכז | D147: 7 | E147: 11 | F147: 129 | G147: 1990 | H147: ₪ 4,289,360 | I147: 2004 | J147: ₪ 3,026,741
A148: 147 | B148: ירושלים | C148: מרכז | D148: 7 | E148: 17 | F148: 120 | G148: 1989 | H148: ₪ 4,526,362 | I148: 2006 | J148: ₪ 3,657,525
A149: 148 | B149: חיפה | C149: צפון | D149: 7 | E149: 6 | F149: 133 | G149: 1988 | H149: ₪ 3,661,574 | I149: 2011 | J149: ₪ 5,685,028
A150: 149 | B150: ראשון לציון | C150: מרכז | D150: 3 | E150: 13 | F150: 58 | G150: 1989 | H150: ₪ 1,993,333 | I150: 1999 | J150: ₪ 2,483,775
A151: 150 | B151: חיפה | C151: צפון | D151: 3 | E151: 19 | F151: 72 | G151: 1989 | H151: ₪ 3,003,682 | I151: 1998 | J151: ₪ 3,278,722
A152: 151 | B152: חיפה | C152: צפון | D152: 3 | E152: 10 | F152: 48 | G152: 1987 | H152: ₪ 1,632,795 | I152: 1994 | J152: ₪ 1,856,345
A153: 152 | B153: נהריה | C153: צפון | D153: 1 | E153: 17 | F153: 40 | G153: 1991 | H153: ₪ 1,735,904 | I153: 2011 | J153: ₪ 888,185
A154: 153 | B154: ירושלים | C154: מרכז | D154: 2 | E154: 7 | F154: 44 | G154: 1989 | H154: ₪ 1,469,264 | I154: 2013 | J154: ₪ 1,781,605
A155: 154 | B155: ראש פינה | C155: גליל | D155: 2 | E155: 23 | F155: 57 | G155: 1988 | H155: ₪ 2,545,154 | I155: 2005 | J155: ₪ 3,756,647
A156: 155 | B156: מצפה רמון | C156: דרום | D156: 2 | E156: 24 | F156: 48 | G156: 1988 | H156: ₪ 2,170,543 | I156: 2006 | J156: ₪ 1,254,468
A157: 156 | B157: עכו | C157: צפון | D157: 2 | E157: 20 | F157: 40 | G157: 1992 | H157: ₪ 1,896,756 | I157: 1997 | J157: ₪ 1,628,808
A158: 157 | B158: צפת | C158: גליל | D158: 7 | E158: 5 | F158: 147 | G158: 1989 | H158: ₪ 4,106,273 | I158: 2010 | J158: ₪ 3,248,102
A159: 158 | B159: עכו | C159: צפון | D159: 4 | E159: 12 | F159: 97 | G159: 1991 | H159: ₪ 3,216,767 | I159: 2012 | J159: ₪ 2,571,755
A160: 159 | B160: מצפה רמון | C160: דרום | D160: 6 | E160: 1 | F160: 106 | G160: 1991 | H160: ₪ 2,454,579 | I160: 2007 | J160: ₪ 4,049,242
A161: 160 | B161: ראש פינה | C161: גליל | D161: 7 | E161: 10 | F161: 112 | G161: 1989 | H161: ₪ 3,496,219 | I161: 2000 | J161: ₪ 4,747,360
A162: 161 | B162: מצפה רמון | C162: דרום | D162: 1 | E162: 2 | F162: 41 | G162: 1994 | H162: ₪ 1,020,192 | I162: 2005 | J162: ₪ 1,385,273
A163: 162 | B163: ירושלים | C163: מרכז | D163: 4 | E163: 10 | F163: 66 | G163: 1990 | H163: ₪ 2,440,198 | I163: 1996 | J163: ₪ 2,248,006
A164: 163 | B164: נהריה | C164: צפון | D164: 5 | E164: 6 | F164: 103 | G164: 1993 | H164: ₪ 3,129,944 | I164: 2011 | J164: ₪ 3,729,392
A165: 164 | B165: ראשון לציון | C165: מרכז | D165: 6 | E165: 24 | F165: 130 | G165: 1993 | H165: ₪ 6,039,880 | I165: 2011 | J165: ₪ 4,007,656
A166: 165 | B166: אילת | C166: דרום | D166: 7 | E166: 10 | F166: 131 | G166: 1992 | H166: ₪ 4,213,707 | I166: 2013 | J166: ₪ 4,138,505
A167: 166 | B167: עכו | C167: צפון | D167: 6 | E167: 18 | F167: 128 | G167: 1992 | H167: ₪ 5,015,375 | I167: 1998 | J167: ₪ 4,052,336
A168: 167 | B168: מצפה רמון | C168: דרום | D168: 5 | E168: 24 | F168: 85 | G168: 1995 | H168: ₪ 4,193,064 | I168: 1995 | J168: ₪ 4,193,064
A169: 168 | B169: כרמיאל | C169: גליל | D169: 5 | E169: 13 | F169: 103 | G169: 1995 | H169: ₪ 3,496,889 | I169: 2013 | J169: ₪ 3,440,670
A170: 169 | B170: אילת | C170: דרום | D170: 6 | E170: 21 | F170: 108 | G170: 1992 | H170: ₪ 4,748,845 | I170: 2010 | J170: ₪ 7,834,021
A171: 170 | B171: עכו | C171: צפון | D171: 7 | E171: 3 | F171: 132 | G171: 1994 | H171: ₪ 3,431,108 | I171: 1999 | J171: ₪ 3,900,871
A172: 171 | B172: ירושלים | C172: מרכז | D172: 2 | E172: 18 | F172: 41 | G172: 1995 | H172: ₪ 1,746,174 | I172: 2007 | J172: ₪ 1,939,761
A173: 172 | B173: עכו | C173: צפון | D173: 1 | E173: 2 | F173: 50 | G173: 1994 | H173: ₪ 1,170,417 | I173: 2012 | J173: ₪ 697,364
A174: 173 | B174: באר שבע | C174: דרום | D174: 7 | E174: 17 | F174: 121 | G174: 1993 | H174: ₪ 4,832,379 | I174: 2012 | J174: ₪ 2,879,257
A175: 174 | B175: ראשון לציון | C175: מרכז | D175: 7 | E175: 1 | F175: 123 | G175: 1995 | H175: ₪ 2,955,973 | I175: 2013 | J175: ₪ 2,085,851
A176: 175 | B176: ראש פינה | C176: גליל | D176: 7 | E176: 14 | F176: 117 | G176: 1996 | H176: ₪ 4,406,568 | I176: 2002 | J176: ₪ 4,046,464
A177: 176 | B177: ירושלים | C177: מרכז | D177: 1 | E177: 18 | F177: 51 | G177: 1996 | H177: ₪ 2,314,751 | I177: 2005 | J177: ₪ 2,058,710
A178: 177 | B178: ירושלים | C178: מרכז | D178: 1 | E178: 22 | F178: 40 | G178: 1995 | H178: ₪ 1,833,401 | I178: 2013 | J178: ₪ 1,545,994
A179: 178 | B179: תל אביב | C179: מרכז | D179: 2 | E179: 23 | F179: 50 | G179: 1994 | H179: ₪ 2,211,790 | I179: 2013 | J179: ₪ 3,451,322
A180: 179 | B180: ירושלים | C180: מרכז | D180: 2 | E180: 15 | F180: 57 | G180: 1996 | H180: ₪ 2,492,839 | I180: 2003 | J180: ₪ 2,732,117
A181: 180 | B181: ראשון לציון | C181: מרכז | D181: 4 | E181: 13 | F181: 82 | G181: 1997 | H181: ₪ 2,887,824 | I181: 1998 | J181: ₪ 2,767,313
A182: 181 | B182: תל אביב | C182: מרכז | D182: 5 | E182: 15 | F182: 99 | G182: 1997 | H182: ₪ 3,595,007 | I182: 2013 | J182: ₪ 4,732,768
A183: 182 | B183: חיפה | C183: צפון | D183: 5 | E183: 2 | F183: 102 | G183: 1994 | H183: ₪ 2,312,615 | I183: 2013 | J183: ₪ 1,420,532
A184: 183 | B184: ראשון לציון | C184: מרכז | D184: 4 | E184: 12 | F184: 91 | G184: 1997 | H184: ₪ 3,079,604 | I184: 2007 | J184: ₪ 2,827,939
A185: 184 | B185: נהריה | C185: צפון | D185: 4 | E185: 4 | F185: 95 | G185: 1995 | H185: ₪ 2,683,534 | I185: 2011 | J185: ₪ 2,647,533
A186: 185 | B186: ראשון לציון | C186: מרכז | D186: 5 | E186: 17 | F186: 101 | G186: 1999 | H186: ₪ 3,804,325 | I186: 2011 | J186: ₪ 5,773,532
A187: 186 | B187: ראשון לציון | C187: מרכז | D187: 6 | E187: 18 | F187: 116 | G187: 1999 | H187: ₪ 4,776,204 | I187: 2012 | J187: ₪ 3,584,151
A188: 187 | B188: ראש פינה | C188: גליל | D188: 1 | E188: 13 | F188: 40 | G188: 1997 | H188: ₪ 1,659,428 | I188: 2013 | J188: ₪ 1,245,265
A189: 188 | B189: ראשון לציון | C189: מרכז | D189: 1 | E189: 8 | F189: 40 | G189: 1997 | H189: ₪ 1,219,670 | I189: 2013 | J189: ₪ 1,204,391
A190: 189 | B190: תל אביב | C190: מרכז | D190: 3 | E190: 6 | F190: 61 | G190: 1997 | H190: ₪ 1,815,515 | I190: 2013 | J190: ₪ 1,792,772
A191: 190 | B191: ירושלים | C191: מרכז | D191: 4 | E191: 14 | F191: 74 | G191: 1997 | H191: ₪ 2,516,591 | I191: 2008 | J191: ₪ 2,967,986
A192: 191 | B192: תל אביב | C192: מרכז | D192: 3 | E192: 7 | F192: 71 | G192: 2001 | H192: ₪ 2,332,812 | I192: 2011 | J192: ₪ 3,348,794
A193: 192 | B193: נהריה | C193: צפון | D193: 4 | E193: 16 | F193: 78 | G193: 2000 | H193: ₪ 3,217,892 | I193: 2013 | J193: ₪ 2,464,801
A194: 193 | B194: נהריה | C194: צפון | D194: 4 | E194: 18 | F194: 84 | G194: 1997 | H194: ₪ 3,592,911 | I194: 2010 | J194: ₪ 4,559,738
A195: 194 | B195: ראש פינה | C195: גליל | D195: 5 | E195: 8 | F195: 80 | G195: 1998 | H195: ₪ 2,634,758 | I195: 2002 | J195: ₪ 2,835,207
A196: 195 | B196: כרמיאל | C196: גליל | D196: 3 | E196: 24 | F196: 76 | G196: 2000 | H196: ₪ 3,653,550 | I196: 2002 | J196: ₪ 3,501,085
A197: 196 | B197: תל אביב | C197: מרכז | D197: 3 | E197: 20 | F197: 77 | G197: 1999 | H197: ₪ 3,237,215 | I197: 2013 | J197: ₪ 2,246,116
A198: 197 | B198: מצפה רמון | C198: דרום | D198: 3 | E198: 14 | F198: 78 | G198: 2001 | H198: ₪ 2,695,798 | I198: 2013 | J198: ₪ 2,372,194
A199: 198 | B199: צפת | C199: גליל | D199: 5 | E199: 3 | F199: 109 | G199: 1999 | H199: ₪ 2,838,972 | I199: 2013 | J199: ₪ 2,219,618
A200: 199 | B200: כרמיאל | C200: גליל | D200: 2 | E200: 0 | F200: 58 | G200: 2003 | H200: ₪ 1,380,767 | I200: 2006 | J200: ₪ 1,196,112
... 29 more rows

Sheet קמפיין שיווקי-תרגיל 9
A1: דרישות מדיה
B3: ערוצי מדיה
B4: טלוויזיה | C4: אינטרנט | D4: דיוור ישיר | E4: עיתון
A5: גודל קהל היעד אליו יופנה הפרסום | B5: 25,000 | C5: 50,000 | D5: 30,000 | E5: 12,500
A6: עלות לפרסום בודד ב-$ | B6: $500.00 | C6: $200.00 | D6: $250.00 | E6: $125.00
A7: מס' הפרסומים המינימאלי | B7: 20 | C7: 15 | D7: 10 | E7: 15
A8: שיבטיח את אפקטיביות הקמפיין
A10: השקעות
B12: ערוצי מדיה
B13: טלוויזיה | C13: אינטרנט | D13: דיוור ישיר | E13: עיתון
A14: מס' הפרסומים בפועל
A15: סכום השקעה כולל ב-$
A16: מספר האנשים הכולל שייחשפו לפרסום

Sheet עופות בחווה-תרגיל 9
A1: קוד מוצר | B1: תאריך רכישה ראשון | C1: מחיר לק"ג | D1: קלוריות לק"ג | E1: מינרלים גרם לק"ג | F1: פחמימות גרם לק"ג | G1: שומן גרם לק"ג | H1: קוד ספק | I1: עונת זמינות | J1: אוכלוסיית יעד | N1: דרישות תזונתיות יומיות, מינימליות, לעופות
A2: C7 | B2: 2000-06-23 | C2: $1.52 | D2: 6,620 | E2: 102 | F2: 134 | G2: 764 | H2: 63 | I2: אביב | J2: בקר | N2: מרכיב | O2: כמות | P2: יחידה
A3: B7 | B3: 2006-10-20 | C3: $0.72 | D3: 8,320 | E3: 24 | F3: 151 | G3: 825 | H3: 100 | I3: אביב | J3: בקר | N3: קלוריות | O3: 2700 | P3: קלוריה
A4: E13 | B4: 2010-01-24 | C4: $0.06 | D4: 6,781 | E4: 86 | F4: 185 | G4: 729 | H4: 63 | I4: אביב | J4: דגים | N4: מינרלים | O4: 27 | P4: גרם
A5: B3 | B5: 2009-06-24 | C5: $0.59 | D5: 8,881 | E5: 50 | F5: 237 | G5: 713 | H5: 100 | I5: אביב | J5: דגים | N5: פחמימות | O5: 450 | P5: גרם
A6: D3 | B6: 2009-11-07 | C6: $1.26 | D6: 6,925 | E6: 89 | F6: 249 | G6: 662 | H6: 36 | I6: אביב | J6: כבשים | N6: שומן | O6: 150 | P6: גרם
A7: E6 | B7: 2006-09-05 | C7: $1.20 | D7: 6,060 | E7: 59 | F7: 113 | G7: 828 | H7: 85 | I7: אביב | J7: עופות
A8: B6 | B8: 2010-01-10 | C8: $0.58 | D8: 7,569 | E8: 55 | F8: 336 | G8: 609 | H8: 31 | I8: אביב | J8: עופות
A9: A5 | B9: 2001-12-10 | C9: $0.03 | D9: 6,222 | E9: 23 | F9: 128 | G9: 849 | H9: 36 | I9: אביב | J9: עיזים
A10: E15 | B10: 2004-03-23 | C10: $1.16 | D10: 8,333 | E10: 102 | F10: 316 | G10: 582 | H10: 85 | I10: אביב | J10: עיזים
A11: E5 | B11: 2008-11-14 | C11: $0.16 | D11: 7,931 | E11: 43 | F11: 307 | G11: 650 | H11: 108 | I11: אביב | J11: עיזים
A12: E20 | B12: 2010-02-28 | C12: $0.46 | D12: 6,746 | E12: 68 | F12: 302 | G12: 630 | H12: 108 | I12: אביב | J12: עיזים
A13: E9 | B13: 2004-08-31 | C13: $0.84 | D13: 5,415 | E13: 79 | F13: 166 | G13: 755 | H13: 85 | I13: חורף | J13: בקר
A14: B8 | B14: 2006-02-14 | C14: $0.11 | D14: 6,484 | E14: 24 | F14: 217 | G14: 759 | H14: 36 | I14: חורף | J14: בקר
A15: E14 | B15: 2008-06-26 | C15: $0.33 | D15: 7,496 | E15: 30 | F15: 210 | G15: 760 | H15: 100 | I15: חורף | J15: בקר
A16: E16 | B16: 2000-08-04 | C16: $1.20 | D16: 8,057 | E16: 82 | F16: 216 | G16: 702 | H16: 100 | I16: חורף | J16: בקר
A17: C4 | B17: 2002-07-26 | C17: $0.87 | D17: 8,337 | E17: 42 | F17: 345 | G17: 613 | H17: 31 | I17: חורף | J17: דגים
A18: E2 | B18: 2003-08-06 | C18: $0.53 | D18: 7,938 | E18: 99 | F18: 255 | G18: 646 | H18: 108 | I18: חורף | J18: דגים
A19: D2 | B19: 2000-11-27 | C19: $1.25 | D19: 7,196 | E19: 45 | F19: 151 | G19: 804 | H19: 100 | I19: חורף | J19: כבשים
A20: C1 | B20: 2002-07-29 | C20: $1.24 | D20: 7,290 | E20: 87 | F20: 261 | G20: 652 | H20: 63 | I20: חורף | J20: כבשים
A21: D4 | B21: 2004-03-17 | C21: $1.29 | D21: 1,825 | E21: 114 | F21: 328 | G21: 558 | H21: 63 | I21: חורף | J21: עופות
A22: C2 | B22: 2005-04-19 | C22: $0.77 | D22: 2,076 | E22: 65 | F22: 81 | G22: 854 | H22: 63 | I22: חורף | J22: עופות
A23: D10 | B23: 2008-09-30 | C23: $0.80 | D23: 2,569 | E23: 43 | F23: 169 | G23: 788 | H23: 36 | I23: חורף | J23: עופות
A24: C6 | B24: 2005-08-29 | C24: $0.47 | D24: 6,267 | E24: 59 | F24: 366 | G24: 575 | H24: 31 | I24: חורף | J24: עיזים
A25: C5 | B25: 2001-06-30 | C25: $0.21 | D25: 6,107 | E25: 51 | F25: 95 | G25: 854 | H25: 31 | I25: חורף | J25: עיזים
A26: B2 | B26: 2005-02-06 | C26: $1.51 | D26: 6,455 | E26: 75 | F26: 95 | G26: 830 | H26: 63 | I26: חורף | J26: עיזים
A27: D9 | B27: 2002-10-11 | C27: $0.98 | D27: 7,420 | E27: 92 | F27: 371 | G27: 537 | H27: 85 | I27: חורף | J27: עיזים
A28: D1 | B28: 2007-03-03 | C28: $1.10 | D28: 5,736 | E28: 46 | F28: 337 | G28: 617 | H28: 85 | I28: חורף | J28: עיזים
A29: E19 | B29: 2003-03-17 | C29: $0.19 | D29: 6,871 | E29: 26 | F29: 342 | G29: 632 | H29: 63 | I29: סתיו | J29: בקר
A30: D7 | B30: 2008-12-14 | C30: $1.44 | D30: 6,163 | E30: 91 | F30: 309 | G30: 600 | H30: 31 | I30: סתיו | J30: בקר
A31: E7 | B31: 2002-02-24 | C31: $0.14 | D31: 6,976 | E31: 109 | F31: 106 | G31: 785 | H31: 31 | I31: סתיו | J31: בקר
A32: A1 | B32: 2004-05-25 | C32: $1.53 | D32: 8,231 | E32: 94 | F32: 215 | G32: 691 | H32: 108 | I32: סתיו | J32: דגים
A33: E11 | B33: 2000-05-14 | C33: $0.97 | D33: 7,055 | E33: 30 | F33: 268 | G33: 702 | H33: 85 | I33: סתיו | J33: דגים
A34: B4 | B34: 2000-12-31 | C34: $0.42 | D34: 5,342 | E34: 79 | F34: 331 | G34: 590 | H34: 31 | I34: סתיו | J34: דגים
A35: A4 | B35: 2006-09-23 | C35: $1.53 | D35: 7,072 | E35: 100 | F35: 314 | G35: 586 | H35: 63 | I35: סתיו | J35: דגים
A36: A3 | B36: 2001-10-17 | C36: $0.61 | D36: 7,510 | E36: 100 | F36: 143 | G36: 757 | H36: 100 | I36: סתיו | J36: דגים
A37: E12 | B37: 2010-02-07 | C37: $0.68 | D37: 8,369 | E37: 46 | F37: 235 | G37: 719 | H37: 36 | I37: סתיו | J37: כבשים
A38: E3 | B38: 2009-04-25 | C38: $0.79 | D38: 5,611 | E38: 34 | F38: 132 | G38: 834 | H38: 31 | I38: סתיו | J38: כבשים
A39: D5 | B39: 2005-11-27 | C39: $0.38 | D39: 5,333 | E39: 97 | F39: 241 | G39: 662 | H39: 85 | I39: סתיו | J39: עופות
A40: E18 | B40: 2009-07-06 | C40: $1.06 | D40: 5,648 | E40: 24 | F40: 304 | G40: 672 | H40: 108 | I40: סתיו | J40: עופות
A41: D6 | B41: 2001-03-07 | C41: $1.03 | D41: 6,928 | E41: 40 | F41: 270 | G41: 690 | H41: 108 | I41: סתיו | J41: עיזים
A42: A6 | B42: 2001-01-25 | C42: $1.57 | D42: 8,691 | E42: 109 | F42: 151 | G42: 740 | H42: 36 | I42: סתיו | J42: עיזים
A43: A2 | B43: 2000-12-08 | C43: $0.70 | D43: 7,835 | E43: 104 | F43: 187 | G43: 709 | H43: 85 | I43: סתיו | J43: עיזים
A44: E1 | B44: 2006-05-25 | C44: $0.46 | D44: 5,056 | E44: 31 | F44: 153 | G44: 816 | H44: 100 | I44: סתיו | J44: עיזים
A45: C3 | B45: 2008-09-18 | C45: $0.79 | D45: 6,793 | E45: 95 | F45: 357 | G45: 548 | H45: 108 | I45: קיץ | J45: בקר
A46: E10 | B46: 2002-07-03 | C46: $0.02 | D46: 8,098 | E46: 51 | F46: 270 | G46: 679 | H46: 100 | I46: קיץ | J46: דגים
A47: B5 | B47: 2007-05-04 | C47: $0.51 | D47: 8,632 | E47: 102 | F47: 266 | G47: 632 | H47: 85 | I47: קיץ | J47: כבשים
A48: E8 | B48: 2003-07-17 | C48: $1.24 | D48: 6,453 | E48: 105 | F48: 350 | G48: 545 | H48: 100 | I48: קיץ | J48: כבשים
A49: E17 | B49: 2008-05-27 | C49: $1.54 | D49: 5,952 | E49: 20 | F49: 305 | G49: 675 | H49: 100 | I49: קיץ | J49: עופות
A50: D8 | B50: 2003-11-04 | C50: $0.65 | D50: 6,144 | E50: 32 | F50: 164 | G50: 804 | H50: 85 | I50: קיץ | J50: עופות
A51: E4 | B51: 2009-08-16 | C51: $1.01 | D51: 8,032 | E51: 55 | F51: 200 | G51: 745 | H51: 36 | I51: קיץ | J51: עיזים
A52: B1 | B52: 2009-07-02 | C52: $1.18 | D52: 8,090 | E52: 78 | F52: 265 | G52: 657 | H52: 100 | I52: קיץ | J52: עיזים

Sheet קובץ נתונים תרגיל 10
A1: מס הפרוייקט | B1: שם הפרוייקט | C1: תאריך תחילת הפרוייקט | D1: שעות פיתוח
A2: 1 | B2: ETS | C2: 2011-12-20 | D2: 120
A3: 2 | B3: VDP | C3: 2011-12-30 | D3: 150
A4: 3 | B4: Click View | C4: 2012-01-02 | D4: 90
A5: 4 | B5: Filter2Bottle | C5: 2012-01-03 | D5: 85
A6: 5 | B6: Coupons | C6: 2011-10-24 | D6: 60
A7: 6 | B7: Hadilim | C7: 2011-09-06 | D7: 70
A8: 7 | B8: CPU | C8: 2010-10-11 | D8: 89
A9: 8 | B9: Silicon Bottle | C9: 2011-04-05 | D9: 100
A10: 9 | B10: RFN | C10: 2012-01-01 | D10: 125
A11: 10 | B11: ABC | C11: 2011-12-13 | D11: 135
A12: 11 | B12: VDJ | C12: 2011-12-15 | D12: 115
A13: 12 | B13: E-Learning | C13: 2011-02-08 | D13: 165
A14: 13 | B14: IT Mgnt | C14: 2011-09-01 | D14: 190
A15: 14 | B15: Proxy | C15: 2011-11-29 | D15: 185
A16: 15 | B16: Optimal Test | C16: 2011-04-12 | D16: 160
A17: 16 | B17: RVN | C17: 2011-05-01 | D17: 175
A18: 17 | B18: ECMS | C18: 2011-12-12 | D18: 135
A19: 18 | B19: Lidim4u | C19: 2011-03-17 | D19: 115
A20: 19 | B20: Web Service | C20: 2011-03-08 | D20: 100
A21: 20 | B21: Voice Recognition | C21: 2011-07-12 | D21: 290
A22: 21 | B22: Rebate | C22: 2011-05-11 | D22: 190
A23: 22 | B23: Tamir | C23: 2012-02-01 | D23: 140
A24: 23 | B24: FTP Server | C24: 2012-01-13 | D24: 150
A25: 24 | B25: VDJ | C25: 2012-02-04 | D25: 100
A26: 25 | B26: Rest | C26: 2011-10-26 | D26: 110
A27: 26 | B27: Access | C27: 2011-03-19 | D27: 90
A28: 27 | B28: SQL Server | C28: 2011-02-20 | D28: 65
A29: 28 | B29: Oracle | C29: 2011-04-14 | D29: 100
A30: 29 | B30: Twist | C30: 2011-10-03 | D30: 30
A31: 30 | B31: FMR | C31: 2011-12-29 | D31: 30
A32: 31 | B32: Mentha | C32: 2011-09-09 | D32: 90
A33: 32 | B33: ASIC | C33: 2010-05-11 | D33: 190
A34: 33 | B34: Image Processing | C34: 2010-06-06 | D34: 290
A35: 34 | B35: XFM | C35: 2012-07-18 | D35: 130
A36: 35 | B36: Phonext | C36: 2011-05-14 | D36: 190
A37: 36 | B37: Multicall | C37: 2011-06-20 | D37: 75
A38: 37 | B38: Voice Logger | C38: 2011-07-01 | D38: 250
A39: 38 | B39: Voice Recognition | C39: 2011-10-10 | D39: 260
A40: 39 | B40: AQS | C40: 2011-06-12 | D40: 180
A41: 40 | B41: Operaring System | C41: 2011-06-10 | D41: 110
A42: 41 | B42: KOP | C42: 2011-04-12 | D42: 280
A43: 42 | B43: Break | C43: 2011-07-17 | D43: 180
A44: 43 | B44: Web Platform | C44: 2011-12-23 | D44: 260
A45: 44 | B45: Lidim4u | C45: 2012-02-12 | D45: 180
A46: 45 | B46: DSD | C46: 2011-09-11 | D46: 30
A47: 46 | B47: Face detection | C47: 2011-03-10 | D47: 190
A48: 47 | B48: Video analysis | C48: 2011-09-10 | D48: 100
A49: 48 | B49: Video capture | C49: 2011-08-11 | D49: 170
A50: 49 | B50: Web server | C50: 2011-12-30 | D50: 160
A51: 50 | B51: Websphere | C51: 2012-02-02 | D51: 165
A52: 51 | B52: Alcatel | C52: 2012-01-14 | D52: 200
A53: 52 | B53: ETS | C53: 2011-12-20 | D53: 100
A54: 53 | B54: VDP | C54: 2011-12-30 | D54: 120
A55: 54 | B55: Click View | C55: 2012-01-02 | D55: 90
A56: 55 | B56: Filter2Bottle | C56: 2012-01-03 | D56: 180
A57: 56 | B57: Coupons | C57: 2011-10-24 | D57: 200
A58: 57 | B58: Hadilim | C58: 2011-09-06 | D58: 205
A59: 58 | B59: CPU | C59: 2010-10-11 | D59: 125
A60: 59 | B60: Silicon Bottle | C60: 2011-04-05 | D60: 65
A61: 60 | B61: RFN | C61: 2012-01-01 | D61: 60
A62: 61 | B62: ABC | C62: 2011-12-13 | D62: 190
A63: 62 | B63: VDJ | C63: 2011-12-15 | D63: 170
A64: 63 | B64: E-Learning | C64: 2011-02-08 | D64: 210
A65: 64 | B65: IT Mgnt | C65: 2011-09-01 | D65: 22
A66: 65 | B66: Proxy | C66: 2011-11-29 | D66: 250
A67: 66 | B67: Optimal Test | C67: 2011-04-12 | D67: 190
A68: 67 | B68: RVN | C68: 2011-05-01 | D68: 275
A69: 68 | B69: ECMS | C69: 2011-12-12 | D69: 285
A70: 69 | B70: Lidim4u | C70: 2011-03-17 | D70: 100
A71: 70 | B71: Web Service | C71: 2011-03-08 | D71: 95
A72: 71 | B72: Voice Recognition | C72: 2011-07-12 | D72: 65
A73: 72 | B73: Face detection | C73: 2011-03-14 | D73: 100
A74: 73 | B74: ASIC | C74: 2012-06-19 | D74: 105
A75: 74 | B75: Simulators | C75: 2009-11-12 | D75: 95
A76: 75 | B76: Networking | C76: 2011-10-10 | D76: 90
A77: 76 | B77: ASP.NET | C77: 2011-09-01 | D77: 100
A78: 77 | B78: PHP+MySQL | C78: 2011-10-31 | D78: 110

Sheet קובץ נתונים תרגיל 11
A1: מספר סידורי | B1: עיר | C1: אזור | D1: מספר חדרים | E1: קומה | F1: שטח (מ"ר) | G1: שנת בניה | H1: עלות מקורית | I1: שנת מכירה | J1: מחיר
A2: 1 | B2: ראשון לציון | C2: מרכז | D2: 1 | E2: 2 | F2: 40 | G2: 1964 | H2: ₪ 1,555,249 | I2: 1980 | J2: ₪ 1,509,598
A3: 2 | B3: חיפה | C3: צפון | D3: 1 | E3: 1 | F3: 40 | G3: 1950 | H3: ₪ 2,314,751 | I3: 1993 | J3: ₪ 2,284,964
A4: 3 | B4: מצפה רמון | C4: דרום | D4: 1 | E4: 22 | F4: 40 | G4: 1950 | H4: ₪ 2,620,398 | I4: 2001 | J4: ₪ 2,786,971
A5: 4 | B5: חיפה | C5: צפון | D5: 1 | E5: 18 | F5: 40 | G5: 1950 | H5: ₪ 5,446,492 | I5: 2010 | J5: ₪ 8,286,089
A6: 5 | B6: מצפה רמון | C6: דרום | D6: 1 | E6: 21 | F6: 40 | G6: 1951 | H6: ₪ 1,189,431 | I6: 1973 | J6: ₪ 1,230,340
A7: 6 | B7: ירושלים | C7: מרכז | D7: 1 | E7: 19 | F7: 40 | G7: 1951 | H7: ₪ 1,763,743 | I7: 1984 | J7: ₪ 1,752,515
A8: 7 | B8: צפת | C8: גליל | D8: 2 | E8: 15 | F8: 40 | G8: 1951 | H8: ₪ 3,726,323 | I8: 2010 | J8: ₪ 4,038,887
A9: 8 | B9: תל אביב | C9: מרכז | D9: 4 | E9: 13 | F9: 40 | G9: 1952 | H9: ₪ 1,469,264 | I9: 1977 | J9: ₪ 1,420,532
A10: 9 | B10: מצפה רמון | C10: דרום | D10: 4 | E10: 9 | F10: 40 | G10: 1952 | H10: ₪ 2,871,903 | I10: 2004 | J10: ₪ 3,039,916
A11: 10 | B11: ירושלים | C11: מרכז | D11: 3 | E11: 13 | F11: 40 | G11: 1953 | H11: ₪ 3,237,215 | I11: 2009 | J11: ₪ 3,598,978
A12: 11 | B12: תל אביב | C12: מרכז | D12: 5 | E12: 19 | F12: 40 | G12: 1954 | H12: ₪ 1,798,385 | I12: 1985 | J12: ₪ 1,781,605
A13: 12 | B13: עכו | C13: צפון | D13: 3 | E13: 2 | F13: 40 | G13: 1954 | H13: ₪ 1,922,365 | I13: 1987 | J13: ₪ 1,955,328
A14: 13 | B14: אילת | C14: דרום | D14: 7 | E14: 9 | F14: 40 | G14: 1954 | H14: ₪ 2,478,872 | I14: 1999 | J14: ₪ 2,571,626
A15: 14 | B15: כרמיאל | C15: גליל | D15: 1 | E15: 1 | F15: 40 | G15: 1954 | H15: ₪ 3,206,616 | I15: 2008 | J15: ₪ 3,506,015
A16: 15 | B16: חיפה | C16: צפון | D16: 1 | E16: 17 | F16: 40 | G16: 1954 | H16: ₪ 4,391,916 | I16: 1960 | J16: ₪ 4,368,252
A17: 16 | B17: עכו | C17: צפון | D17: 1 | E17: 10 | F17: 41 | G17: 1954 | H17: ₪ 6,279,067 | I17: 1969 | J17: ₪ 1,039,879
A18: 17 | B18: נהריה | C18: צפון | D18: 1 | E18: 10 | F18: 51 | G18: 1955 | H18: ₪ 1,632,795 | I18: 1980 | J18: ₪ 1,559,530
A19: 18 | B19: מצפה רמון | C19: דרום | D19: 1 | E19: 3 | F19: 54 | G19: 1955 | H19: ₪ 1,720,475 | I19: 1965 | J19: ₪ 2,336,156
A20: 19 | B20: אילת | C20: דרום | D20: 1 | E20: 2 | F20: 54 | G20: 1955 | H20: ₪ 3,217,892 | I20: 2008 | J20: ₪ 3,570,719
A21: 20 | B21: אילת | C21: דרום | D21: 1 | E21: 0 | F21: 57 | G21: 1955 | H21: ₪ 3,431,108 | I21: 2009 | J21: ₪ 3,667,291
A22: 21 | B22: אילת | C22: דרום | D22: 1 | E22: 3 | F22: 58 | G22: 1955 | H22: ₪ 6,102,335 | I22: 2010 | J22: ₪ 11,710,360
A23: 22 | B23: כרמיאל | C23: גליל | D23: 1 | E23: 8 | F23: 59 | G23: 1956 | H23: ₪ 2,371,457 | I23: 1995 | J23: ₪ 2,407,476
A24: 23 | B24: ירושלים | C24: מרכז | D24: 1 | E24: 6 | F24: 61 | G24: 1956 | H24: ₪ 2,454,102 | I24: 1998 | J24: ₪ 2,483,775
A25: 24 | B25: ראש פינה | C25: גליל | D25: 1 | E25: 13 | F25: 61 | G25: 1956 | H25: ₪ 3,179,128 | I25: 2008 | J25: ₪ 3,501,085
A26: 25 | B26: ירושלים | C26: מרכז | D26: 1 | E26: 11 | F26: 67 | G26: 1956 | H26: ₪ 3,559,776 | I26: 2010 | J26: ₪ 3,869,505
A27: 26 | B27: חיפה | C27: צפון | D27: 1 | E27: 1 | F27: 70 | G27: 1956 | H27: ₪ 4,634,520 | I27: 2010 | J27: ₪ 6,064,704
A28: 27 | B28: נהריה | C28: צפון | D28: 1 | E28: 19 | F28: 73 | G28: 1957 | H28: ₪ 1,599,319 | I28: 1980 | J28: ₪ 1,551,812
A29: 28 | B29: אילת | C29: דרום | D29: 1 | E29: 4 | F29: 83 | G29: 1957 | H29: ₪ 1,815,515 | I29: 1985 | J29: ₪ 1,794,511
A30: 29 | B30: ירושלים | C30: מרכז | D30: 1 | E30: 23 | F30: 84 | G30: 1958 | H30: ₪ 1,491,015 | I30: 1965 | J30: ₪ 697,364
A31: 30 | B31: חיפה | C31: צפון | D31: 1 | E31: 8 | F31: 85 | G31: 1958 | H31: ₪ 1,615,211 | I31: 1980 | J31: ₪ 1,552,450
A32: 31 | B32: באר שבע | C32: דרום | D32: 1 | E32: 1 | F32: 90 | G32: 1958 | H32: ₪ 2,739,365 | I32: 2003 | J32: ₪ 2,926,813
A33: 32 | B33: תל אביב | C33: מרכז | D33: 1 | E33: 2 | F33: 91 | G33: 1958 | H33: ₪ 3,170,596 | I33: 2007 | J33: ₪ 3,451,322
A34: 33 | B34: אילת | C34: דרום | D34: 1 | E34: 9 | F34: 95 | G34: 1958 | H34: ₪ 5,376,465 | I34: 2010 | J34: ₪ 7,834,021
A35: 34 | B35: אילת | C35: דרום | D35: 6 | E35: 24 | F35: 40 | G35: 1959 | H35: ₪ 2,877,729 | I35: 2005 | J35: ₪ 3,094,402
A36: 35 | B36: ראשון לציון | C36: מרכז | D36: 1 | E36: 10 | F36: 104 | G36: 1960 | H36: ₪ 2,545,154 | I36: 1999 | J36: ₪ 2,699,073
A37: 36 | B37: תל אביב | C37: מרכז | D37: 1 | E37: 8 | F37: 106 | G37: 1960 | H37: ₪ 4,406,568 | I37: 2010 | J37: ₪ 5,311,521
A38: 37 | B38: תל אביב | C38: מרכז | D38: 1 | E38: 13 | F38: 110 | G38: 1961 | H38: ₪ 1,864,895 | I38: 1986 | J38: ₪ 1,935,204
A39: 38 | B39: עכו | C39: צפון | D39: 1 | E39: 11 | F39: 116 | G39: 1961 | H39: ₪ 2,336,306 | I39: 1994 | J39: ₪ 2,329,416
A40: 39 | B40: ראשון לציון | C40: מרכז | D40: 6 | E40: 1 | F40: 40 | G40: 1961 | H40: ₪ 3,589,832 | I40: 2010 | J40: ₪ 3,892,589
A41: 40 | B41: מצפה רמון | C41: דרום | D41: 1 | E41: 15 | F41: 120 | G41: 1961 | H41: ₪ 4,975,554 | I41: 2010 | J41: ₪ 7,237,668
A42: 41 | B42: תל אביב | C42: מרכז | D42: 1 | E42: 1 | F42: 127 | G42: 1961 | H42: ₪ 5,015,375 | I42: 2010 | J42: ₪ 7,584,926
A43: 42 | B43: צפת | C43: גליל | D43: 1 | E43: 23 | F43: 131 | G43: 1962 | H43: ₪ 1,380,767 | I43: 1977 | J43: ₪ 1,366,586
A44: 43 | B44: חיפה | C44: צפון | D44: 1 | E44: 4 | F44: 132 | G44: 1962 | H44: ₪ 2,081,774 | I44: 1967 | J44: ₪ 1,007,712
A45: 44 | B45: ראשון לציון | C45: מרכז | D45: 4 | E45: 11 | F45: 40 | G45: 1962 | H45: ₪ 4,527,809 | I45: 1966 | J45: ₪ 888,185
A46: 45 | B46: באר שבע | C46: דרום | D46: 1 | E46: 16 | F46: 133 | G46: 1963 | H46: ₪ 1,659,978 | I46: 1982 | J46: ₪ 1,662,723
A47: 46 | B47: מצפה רמון | C47: דרום | D47: 1 | E47: 10 | F47: 133 | G47: 1963 | H47: ₪ 2,058,672 | I47: 1990 | J47: ₪ 2,085,851
A48: 47 | B48: עכו | C48: צפון | D48: 1 | E48: 15 | F48: 143 | G48: 1963 | H48: ₪ 3,496,889 | I48: 2010 | J48: ₪ 3,720,057
A49: 48 | B49: תל אביב | C49: מרכז | D49: 1 | E49: 16 | F49: 146 | G49: 1964 | H49: ₪ 930,406 | I49: 1970 | J49: ₪ 1,054,055
A50: 49 | B50: נהריה | C50: צפון | D50: 2 | E50: 21 | F50: 40 | G50: 1964 | H50: ₪ 1,020,068 | I50: 1970 | J50: ₪ 1,056,326
A51: 50 | B51: צפת | C51: גליל | D51: 2 | E51: 20 | F51: 40 | G51: 1965 | H51: ₪ 1,020,192 | I51: 1970 | J51: ₪ 1,089,225
A52: 51 | B52: תל אביב | C52: מרכז | D52: 2 | E52: 6 | F52: 43 | G52: 1965 | H52: ₪ 2,771,397 | I52: 2003 | J52: ₪ 2,948,334
A53: 52 | B53: כרמיאל | C53: גליל | D53: 2 | E53: 19 | F53: 48 | G53: 1965 | H53: ₪ 2,955,973 | I53: 2005 | J53: ₪ 3,206,616
A54: 53 | B54: באר שבע | C54: דרום | D54: 2 | E54: 4 | F54: 49 | G54: 1965 | H54: ₪ 4,832,379 | I54: 2010 | J54: ₪ 6,578,259
A55: 54 | B55: ראשון לציון | C55: מרכז | D55: 2 | E55: 1 | F55: 50 | G55: 1966 | H55: ₪ 1,821,817 | I55: 1985 | J55: ₪ 1,856,345
A56: 55 | B56: צפת | C56: גליל | D56: 2 | E56: 24 | F56: 56 | G56: 1966 | H56: ₪ 1,897,776 | I56: 1987 | J56: ₪ 1,939,761
A57: 56 | B57: אילת | C57: דרום | D57: 2 | E57: 4 | F57: 59 | G57: 1966 | H57: ₪ 2,454,579 | I57: 1998 | J57: ₪ 2,485,370
A58: 57 | B58: כרמיאל | C58: גליל | D58: 2 | E58: 21 | F58: 64 | G58: 1966 | H58: ₪ 3,293,240 | I58: 2009 | J58: ₪ 3,634,156
A59: 58 | B59: ירושלים | C59: מרכז | D59: 2 | E59: 14 | F59: 67 | G59: 1966 | H59: ₪ 3,347,114 | I59: 2009 | J59: ₪ 3,657,952
A60: 59 | B60: מצפה רמון | C60: דרום | D60: 7 | E60: 13 | F60: 40 | G60: 1966 | H60: ₪ 6,039,880 | I60: 2010 | J60: ₪ 8,890,430
A61: 60 | B61: באר שבע | C61: דרום | D61: 2 | E61: 18 | F61: 69 | G61: 1967 | H61: ₪ 1,043,801 | I61: 1971 | J61: ₪ 1,134,782
A62: 61 | B62: ראשון לציון | C62: מרכז | D62: 2 | E62: 24 | F62: 72 | G62: 1967 | H62: ₪ 1,481,502 | I62: 1979 | J62: ₪ 1,435,488
A63: 62 | B63: ירושלים | C63: מרכז | D63: 2 | E63: 0 | F63: 74 | G63: 1967 | H63: ₪ 1,834,479 | I63: 1986 | J63: ₪ 1,871,191
A64: 63 | B64: כרמיאל | C64: גליל | D64: 2 | E64: 16 | F64: 77 | G64: 1967 | H64: ₪ 2,710,807 | I64: 2002 | J64: ₪ 2,907,630
A65: 64 | B65: עכו | C65: צפון | D65: 2 | E65: 23 | F65: 80 | G65: 1967 | H65: ₪ 3,516,240 | I65: 2010 | J65: ₪ 3,729,392
A66: 65 | B66: כרמיאל | C66: גליל | D66: 2 | E66: 11 | F66: 83 | G66: 1968 | H66: ₪ 2,045,294 | I66: 1990 | J66: ₪ 2,060,839
A67: 66 | B67: באר שבע | C67: דרום | D67: 2 | E67: 0 | F67: 84 | G67: 1968 | H67: ₪ 2,306,176 | I67: 1992 | J67: ₪ 2,248,006
A68: 67 | B68: ירושלים | C68: מרכז | D68: 2 | E68: 3 | F68: 87 | G68: 1968 | H68: ₪ 2,838,972 | I68: 1967 | J68: ₪ 972,135
A69: 68 | B69: ראשון לציון | C69: מרכז | D69: 2 | E69: 3 | F69: 88 | G69: 1968 | H69: ₪ 4,360,037 | I69: 2010 | J69: ₪ 5,266,794
A70: 69 | B70: אילת | C70: דרום | D70: 2 | E70: 24 | F70: 102 | G70: 1968 | H70: ₪ 4,526,362 | I70: 2010 | J70: ₪ 5,376,148
A71: 70 | B71: עכו | C71: צפון | D71: 2 | E71: 19 | F71: 103 | G71: 1969 | H71: ₪ 1,055,170 | I71: 1972 | J71: ₪ 1,175,627
A72: 71 | B72: עכו | C72: צפון | D72: 2 | E72: 14 | F72: 103 | G72: 1969 | H72: ₪ 1,468,747 | I72: 1963 | J72: ₪ 562,979
A73: 72 | B73: ראש פינה | C73: גליל | D73: 2 | E73: 20 | F73: 103 | G73: 1969 | H73: ₪ 2,098,287 | I73: 1990 | J73: ₪ 2,138,628
A74: 73 | B74: כרמיאל | C74: גליל | D74: 2 | E74: 9 | F74: 103 | G74: 1970 | H74: ₪ 1,840,301 | I74: 1986 | J74: ₪ 1,912,404
A75: 74 | B75: ראש פינה | C75: גליל | D75: 2 | E75: 11 | F75: 106 | G75: 1970 | H75: ₪ 2,814,575 | I75: 2003 | J75: ₪ 2,949,844
A76: 75 | B76: ראש פינה | C76: גליל | D76: 2 | E76: 12 | F76: 114 | G76: 1970 | H76: ₪ 3,112,438 | I76: 2006 | J76: ₪ 3,278,722
A77: 76 | B77: תל אביב | C77: מרכז | D77: 2 | E77: 17 | F77: 116 | G77: 1970 | H77: ₪ 3,653,550 | I77: 2010 | J77: ₪ 3,949,874
A78: 77 | B78: תל אביב | C78: מרכז | D78: 2 | E78: 3 | F78: 119 | G78: 1970 | H78: ₪ 4,106,273 | I78: 2010 | J78: ₪ 4,489,645
A79: 78 | B79: צפת | C79: גליל | D79: 2 | E79: 7 | F79: 123 | G79: 1970 | H79: ₪ 4,289,360 | I79: 2010 | J79: ₪ 4,747,360
A80: 79 | B80: ראש פינה | C80: גליל | D80: 2 | E80: 23 | F80: 126 | G80: 1970 | H80: ₪ 4,689,624 | I80: 1967 | J80: ₪ 983,794
A81: 80 | B81: ראש פינה | C81: גליל | D81: 2 | E81: 16 | F81: 128 | G81: 1971 | H81: ₪ 1,633,420 | I81: 1981 | J81: ₪ 1,599,940
A82: 81 | B82: מצפה רמון | C82: דרום | D82: 2 | E82: 0 | F82: 131 | G82: 1971 | H82: ₪ 2,222,609 | I82: 1992 | J82: ₪ 2,233,554
A83: 82 | B83: חיפה | C83: צפון | D83: 2 | E83: 22 | F83: 132 | G83: 1971 | H83: ₪ 2,371,202 | I83: 1994 | J83: ₪ 2,394,195
A84: 83 | B84: כרמיאל | C84: גליל | D84: 2 | E84: 9 | F84: 142 | G84: 1971 | H84: ₪ 3,129,944 | I84: 2006 | J84: ₪ 3,302,693
A85: 84 | B85: אילת | C85: דרום | D85: 3 | E85: 6 | F85: 40 | G85: 1971 | H85: ₪ 3,160,132 | I85: 2007 | J85: ₪ 3,440,670
A86: 85 | B86: באר שבע | C86: דרום | D86: 3 | E86: 0 | F86: 40 | G86: 1971 | H86: ₪ 3,555,311 | I86: 2010 | J86: ₪ 3,756,647
A87: 86 | B87: אילת | C87: דרום | D87: 3 | E87: 2 | F87: 40 | G87: 1972 | H87: ₪ 1,055,600 | I87: 1972 | J87: ₪ 1,186,015
A88: 87 | B88: אילת | C88: דרום | D88: 3 | E88: 24 | F88: 42 | G88: 1972 | H88: ₪ 1,451,601 | I88: 1977 | J88: ₪ 1,402,403
A89: 88 | B89: מצפה רמון | C89: דרום | D89: 3 | E89: 19 | F89: 44 | G89: 1973 | H89: ₪ 2,842,120 | I89: 2004 | J89: ₪ 3,026,652
A90: 89 | B90: כרמיאל | C90: גליל | D90: 3 | E90: 11 | F90: 46 | G90: 1973 | H90: ₪ 4,214,243 | I90: 1954 | J90: ₪ 4,214,243
A91: 90 | B91: ראשון לציון | C91: מרכז | D91: 3 | E91: 24 | F91: 48 | G91: 1973 | H91: ₪ 4,776,204 | I91: 2010 | J91: ₪ 6,519,412
A92: 91 | B92: תל אביב | C92: מרכז | D92: 3 | E92: 18 | F92: 49 | G92: 1974 | H92: ₪ 1,799,744 | I92: 1957 | J92: ₪ 1,692,349
A93: 92 | B93: עכו | C93: צפון | D93: 3 | E93: 10 | F93: 51 | G93: 1974 | H93: ₪ 1,845,298 | I93: 1986 | J93: ₪ 1,922,335
A94: 93 | B94: חיפה | C94: צפון | D94: 3 | E94: 6 | F94: 52 | G94: 1974 | H94: ₪ 2,880,351 | I94: 2005 | J94: ₪ 3,160,345
A95: 94 | B95: ירושלים | C95: מרכז | D95: 3 | E95: 5 | F95: 57 | G95: 1975 | H95: ₪ 1,102,050 | I95: 1973 | J95: ₪ 1,189,431
A96: 95 | B96: באר שבע | C96: דרום | D96: 3 | E96: 9 | F96: 65 | G96: 1975 | H96: ₪ 1,269,969 | I96: 1975 | J96: ₪ 1,261,156
A97: 96 | B97: באר שבע | C97: דרום | D97: 3 | E97: 0 | F97: 86 | G97: 1975 | H97: ₪ 2,599,237 | I97: 2001 | J97: ₪ 2,771,826
A98: 97 | B98: מצפה רמון | C98: דרום | D98: 3 | E98: 23 | F98: 87 | G98: 1975 | H98: ₪ 4,351,486 | I98: 2010 | J98: ₪ 5,240,220
A99: 98 | B99: ראשון לציון | C99: מרכז | D99: 3 | E99: 12 | F99: 94 | G99: 1976 | H99: ₪ 1,773,671 | I99: 1984 | J99: ₪ 1,764,114
A100: 99 | B100: מצפה רמון | C100: דרום | D100: 3 | E100: 6 | F100: 95 | G100: 1976 | H100: ₪ 3,786,540 | I100: 2010 | J100: ₪ 4,083,999
A101: 100 | B101: באר שבע | C101: דרום | D101: 3 | E101: 16 | F101: 98 | G101: 1977 | H101: ₪ 1,953,601 | I101: 1987 | J101: ₪ 1,988,965
A102: 101 | B102: נהריה | C102: צפון | D102: 3 | E102: 13 | F102: 107 | G102: 1977 | H102: ₪ 2,441,636 | I102: 1997 | J102: ₪ 2,464,801
A103: 102 | B103: ראשון לציון | C103: מרכז | D103: 3 | E103: 4 | F103: 108 | G103: 1977 | H103: ₪ 2,695,798 | I103: 2002 | J103: ₪ 2,879,257
A104: 103 | B104: חיפה | C104: צפון | D104: 3 | E104: 13 | F104: 111 | G104: 1977 | H104: ₪ 4,562,432 | I104: 2010 | J104: ₪ 5,471,775
A105: 104 | B105: צפת | C105: גליל | D105: 3 | E105: 7 | F105: 116 | G105: 1977 | H105: ₪ 5,220,333 | I105: 2010 | J105: ₪ 7,676,480
A106: 105 | B106: חיפה | C106: צפון | D106: 3 | E106: 17 | F106: 117 | G106: 1978 | H106: ₪ 1,152,126 | I106: 1973 | J106: ₪ 1,196,112
A107: 106 | B107: אילת | C107: דרום | D107: 3 | E107: 21 | F107: 123 | G107: 1978 | H107: ₪ 2,119,059 | I107: 1990 | J107: ₪ 2,158,754
A108: 107 | B108: נהריה | C108: צפון | D108: 3 | E108: 0 | F108: 128 | G108: 1978 | H108: ₪ 2,434,941 | I108: 1996 | J108: ₪ 2,434,539
A109: 108 | B109: ראש פינה | C109: גליל | D109: 3 | E109: 14 | F109: 129 | G109: 1978 | H109: ₪ 2,465,696 | I109: 1999 | J109: ₪ 2,545,973
A110: 109 | B110: נהריה | C110: צפון | D110: 3 | E110: 18 | F110: 130 | G110: 1978 | H110: ₪ 2,634,758 | I110: 2001 | J110: ₪ 2,818,494
A111: 110 | B111: ראשון לציון | C111: מרכז | D111: 3 | E111: 20 | F111: 140 | G111: 1978 | H111: ₪ 2,894,226 | I111: 2005 | J111: ₪ 3,192,786
A112: 111 | B112: צפת | C112: גליל | D112: 3 | E112: 17 | F112: 147 | G112: 1979 | H112: ₪ 1,170,417 | I112: 1973 | J112: ₪ 1,204,391
A113: 112 | B113: תל אביב | C113: מרכז | D113: 4 | E113: 23 | F113: 40 | G113: 1979 | H113: ₪ 1,181,562 | I113: 1973 | J113: ₪ 1,213,074
A114: 113 | B114: ירושלים | C114: מרכז | D114: 4 | E114: 4 | F114: 40 | G114: 1979 | H114: ₪ 1,205,588 | I114: 1974 | J114: ₪ 1,243,710
A115: 114 | B115: ראש פינה | C115: גליל | D115: 4 | E115: 11 | F115: 41 | G115: 1979 | H115: ₪ 2,000,923 | I115: 1988 | J115: ₪ 2,021,168
A116: 115 | B116: עכו | C116: צפון | D116: 4 | E116: 20 | F116: 41 | G116: 1979 | H116: ₪ 3,079,604 | I116: 2005 | J116: ₪ 3,248,102
A117: 116 | B117: כרמיאל | C117: גליל | D117: 4 | E117: 14 | F117: 42 | G117: 1979 | H117: ₪ 3,826,994 | I117: 2010 | J117: ₪ 4,193,064
A118: 117 | B118: מצפה רמון | C118: דרום | D118: 4 | E118: 18 | F118: 44 | G118: 1979 | H118: ₪ 4,552,039 | I118: 2010 | J118: ₪ 5,390,909
A119: 118 | B119: צפת | C119: גליל | D119: 4 | E119: 4 | F119: 47 | G119: 1980 | H119: ₪ 1,733,156 | I119: 1983 | J119: ₪ 1,702,392
A120: 119 | B120: צפת | C120: גליל | D120: 4 | E120: 8 | F120: 50 | G120: 1980 | H120: ₪ 2,145,796 | I120: 1991 | J120: ₪ 2,164,317
A121: 120 | B121: ראשון לציון | C121: מרכז | D121: 4 | E121: 22 | F121: 50 | G121: 1980 | H121: ₪ 2,274,757 | I121: 1992 | J121: ₪ 2,246,116
A122: 121 | B122: נהריה | C122: צפון | D122: 4 | E122: 18 | F122: 50 | G122: 1980 | H122: ₪ 2,374,377 | I122: 1995 | J122: ₪ 2,417,249
A123: 122 | B123: חיפה | C123: צפון | D123: 4 | E123: 12 | F123: 58 | G123: 1981 | H123: ₪ 1,648,549 | I123: 1981 | J123: ₪ 1,628,808
A124: 123 | B124: עכו | C124: צפון | D124: 4 | E124: 24 | F124: 65 | G124: 1981 | H124: ₪ 1,773,227 | I124: 1984 | J124: ₪ 1,759,416
A125: 124 | B125: תל אביב | C125: מרכז | D125: 4 | E125: 24 | F125: 67 | G125: 1981 | H125: ₪ 2,549,198 | I125: 2000 | J125: ₪ 2,704,451
A126: 125 | B126: כרמיאל | C126: גליל | D126: 4 | E126: 16 | F126: 68 | G126: 1982 | H126: ₪ 2,258,297 | I126: 1964 | J126: ₪ 665,662
A127: 126 | B127: נהריה | C127: צפון | D127: 4 | E127: 12 | F127: 82 | G127: 1983 | H127: ₪ 1,414,910 | I127: 1977 | J127: ₪ 1,385,273
A128: 127 | B128: נהריה | C128: צפון | D128: 4 | E128: 12 | F128: 82 | G128: 1983 | H128: ₪ 1,652,449 | I128: 1981 | J128: ₪ 1,641,442
A129: 128 | B129: ירושלים | C129: מרכז | D129: 4 | E129: 10 | F129: 91 | G129: 1984 | H129: ₪ 1,959,715 | I129: 1987 | J129: ₪ 1,991,217
A130: 129 | B130: ירושלים | C130: מרכז | D130: 4 | E130: 3 | F130: 91 | G130: 1984 | H130: ₪ 2,043,166 | I130: 1990 | J130: ₪ 2,058,710
A131: 130 | B131: ירושלים | C131: מרכז | D131: 4 | E131: 7 | F131: 94 | G131: 1984 | H131: ₪ 2,683,534 | I131: 2002 | J131: ₪ 2,835,207
A132: 131 | B132: מצפה רמון | C132: דרום | D132: 4 | E132: 4 | F132: 102 | G132: 1984 | H132: ₪ 3,443,242 | I132: 2010 | J132: ₪ 3,667,544
A133: 132 | B133: ראש פינה | C133: גליל | D133: 4 | E133: 5 | F133: 102 | G133: 1984 | H133: ₪ 3,592,911 | I133: 2010 | J133: ₪ 3,900,871
A134: 133 | B134: צפת | C134: גליל | D134: 4 | E134: 13 | F134: 105 | G134: 1984 | H134: ₪ 4,082,764 | I134: 2010 | J134: ₪ 4,264,883
A135: 134 | B135: באר שבע | C135: דרום | D135: 4 | E135: 0 | F135: 113 | G135: 1984 | H135: ₪ 4,630,871 | I135: 2010 | J135: ₪ 5,773,532
A136: 135 | B136: ראשון לציון | C136: מרכז | D136: 4 | E136: 0 | F136: 114 | G136: 1984 | H136: ₪ 5,840,284 | I136: 2010 | J136: ₪ 8,629,601
A137: 136 | B137: נהריה | C137: צפון | D137: 4 | E137: 4 | F137: 115 | G137: 1985 | H137: ₪ 1,289,221 | I137: 1960 | J137: ₪ 1,222,325
A138: 137 | B138: צפת | C138: גליל | D138: 4 | E138: 11 | F138: 116 | G138: 1985 | H138: ₪ 1,769,958 | I138: 1984 | J138: ₪ 1,755,744
A139: 138 | B139: מצפה רמון | C139: דרום | D139: 4 | E139: 14 | F139: 117 | G139: 1985 | H139: ₪ 2,211,790 | I139: 1992 | J139: ₪ 2,219,618
A140: 139 | B140: עכו | C140: צפון | D140: 4 | E140: 14 | F140: 121 | G140: 1986 | H140: ₪ 1,331,696 | I140: 1953 | J140: ₪ 1,381,424
A141: 140 | B141: ירושלים | C141: מרכז | D141: 4 | E141: 11 | F141: 130 | G141: 1986 | H141: ₪ 1,659,428 | I141: 1982 | J141: ₪ 1,658,004
A142: 141 | B142: ראש פינה | C142: גליל | D142: 4 | E142: 16 | F142: 130 | G142: 1986 | H142: ₪ 1,805,963 | I142: 1985 | J142: ₪ 1,792,772
A143: 142 | B143: באר שבע | C143: דרום | D143: 5 | E143: 2 | F143: 40 | G143: 1986 | H143: ₪ 2,027,400 | I143: 1989 | J143: ₪ 2,026,548
A144: 143 | B144: באר שבע | C144: דרום | D144: 5 | E144: 24 | F144: 40 | G144: 1986 | H144: ₪ 2,591,629 | I144: 2000 | J144: ₪ 2,760,152
A145: 144 | B145: ראשון לציון | C145: מרכז | D145: 5 | E145: 13 | F145: 40 | G145: 1986 | H145: ₪ 3,003,682 | I145: 2005 | J145: ₪ 3,208,890
A146: 145 | B146: ראש פינה | C146: גליל | D146: 5 | E146: 0 | F146: 44 | G146: 1986 | H146: ₪ 3,663,675 | I146: 2010 | J146: ₪ 3,985,211
A147: 146 | B147: תל אביב | C147: מרכז | D147: 5 | E147: 15 | F147: 50 | G147: 1986 | H147: ₪ 4,332,013 | I147: 2010 | J147: ₪ 5,084,739
A148: 147 | B148: נהריה | C148: צפון | D148: 5 | E148: 0 | F148: 51 | G148: 1986 | H148: ₪ 4,766,233 | I148: 2010 | J148: ₪ 6,258,998
A149: 148 | B149: באר שבע | C149: דרום | D149: 5 | E149: 24 | F149: 57 | G149: 1986 | H149: ₪ 4,988,757 | I149: 2010 | J149: ₪ 7,245,213
A150: 149 | B150: ראשון לציון | C150: מרכז | D150: 5 | E150: 1 | F150: 60 | G150: 1987 | H150: ₪ 1,735,904 | I150: 1984 | J150: ₪ 1,719,946
A151: 150 | B151: ראש פינה | C151: גליל | D151: 5 | E151: 18 | F151: 66 | G151: 1987 | H151: ₪ 2,032,414 | I151: 1989 | J151: ₪ 2,051,003
A152: 151 | B152: חיפה | C152: צפון | D152: 5 | E152: 6 | F152: 66 | G152: 1987 | H152: ₪ 2,501,502 | I152: 1999 | J152: ₪ 2,575,802
A153: 152 | B153: תל אביב | C153: מרכז | D153: 5 | E153: 3 | F153: 69 | G153: 1988 | H153: ₪ 1,715,108 | I153: 1982 | J153: ₪ 1,669,837
A154: 153 | B154: חיפה | C154: צפון | D154: 5 | E154: 19 | F154: 72 | G154: 1988 | H154: ₪ 1,833,401 | I154: 1985 | J154: ₪ 1,868,416
A155: 154 | B155: נהריה | C155: צפון | D155: 5 | E155: 14 | F155: 76 | G155: 1988 | H155: ₪ 1,993,333 | I155: 1988 | J155: ₪ 1,993,862
A156: 155 | B156: חיפה | C156: צפון | D156: 5 | E156: 6 | F156: 83 | G156: 1988 | H156: ₪ 2,312,615 | I156: 1992 | J156: ₪ 2,249,330
A157: 156 | B157: עכו | C157: צפון | D157: 5 | E157: 15 | F157: 85 | G157: 1988 | H157: ₪ 3,595,007 | I157: 2010 | J157: ₪ 3,946,156
A158: 157 | B158: אילת | C158: דרום | D158: 5 | E158: 17 | F158: 88 | G158: 1988 | H158: ₪ 3,726,653 | I158: 2010 | J158: ₪ 4,046,464
A159: 158 | B159: באר שבע | C159: דרום | D159: 5 | E159: 18 | F159: 92 | G159: 1989 | H159: ₪ 1,340,373 | I159: 1977 | J159: ₪ 1,289,229
A160: 159 | B160: עכו | C160: צפון | D160: 5 | E160: 4 | F160: 93 | G160: 1989 | H160: ₪ 1,896,756 | I160: 1986 | J160: ₪ 1,938,618
A161: 160 | B161: באר שבע | C161: דרום | D161: 5 | E161: 8 | F161: 97 | G161: 1989 | H161: ₪ 3,034,756 | I161: 2005 | J161: ₪ 3,215,572
A162: 161 | B162: ראשון לציון | C162: מרכז | D162: 5 | E162: 11 | F162: 98 | G162: 1990 | H162: ₪ 1,213,287 | I162: 1974 | J162: ₪ 1,245,265
A163: 162 | B163: ירושלים | C163: מרכז | D163: 5 | E163: 6 | F163: 99 | G163: 1990 | H163: ₪ 1,223,740 | I163: 1975 | J163: ₪ 1,254,975
A164: 163 | B164: ראשון לציון | C164: מרכז | D164: 5 | E164: 13 | F164: 100 | G164: 1990 | H164: ₪ 2,430,858 | I164: 1995 | J164: ₪ 2,422,794
A165: 164 | B165: נהריה | C165: צפון | D165: 5 | E165: 0 | F165: 100 | G165: 1990 | H165: ₪ 2,988,052 | I165: 1965 | J165: ₪ 722,532
A166: 165 | B166: באר שבע | C166: דרום | D166: 5 | E166: 13 | F166: 101 | G166: 1990 | H166: ₪ 4,246,752 | I166: 2010 | J166: ₪ 4,732,768
A167: 166 | B167: עכו | C167: צפון | D167: 5 | E167: 15 | F167: 103 | G167: 1991 | H167: ₪ 2,332,812 | I167: 1993 | J167: ₪ 2,286,243
A168: 167 | B168: באר שבע | C168: דרום | D168: 5 | E168: 13 | F168: 103 | G168: 1992 | H168: ₪ 1,311,786 | I168: 1976 | J168: ₪ 1,274,809
A169: 168 | B169: עכו | C169: צפון | D169: 5 | E169: 1 | F169: 105 | G169: 1992 | H169: ₪ 2,492,839 | I169: 1999 | J169: ₪ 2,571,755
A170: 169 | B170: עכו | C170: צפון | D170: 5 | E170: 11 | F170: 112 | G170: 1992 | H170: ₪ 2,501,968 | I170: 1999 | J170: ₪ 2,614,985
A171: 170 | B171: מצפה רמון | C171: דרום | D171: 5 | E171: 1 | F171: 114 | G171: 1992 | H171: ₪ 3,082,615 | I171: 2006 | J171: ₪ 3,264,771
A172: 171 | B172: צפת | C172: גליל | D172: 5 | E172: 6 | F172: 124 | G172: 1993 | H172: ₪ 2,819,785 | I172: 2004 | J172: ₪ 2,959,829
A173: 172 | B173: תל אביב | C173: מרכז | D173: 6 | E173: 0 | F173: 40 | G173: 1993 | H173: ₪ 3,520,834 | I173: 2010 | J173: ₪ 3,732,380
A174: 173 | B174: אילת | C174: דרום | D174: 6 | E174: 18 | F174: 40 | G174: 1993 | H174: ₪ 3,745,936 | I174: 1967 | J174: ₪ 973,880
A175: 174 | B175: ראשון לציון | C175: מרכז | D175: 6 | E175: 16 | F175: 41 | G175: 1993 | H175: ₪ 3,806,588 | I175: 2010 | J175: ₪ 4,157,324
A176: 175 | B176: תל אביב | C176: מרכז | D176: 6 | E176: 0 | F176: 42 | G176: 1993 | H176: ₪ 3,946,405 | I176: 2010 | J176: ₪ 4,251,488
A177: 176 | B177: צפת | C177: גליל | D177: 6 | E177: 2 | F177: 48 | G177: 1994 | H177: ₪ 1,219,670 | I177: 1974 | J177: ₪ 1,254,468
A178: 177 | B178: ראשון לציון | C178: מרכז | D178: 6 | E178: 18 | F178: 53 | G178: 1994 | H178: ₪ 1,354,184 | I178: 1977 | J178: ₪ 1,341,896
A179: 178 | B179: ירושלים | C179: מרכז | D179: 6 | E179: 5 | F179: 56 | G179: 1994 | H179: ₪ 1,915,884 | I179: 1987 | J179: ₪ 1,942,421
A180: 179 | B180: נהריה | C180: צפון | D180: 6 | E180: 14 | F180: 60 | G180: 1994 | H180: ₪ 2,398,981 | I180: 1995 | J180: ₪ 2,418,325
A181: 180 | B181: חיפה | C181: צפון | D181: 6 | E181: 23 | F181: 62 | G181: 1994 | H181: ₪ 3,496,219 | I181: 2010 | J181: ₪ 3,679,824
A182: 181 | B182: נהריה | C182: צפון | D182: 6 | E182: 5 | F182: 66 | G182: 1994 | H182: ₪ 4,154,244 | I182: 2010 | J182: ₪ 4,559,738
A183: 182 | B183: חיפה | C183: צפון | D183: 6 | E183: 18 | F183: 66 | G183: 1994 | H183: ₪ 4,213,707 | I183: 2010 | J183: ₪ 4,617,097
A184: 183 | B184: אילת | C184: דרום | D184: 6 | E184: 13 | F184: 71 | G184: 1995 | H184: ₪ 1,415,393 | I184: 1977 | J184: ₪ 1,387,631
A185: 184 | B185: תל אביב | C185: מרכז | D185: 6 | E185: 5 | F185: 78 | G185: 1995 | H185: ₪ 2,516,591 | I185: 1999 | J185: ₪ 2,647,533
A186: 185 | B186: צפת | C186: גליל | D186: 6 | E186: 12 | F186: 79 | G186: 1995 | H186: ₪ 2,555,135 | I186: 2000 | J186: ₪ 2,732,117
A187: 186 | B187: נהריה | C187: צפון | D187: 6 | E187: 2 | F187: 80 | G187: 1995 | H187: ₪ 4,923,320 | I187: 2010 | J187: ₪ 6,624,277
A188: 187 | B188: נהריה | C188: צפון | D188: 6 | E188: 24 | F188: 81 | G188: 1996 | H188: ₪ 1,355,117 | I188: 1977 | J188: ₪ 1,354,184
A189: 188 | B189: חיפה | C189: צפון | D189: 6 | E189: 19 | F189: 82 | G189: 1996 | H189: ₪ 2,360,482 | I189: 1994 | J189: ₪ 2,372,194
A190: 189 | B190: כרמיאל | C190: גליל | D190: 6 | E190: 0 | F190: 89 | G190: 1996 | H190: ₪ 3,312,040 | I190: 2009 | J190: ₪ 3,657,525
A191: 190 | B191: עכו | C191: צפון | D191: 6 | E191: 24 | F191: 93 | G191: 1996 | H191: ₪ 4,000,790 | I191: 2010 | J191: ₪ 4,262,061
A192: 191 | B192: תל אביב | C192: מרכז | D192: 6 | E192: 12 | F192: 94 | G192: 1997 | H192: ₪ 1,341,318 | I192: 1977 | J192: ₪ 1,292,871
A193: 192 | B193: כרמיאל | C193: גליל | D193: 6 | E193: 16 | F193: 104 | G193: 1997 | H193: ₪ 2,666,447 | I193: 2001 | J193: ₪ 2,827,939
A194: 193 | B194: נהריה | C194: צפון | D194: 6 | E194: 21 | F194: 106 | G194: 1997 | H194: ₪ 3,076,728 | I194: 2005 | J194: ₪ 3,226,187
A195: 194 | B195: ירושלים | C195: מרכז | D195: 6 | E195: 21 | F195: 108 | G195: 1997 | H195: ₪ 4,104,237 | I195: 2010 | J195: ₪ 4,289,515
A196: 195 | B196: כרמיאל | C196: גליל | D196: 6 | E196: 6 | F196: 109 | G196: 1998 | H196: ₪ 2,170,543 | I196: 1991 | J196: ₪ 2,182,862
A197: 196 | B197: אילת | C197: דרום | D197: 6 | E197: 1 | F197: 129 | G197: 1998 | H197: ₪ 2,359,727 | I197: 1994 | J197: ₪ 2,334,402
A198: 197 | B198: צפת | C198: גליל | D198: 6 | E198: 24 | F198: 132 | G198: 1998 | H198: ₪ 2,836,239 | I198: 2004 | J198: ₪ 2,967,986
A199: 198 | B199: כרמיאל | C199: גליל | D199: 6 | E199: 6 | F199: 136 | G199: 1998 | H199: ₪ 2,893,570 | I199: 2005 | J199: ₪ 3,164,933
A200: 199 | B200: כרמיאל | C200: גליל | D200: 7 | E200: 11 | F200: 40 | G200: 1999 | H200: ₪ 1,477,526 | I200: 1978 | J200: ₪ 1,431,430
... 29 more rows
